Workbook

Sheet INTRO
B2: PC Joint Reporting Form v.4.2
B4: The purpose of this template Joint Reporting Form (JRF) - available as an Excel file - is to provide national health authorities and data managers with a standardized tool to address these reporting challenges, facilitate integration and thereby further contribute to improving overall programme management. This template aims to standardize national reporting of programme implementation outcomes, improve availability and coordination of preventive chemotherapy data across the World Health Organization regions. National authorities are requested to complete this form for submission to the World Health Organization within 3 months after the last round was implemented and no later than 31 March of the next implementation year.
B6: Structure of the application (worksheets):
B8: INTRO | C8: This worksheet includes guides on how to complete the joint reporting form and information about status of PC for endemic diseases in the country
B9: COUNTRY_INFO | C9: This worksheet includes information about administrative structure of the country, population by age group, status of endemicity for each disease, population requiring PC, planned interventions and interventions implemented
B10: MDA1, MDA2, MDA3, MDA4, MDA5, T1, T2 and T3 | C10: These worksheets include information about endemic districts targeted for treatment with specified PC medicines, treatment plan, and number of people who received treatment by age group. Depending on co-endemicity of the diseases in a country the tool will generate respective worksheets to fill in.
B11: DISTRICT | C11: This worksheet includes summary of people treated by disease at the level of implementation. If data by gender is available, it requires to enter.
B12: SUMMARY | C12: This worksheet includes summary of people treated by disease and by PC intervention. Before generating the report (run macros) please select the disease for which you need the report. Follow the same rule to generate various reports. This worksheet should be printed and submitted as a Joint Report (see the instruction for submission in the SUMMARY worksheet).
B14: Instruction for data entry
B16: Most of the cells in the above-mentioned worksheets include formula that are calculated automatically according to the treatment policy recommended by WHO for each disease. See the link https://www.who.int/publications/i/item/9789241599993
B18: Please enter your data into the cells according to their colour code:
C20: White - cell is not protected. Please enter the value of the requested indicator.
C22: Yellow - cell is protected and includes name of indicator. No data entry required.
C24: Orange - cell is not protected and includes a drop-down menu. Please select the value from the drop-down list.
C27: Green - cell is not protected and includes formula. Please change the value only if your data are different from those that are calculated automatically.
C30: Blue - cell is protected and includes formula. No data entry required.
B32: Country data
B34: COUNTRY | E34: Zanzibar
B36: Year of reporting data | E36: 2022
B38: Is country endemic for lymphatic filariasis (LF)? | E38: Endemic
B40: Is country endemic for onchocerciasis (ONCHO)? | E40: Endemic but PC is not required
B42: Is country endemic for soil-transmitted helminthiases (STH)? | E42: Endemic
B44: Is country endemic for schistosomiasis (SCH)? | E44: Endemic
B46: How many administrative units in the country? | E46: 11
B47: If demographical data at the second administrative level are not available by age group, please enter the proportion (%) of population by age group in the country. If data are available, please leave these cells blank.
B48: 1-4 years age | C48: Preschool-age children (PreSAC) | E48: 0.1309
B49: 5-14 years age | C49: School-age children (SAC) | E49: 0.2704
B50: 15 years + | C50: Adults | E50: 0.5639
B51: 15-49 years | C51: Women of reproductive age (WRA) | E51: 0.2408

Sheet COUNTRY_INFO
A1: COUNTRY INFORMATION
A2: Administrative structure, population by age group, endemicity status, planned interventions and interventions implemented | AA2: 1.0299
A4: TOTAL | D4: =SUBTOTAL(9,D$10:D$1010) -> 1768965 | E4: =SUBTOTAL(9,E$10:E$1010) -> 231558 | F4: 478330 | G4: 997518 | L4: =SUBTOTAL(9,L$10:L$1010) -> 1768965 | M4: 0 | N4: 231558 | O4: 478330 | P4: 425967 | Q4: 1135855 | R4: 139778 | S4: 384981 | T4: 802847 | U4: 1327606
A6: Country administrative structure | D6: Population | H6: Endemicity | L6: Population requiring PC | V6: Number of treatment rounds implemented in the year | Z6: PC implemented
A7: Country | B7: Province/State | C7: District | D7: Total | E7: PreSAC | F7: SAC | G7: Adults | H7: LF | I7: Oncho | J7: STH | K7: SCH | L7: LF | M7: ONCHO | N7: STH | R7: SCH | V7: LF | W7: Oncho | X7: STH | Y7: SCH | Z7: ROUND 1 | AA7: ROUND 2 | AB7: ROUND 3
N8: PreSAC | O8: SAC | P8: WRA | Q8: TOTAL | R8: PreSAC | S8: SAC | T8: Adults | U8: TOTAL | AH8: IU_ID | AI8: IU_Name
AC9: x | AD9: x | AE9: x | AF9: x | AG9: x | AH9: x | AI9: x | AJ9: x | AK9: x | AL9: x | AM9: x | AN9: x | AO9: x | AP9: x | AQ9: x | AR9: x | AS9: x | AT9: x | AU9: x | AV9: x | AW9: x | AX9: x | AY9: x | AZ9: x | BA9: x | BB9: x | BC9: x | BD9: x
A10: =IF(INTRO!$E$34<>0,INTRO!$E$34,"") -> Zanzibar | B10: Kaskazini Unguja | C10: Kaskazini A | D10: 136337 | E10: =IF(INTRO!$E$48="","",ROUND($D10*INTRO!$E$48,0)) -> 17847 | F10: =IF(INTRO!$E$49="","",ROUND($D10*INTRO!$E$49,0)) -> 36866 | G10: =IF(INTRO!$E$50="","",ROUND($D10*INTRO!$E$50,0)) -> 76880 | H10: 1 | I10: 0 | J10: 3 | K10: 3 | L10: =IF(INTRO!$E$38="Endemic",IF($H10>0,IF($H10=4,"Unknown",IF($H10=99,"Stopped",$D10)),0),"Not required") -> 136337 | M10: =IF(INTRO!$E$40="Endemic",IF($I10>0,IF($I10=4,"Unknown",IF($I10=99,"Stopped",$D10)),0),"Not required") -> Not required | N10: =IF(INTRO!$E$42="Endemic",IF($J10>1,IF($J10=4,"Unknown",IF($J10=99,"Surveillance",E10)),0),"Not required") -> 17847 | O10: =IF(INTRO!$E$42="Endemic",IF($J10>1,IF($J10=4,"Unknown",IF($J10=99,"Surveillance",F10)),0),"Not required") -> 36866 | P10: =IF(INTRO!$E$42="Endemic",IF($J10>1,IF($J10=4,"Unknown",IF($J10=99,"Surveillance",ROUND(D10*INTRO!$E$51,0))),0),"Not required") -> 32830 | Q10: =IF(INTRO!$E$42="Endemic",IF($J10>1,IF($J10=4,"Unknown",IF($J10=99,"Surveillance",SUM($N10:$P10))),0),"Not required") -> 87543 | R10: =IF(INTRO!$E$44="Endemic",IF($K10>1,IF($K10=4,"Unknown",IF($K10=99,"Surveillance",ROUND(E10*0.75,0))),0),"Not required") -> 13385 | S10: =IF(INTRO!$E$44="Endemic",IF($K10>1,IF($K10=4,"Unknown",IF($K10=99,"Surveillance",F10)),0),"Not required") -> 36866 | T10: =IF(INTRO!$E$44="Endemic",IF($K10>1,IF($K10=4,"Unknown",IF($K10=99,"Surveillance",G10)),0),"Not required") -> 76880 | U10: =IF(INTRO!$E$44="Endemic",IF($K10>1,IF($K10=4,"Unknown",IF($K10=99,"Surveillance",SUM($R10:$T10))),0),"Not required") -> 127131 | V10: 1 | W10: 0 | X10: 1 | Y10: 1 | Z10: MDA1 (IVM+ALB) | AA10: T2 (PZQ) | AH10: 51894 | AI10: Kaskazini A
A11: =IF(INTRO!$E$34<>0,INTRO!$E$34,"") -> Zanzibar | B11: Kaskazini Unguja | C11: Kaskazini B | D11: 108269 | E11: =IF(INTRO!$E$48="","",ROUND($D11*INTRO!$E$48,0)) -> 14172 | F11: =IF(INTRO!$E$49="","",ROUND($D11*INTRO!$E$49,0)) -> 29276 | G11: =IF(INTRO!$E$50="","",ROUND($D11*INTRO!$E$50,0)) -> 61053 | H11: 1 | I11: 0 | J11: 3 | K11: 3 | L11: =IF(INTRO!$E$38="Endemic",IF($H11>0,IF($H11=4,"Unknown",IF($H11=99,"Stopped",$D11)),0),"Not required") -> 108269 | M11: =IF(INTRO!$E$40="Endemic",IF($I11>0,IF($I11=4,"Unknown",IF($I11=99,"Stopped",$D11)),0),"Not required") -> Not required | N11: =IF(INTRO!$E$42="Endemic",IF($J11>1,IF($J11=4,"Unknown",IF($J11=99,"Surveillance",E11)),0),"Not required") -> 14172 | O11: =IF(INTRO!$E$42="Endemic",IF($J11>1,IF($J11=4,"Unknown",IF($J11=99,"Surveillance",F11)),0),"Not required") -> 29276 | P11: =IF(INTRO!$E$42="Endemic",IF($J11>1,IF($J11=4,"Unknown",IF($J11=99,"Surveillance",ROUND(D11*INTRO!$E$51,0))),0),"Not required") -> 26071 | Q11: =IF(INTRO!$E$42="Endemic",IF($J11>1,IF($J11=4,"Unknown",IF($J11=99,"Surveillance",SUM($N11:$P11))),0),"Not required") -> 69519 | R11: =IF(INTRO!$E$44="Endemic",IF($K11>1,IF($K11=4,"Unknown",IF($K11=99,"Surveillance",ROUND(E11*0.75,0))),0),"Not required") -> 10629 | S11: =IF(INTRO!$E$44="Endemic",IF($K11>1,IF($K11=4,"Unknown",IF($K11=99,"Surveillance",F11)),0),"Not required") -> 29276 | T11: =IF(INTRO!$E$44="Endemic",IF($K11>1,IF($K11=4,"Unknown",IF($K11=99,"Surveillance",G11)),0),"Not required") -> 61053 | U11: =IF(INTRO!$E$44="Endemic",IF($K11>1,IF($K11=4,"Unknown",IF($K11=99,"Surveillance",SUM($R11:$T11))),0),"Not required") -> 100958 | V11: 1 | W11: 0 | X11: 1 | Y11: 1 | Z11: MDA1 (IVM+ALB) | AA11: T2 (PZQ) | AH11: 51895 | AI11: Kaskazini B
A12: =IF(INTRO!$E$34<>0,INTRO!$E$34,"") -> Zanzibar | B12: Kusini Unguja | C12: Kusini | D12: 50318 | E12: =IF(INTRO!$E$48="","",ROUND($D12*INTRO!$E$48,0)) -> 6587 | F12: =IF(INTRO!$E$49="","",ROUND($D12*INTRO!$E$49,0)) -> 13606 | G12: =IF(INTRO!$E$50="","",ROUND($D12*INTRO!$E$50,0)) -> 28374 | H12: 1 | I12: 0 | J12: 2 | K12: 0 | L12: =IF(INTRO!$E$38="Endemic",IF($H12>0,IF($H12=4,"Unknown",IF($H12=99,"Stopped",$D12)),0),"Not required") -> 50318 | M12: =IF(INTRO!$E$40="Endemic",IF($I12>0,IF($I12=4,"Unknown",IF($I12=99,"Stopped",$D12)),0),"Not required") -> Not required | N12: =IF(INTRO!$E$42="Endemic",IF($J12>1,IF($J12=4,"Unknown",IF($J12=99,"Surveillance",E12)),0),"Not required") -> 6587 | O12: =IF(INTRO!$E$42="Endemic",IF($J12>1,IF($J12=4,"Unknown",IF($J12=99,"Surveillance",F12)),0),"Not required") -> 13606 | P12: =IF(INTRO!$E$42="Endemic",IF($J12>1,IF($J12=4,"Unknown",IF($J12=99,"Surveillance",ROUND(D12*INTRO!$E$51,0))),0),"Not required") -> 12117 | Q12: =IF(INTRO!$E$42="Endemic",IF($J12>1,IF($J12=4,"Unknown",IF($J12=99,"Surveillance",SUM($N12:$P12))),0),"Not required") -> 32310 | R12: =IF(INTRO!$E$44="Endemic",IF($K12>1,IF($K12=4,"Unknown",IF($K12=99,"Surveillance",ROUND(E12*0.75,0))),0),"Not required") -> 0 | S12: =IF(INTRO!$E$44="Endemic",IF($K12>1,IF($K12=4,"Unknown",IF($K12=99,"Surveillance",F12)),0),"Not required") -> 0 | T12: =IF(INTRO!$E$44="Endemic",IF($K12>1,IF($K12=4,"Unknown",IF($K12=99,"Surveillance",G12)),0),"Not required") -> 0 | U12: =IF(INTRO!$E$44="Endemic",IF($K12>1,IF($K12=4,"Unknown",IF($K12=99,"Surveillance",SUM($R12:$T12))),0),"Not required") -> 0 | V12: 1 | W12: 0 | X12: 1 | Y12: 0 | Z12: MDA1 (IVM+ALB) | AH12: 51899 | AI12: Kusini
A13: =IF(INTRO!$E$34<>0,INTRO!$E$34,"") -> Zanzibar | B13: Kusini Unguja | C13: Kati | D13: 94714 | E13: =IF(INTRO!$E$48="","",ROUND($D13*INTRO!$E$48,0)) -> 12398 | F13: =IF(INTRO!$E$49="","",ROUND($D13*INTRO!$E$49,0)) -> 25611 | G13: =IF(INTRO!$E$50="","",ROUND($D13*INTRO!$E$50,0)) -> 53409 | H13: 1 | I13: 0 | J13: 3 | K13: 2 | L13: =IF(INTRO!$E$38="Endemic",IF($H13>0,IF($H13=4,"Unknown",IF($H13=99,"Stopped",$D13)),0),"Not required") -> 94714 | M13: =IF(INTRO!$E$40="Endemic",IF($I13>0,IF($I13=4,"Unknown",IF($I13=99,"Stopped",$D13)),0),"Not required") -> Not required | N13: =IF(INTRO!$E$42="Endemic",IF($J13>1,IF($J13=4,"Unknown",IF($J13=99,"Surveillance",E13)),0),"Not required") -> 12398 | O13: =IF(INTRO!$E$42="Endemic",IF($J13>1,IF($J13=4,"Unknown",IF($J13=99,"Surveillance",F13)),0),"Not required") -> 25611 | P13: =IF(INTRO!$E$42="Endemic",IF($J13>1,IF($J13=4,"Unknown",IF($J13=99,"Surveillance",ROUND(D13*INTRO!$E$51,0))),0),"Not required") -> 22807 | Q13: =IF(INTRO!$E$42="Endemic",IF($J13>1,IF($J13=4,"Unknown",IF($J13=99,"Surveillance",SUM($N13:$P13))),0),"Not required") -> 60816 | R13: =IF(INTRO!$E$44="Endemic",IF($K13>1,IF($K13=4,"Unknown",IF($K13=99,"Surveillance",ROUND(E13*0.75,0))),0),"Not required") -> 9299 | S13: =IF(INTRO!$E$44="Endemic",IF($K13>1,IF($K13=4,"Unknown",IF($K13=99,"Surveillance",F13)),0),"Not required") -> 25611 | T13: =IF(INTRO!$E$44="Endemic",IF($K13>1,IF($K13=4,"Unknown",IF($K13=99,"Surveillance",G13)),0),"Not required") -> 53409 | U13: =IF(INTRO!$E$44="Endemic",IF($K13>1,IF($K13=4,"Unknown",IF($K13=99,"Surveillance",SUM($R13:$T13))),0),"Not required") -> 88319 | V13: 1 | W13: 0 | X13: 1 | Y13: 1 | Z13: MDA1 (IVM+ALB) | AA13: T2 (PZQ) | AH13: 51898 | AI13: Kati
A14: =IF(INTRO!$E$34<>0,INTRO!$E$34,"") -> Zanzibar | B14: Mjini Magharibi | C14: Mjini | D14: 294906 | E14: =IF(INTRO!$E$48="","",ROUND($D14*INTRO!$E$48,0)) -> 38603 | F14: =IF(INTRO!$E$49="","",ROUND($D14*INTRO!$E$49,0)) -> 79743 | G14: =IF(INTRO!$E$50="","",ROUND($D14*INTRO!$E$50,0)) -> 166297 | H14: 1 | I14: 0 | J14: 2 | K14: 1 | L14: =IF(INTRO!$E$38="Endemic",IF($H14>0,IF($H14=4,"Unknown",IF($H14=99,"Stopped",$D14)),0),"Not required") -> 294906 | M14: =IF(INTRO!$E$40="Endemic",IF($I14>0,IF($I14=4,"Unknown",IF($I14=99,"Stopped",$D14)),0),"Not required") -> Not required | N14: =IF(INTRO!$E$42="Endemic",IF($J14>1,IF($J14=4,"Unknown",IF($J14=99,"Surveillance",E14)),0),"Not required") -> 38603 | O14: =IF(INTRO!$E$42="Endemic",IF($J14>1,IF($J14=4,"Unknown",IF($J14=99,"Surveillance",F14)),0),"Not required") -> 79743 | P14: =IF(INTRO!$E$42="Endemic",IF($J14>1,IF($J14=4,"Unknown",IF($J14=99,"Surveillance",ROUND(D14*INTRO!$E$51,0))),0),"Not required") -> 71013 | Q14: =IF(INTRO!$E$42="Endemic",IF($J14>1,IF($J14=4,"Unknown",IF($J14=99,"Surveillance",SUM($N14:$P14))),0),"Not required") -> 189359 | R14: =IF(INTRO!$E$44="Endemic",IF($K14>1,IF($K14=4,"Unknown",IF($K14=99,"Surveillance",ROUND(E14*0.75,0))),0),"Not required") -> 0 | S14: =IF(INTRO!$E$44="Endemic",IF($K14>1,IF($K14=4,"Unknown",IF($K14=99,"Surveillance",F14)),0),"Not required") -> 0 | T14: =IF(INTRO!$E$44="Endemic",IF($K14>1,IF($K14=4,"Unknown",IF($K14=99,"Surveillance",G14)),0),"Not required") -> 0 | U14: =IF(INTRO!$E$44="Endemic",IF($K14>1,IF($K14=4,"Unknown",IF($K14=99,"Surveillance",SUM($R14:$T14))),0),"Not required") -> 0 | V14: 1 | W14: 0 | X14: 1 | Y14: 1 | Z14: MDA1 (IVM+ALB) | AA14: T2 (PZQ) | AH14: 51901 | AI14: Mjini
A15: =IF(INTRO!$E$34<>0,INTRO!$E$34,"") -> Zanzibar | B15: Mjini Magharibi | C15: Magharibi A | D15: 208144 | E15: =IF(INTRO!$E$48="","",ROUND($D15*INTRO!$E$48,0)) -> 27246 | F15: =IF(INTRO!$E$49="","",ROUND($D15*INTRO!$E$49,0)) -> 56282 | G15: =IF(INTRO!$E$50="","",ROUND($D15*INTRO!$E$50,0)) -> 117372 | H15: 1 | I15: 0 | J15: 2 | K15: 3 | L15: =IF(INTRO!$E$38="Endemic",IF($H15>0,IF($H15=4,"Unknown",IF($H15=99,"Stopped",$D15)),0),"Not required") -> 208144 | M15: =IF(INTRO!$E$40="Endemic",IF($I15>0,IF($I15=4,"Unknown",IF($I15=99,"Stopped",$D15)),0),"Not required") -> Not required | N15: =IF(INTRO!$E$42="Endemic",IF($J15>1,IF($J15=4,"Unknown",IF($J15=99,"Surveillance",E15)),0),"Not required") -> 27246 | O15: =IF(INTRO!$E$42="Endemic",IF($J15>1,IF($J15=4,"Unknown",IF($J15=99,"Surveillance",F15)),0),"Not required") -> 56282 | P15: =IF(INTRO!$E$42="Endemic",IF($J15>1,IF($J15=4,"Unknown",IF($J15=99,"Surveillance",ROUND(D15*INTRO!$E$51,0))),0),"Not required") -> 50121 | Q15: =IF(INTRO!$E$42="Endemic",IF($J15>1,IF($J15=4,"Unknown",IF($J15=99,"Surveillance",SUM($N15:$P15))),0),"Not required") -> 133649 | R15: =IF(INTRO!$E$44="Endemic",IF($K15>1,IF($K15=4,"Unknown",IF($K15=99,"Surveillance",ROUND(E15*0.75,0))),0),"Not required") -> 20435 | S15: =IF(INTRO!$E$44="Endemic",IF($K15>1,IF($K15=4,"Unknown",IF($K15=99,"Surveillance",F15)),0),"Not required") -> 56282 | T15: =IF(INTRO!$E$44="Endemic",IF($K15>1,IF($K15=4,"Unknown",IF($K15=99,"Surveillance",G15)),0),"Not required") -> 117372 | U15: =IF(INTRO!$E$44="Endemic",IF($K15>1,IF($K15=4,"Unknown",IF($K15=99,"Surveillance",SUM($R15:$T15))),0),"Not required") -> 194089 | V15: 1 | W15: 0 | X15: 1 | Y15: 1 | Z15: MDA1 (IVM+ALB) | AA15: T2 (PZQ) | AH15: 51900 | AI15: Magharibi A
A16: =IF(INTRO!$E$34<>0,INTRO!$E$34,"") -> Zanzibar | B16: Mjini Magharibi | C16: Magharibi B | D16: 269409 | E16: =IF(INTRO!$E$48="","",ROUND($D16*INTRO!$E$48,0)) -> 35266 | F16: =IF(INTRO!$E$49="","",ROUND($D16*INTRO!$E$49,0)) -> 72848 | G16: =IF(INTRO!$E$50="","",ROUND($D16*INTRO!$E$50,0)) -> 151920 | H16: 1 | I16: 0 | J16: 2 | K16: 3 | L16: =IF(INTRO!$E$38="Endemic",IF($H16>0,IF($H16=4,"Unknown",IF($H16=99,"Stopped",$D16)),0),"Not required") -> 269409 | M16: =IF(INTRO!$E$40="Endemic",IF($I16>0,IF($I16=4,"Unknown",IF($I16=99,"Stopped",$D16)),0),"Not required") -> Not required | N16: =IF(INTRO!$E$42="Endemic",IF($J16>1,IF($J16=4,"Unknown",IF($J16=99,"Surveillance",E16)),0),"Not required") -> 35266 | O16: =IF(INTRO!$E$42="Endemic",IF($J16>1,IF($J16=4,"Unknown",IF($J16=99,"Surveillance",F16)),0),"Not required") -> 72848 | P16: =IF(INTRO!$E$42="Endemic",IF($J16>1,IF($J16=4,"Unknown",IF($J16=99,"Surveillance",ROUND(D16*INTRO!$E$51,0))),0),"Not required") -> 64874 | Q16: =IF(INTRO!$E$42="Endemic",IF($J16>1,IF($J16=4,"Unknown",IF($J16=99,"Surveillance",SUM($N16:$P16))),0),"Not required") -> 172988 | R16: =IF(INTRO!$E$44="Endemic",IF($K16>1,IF($K16=4,"Unknown",IF($K16=99,"Surveillance",ROUND(E16*0.75,0))),0),"Not required") -> 26450 | S16: =IF(INTRO!$E$44="Endemic",IF($K16>1,IF($K16=4,"Unknown",IF($K16=99,"Surveillance",F16)),0),"Not required") -> 72848 | T16: =IF(INTRO!$E$44="Endemic",IF($K16>1,IF($K16=4,"Unknown",IF($K16=99,"Surveillance",G16)),0),"Not required") -> 151920 | U16: =IF(INTRO!$E$44="Endemic",IF($K16>1,IF($K16=4,"Unknown",IF($K16=99,"Surveillance",SUM($R16:$T16))),0),"Not required") -> 251218 | V16: 1 | W16: 0 | X16: 1 | Y16: 1 | Z16: MDA1 (IVM+ALB) | AA16: T2 (PZQ) | AH16: 51902 | AI16: Magharibi B
A17: =IF(INTRO!$E$34<>0,INTRO!$E$34,"") -> Zanzibar | B17: Kusini Pemba | C17: Chake chake | D17: 145946 | E17: =IF(INTRO!$E$48="","",ROUND($D17*INTRO!$E$48,0)) -> 19104 | F17: =IF(INTRO!$E$49="","",ROUND($D17*INTRO!$E$49,0)) -> 39464 | G17: =IF(INTRO!$E$50="","",ROUND($D17*INTRO!$E$50,0)) -> 82299 | H17: 1 | I17: 0 | J17: 3 | K17: 2 | L17: =IF(INTRO!$E$38="Endemic",IF($H17>0,IF($H17=4,"Unknown",IF($H17=99,"Stopped",$D17)),0),"Not required") -> 145946 | M17: =IF(INTRO!$E$40="Endemic",IF($I17>0,IF($I17=4,"Unknown",IF($I17=99,"Stopped",$D17)),0),"Not required") -> Not required | N17: =IF(INTRO!$E$42="Endemic",IF($J17>1,IF($J17=4,"Unknown",IF($J17=99,"Surveillance",E17)),0),"Not required") -> 19104 | O17: =IF(INTRO!$E$42="Endemic",IF($J17>1,IF($J17=4,"Unknown",IF($J17=99,"Surveillance",F17)),0),"Not required") -> 39464 | P17: =IF(INTRO!$E$42="Endemic",IF($J17>1,IF($J17=4,"Unknown",IF($J17=99,"Surveillance",ROUND(D17*INTRO!$E$51,0))),0),"Not required") -> 35144 | Q17: =IF(INTRO!$E$42="Endemic",IF($J17>1,IF($J17=4,"Unknown",IF($J17=99,"Surveillance",SUM($N17:$P17))),0),"Not required") -> 93712 | R17: =IF(INTRO!$E$44="Endemic",IF($K17>1,IF($K17=4,"Unknown",IF($K17=99,"Surveillance",ROUND(E17*0.75,0))),0),"Not required") -> 14328 | S17: =IF(INTRO!$E$44="Endemic",IF($K17>1,IF($K17=4,"Unknown",IF($K17=99,"Surveillance",F17)),0),"Not required") -> 39464 | T17: =IF(INTRO!$E$44="Endemic",IF($K17>1,IF($K17=4,"Unknown",IF($K17=99,"Surveillance",G17)),0),"Not required") -> 82299 | U17: =IF(INTRO!$E$44="Endemic",IF($K17>1,IF($K17=4,"Unknown",IF($K17=99,"Surveillance",SUM($R17:$T17))),0),"Not required") -> 136091 | V17: 1 | W17: 0 | X17: 1 | Y17: 1 | Z17: MDA1 (IVM+ALB) | AA17: T2 (PZQ) | AH17: 51896 | AI17: Chake Chake
A18: =IF(INTRO!$E$34<>0,INTRO!$E$34,"") -> Zanzibar | B18: Kusini Pemba | C18: Mkoani | D18: 145594 | E18: =IF(INTRO!$E$48="","",ROUND($D18*INTRO!$E$48,0)) -> 19058 | F18: =IF(INTRO!$E$49="","",ROUND($D18*INTRO!$E$49,0)) -> 39369 | G18: =IF(INTRO!$E$50="","",ROUND($D18*INTRO!$E$50,0)) -> 82100 | H18: 1 | I18: 0 | J18: 3 | K18: 2 | L18: =IF(INTRO!$E$38="Endemic",IF($H18>0,IF($H18=4,"Unknown",IF($H18=99,"Stopped",$D18)),0),"Not required") -> 145594 | M18: =IF(INTRO!$E$40="Endemic",IF($I18>0,IF($I18=4,"Unknown",IF($I18=99,"Stopped",$D18)),0),"Not required") -> Not required | N18: =IF(INTRO!$E$42="Endemic",IF($J18>1,IF($J18=4,"Unknown",IF($J18=99,"Surveillance",E18)),0),"Not required") -> 19058 | O18: =IF(INTRO!$E$42="Endemic",IF($J18>1,IF($J18=4,"Unknown",IF($J18=99,"Surveillance",F18)),0),"Not required") -> 39369 | P18: =IF(INTRO!$E$42="Endemic",IF($J18>1,IF($J18=4,"Unknown",IF($J18=99,"Surveillance",ROUND(D18*INTRO!$E$51,0))),0),"Not required") -> 35059 | Q18: =IF(INTRO!$E$42="Endemic",IF($J18>1,IF($J18=4,"Unknown",IF($J18=99,"Surveillance",SUM($N18:$P18))),0),"Not required") -> 93486 | R18: =IF(INTRO!$E$44="Endemic",IF($K18>1,IF($K18=4,"Unknown",IF($K18=99,"Surveillance",ROUND(E18*0.75,0))),0),"Not required") -> 14294 | S18: =IF(INTRO!$E$44="Endemic",IF($K18>1,IF($K18=4,"Unknown",IF($K18=99,"Surveillance",F18)),0),"Not required") -> 39369 | T18: =IF(INTRO!$E$44="Endemic",IF($K18>1,IF($K18=4,"Unknown",IF($K18=99,"Surveillance",G18)),0),"Not required") -> 82100 | U18: =IF(INTRO!$E$44="Endemic",IF($K18>1,IF($K18=4,"Unknown",IF($K18=99,"Surveillance",SUM($R18:$T18))),0),"Not required") -> 135763 | V18: 1 | W18: 0 | X18: 1 | Y18: 1 | Z18: MDA1 (IVM+ALB) | AA18: T2 (PZQ) | AH18: 51897 | AI18: Mkoani
A19: =IF(INTRO!$E$34<>0,INTRO!$E$34,"") -> Zanzibar | B19: Kaskazini Pemba | C19: Wete | D19: 159785 | E19: =IF(INTRO!$E$48="","",ROUND($D19*INTRO!$E$48,0)) -> 20916 | F19: =IF(INTRO!$E$49="","",ROUND($D19*INTRO!$E$49,0)) -> 43206 | G19: =IF(INTRO!$E$50="","",ROUND($D19*INTRO!$E$50,0)) -> 90103 | H19: 1 | I19: 0 | J19: 3 | K19: 3 | L19: =IF(INTRO!$E$38="Endemic",IF($H19>0,IF($H19=4,"Unknown",IF($H19=99,"Stopped",$D19)),0),"Not required") -> 159785 | M19: =IF(INTRO!$E$40="Endemic",IF($I19>0,IF($I19=4,"Unknown",IF($I19=99,"Stopped",$D19)),0),"Not required") -> Not required | N19: =IF(INTRO!$E$42="Endemic",IF($J19>1,IF($J19=4,"Unknown",IF($J19=99,"Surveillance",E19)),0),"Not required") -> 20916 | O19: =IF(INTRO!$E$42="Endemic",IF($J19>1,IF($J19=4,"Unknown",IF($J19=99,"Surveillance",F19)),0),"Not required") -> 43206 | P19: =IF(INTRO!$E$42="Endemic",IF($J19>1,IF($J19=4,"Unknown",IF($J19=99,"Surveillance",ROUND(D19*INTRO!$E$51,0))),0),"Not required") -> 38476 | Q19: =IF(INTRO!$E$42="Endemic",IF($J19>1,IF($J19=4,"Unknown",IF($J19=99,"Surveillance",SUM($N19:$P19))),0),"Not required") -> 102598 | R19: =IF(INTRO!$E$44="Endemic",IF($K19>1,IF($K19=4,"Unknown",IF($K19=99,"Surveillance",ROUND(E19*0.75,0))),0),"Not required") -> 15687 | S19: =IF(INTRO!$E$44="Endemic",IF($K19>1,IF($K19=4,"Unknown",IF($K19=99,"Surveillance",F19)),0),"Not required") -> 43206 | T19: =IF(INTRO!$E$44="Endemic",IF($K19>1,IF($K19=4,"Unknown",IF($K19=99,"Surveillance",G19)),0),"Not required") -> 90103 | U19: =IF(INTRO!$E$44="Endemic",IF($K19>1,IF($K19=4,"Unknown",IF($K19=99,"Surveillance",SUM($R19:$T19))),0),"Not required") -> 148996 | V19: 1 | W19: 0 | X19: 1 | Y19: 1 | Z19: MDA1 (IVM+ALB) | AA19: T2 (PZQ) | AH19: 51893 | AI19: Wete
A20: =IF(INTRO!$E$34<>0,INTRO!$E$34,"") -> Zanzibar | B20: Kaskazini Pemba | C20: Micheweni | D20: 155543 | E20: =IF(INTRO!$E$48="","",ROUND($D20*INTRO!$E$48,0)) -> 20361 | F20: =IF(INTRO!$E$49="","",ROUND($D20*INTRO!$E$49,0)) -> 42059 | G20: =IF(INTRO!$E$50="","",ROUND($D20*INTRO!$E$50,0)) -> 87711 | H20: 1 | I20: 0 | J20: 3 | K20: 3 | L20: =IF(INTRO!$E$38="Endemic",IF($H20>0,IF($H20=4,"Unknown",IF($H20=99,"Stopped",$D20)),0),"Not required") -> 155543 | M20: =IF(INTRO!$E$40="Endemic",IF($I20>0,IF($I20=4,"Unknown",IF($I20=99,"Stopped",$D20)),0),"Not required") -> Not required | N20: =IF(INTRO!$E$42="Endemic",IF($J20>1,IF($J20=4,"Unknown",IF($J20=99,"Surveillance",E20)),0),"Not required") -> 20361 | O20: =IF(INTRO!$E$42="Endemic",IF($J20>1,IF($J20=4,"Unknown",IF($J20=99,"Surveillance",F20)),0),"Not required") -> 42059 | P20: =IF(INTRO!$E$42="Endemic",IF($J20>1,IF($J20=4,"Unknown",IF($J20=99,"Surveillance",ROUND(D20*INTRO!$E$51,0))),0),"Not required") -> 37455 | Q20: =IF(INTRO!$E$42="Endemic",IF($J20>1,IF($J20=4,"Unknown",IF($J20=99,"Surveillance",SUM($N20:$P20))),0),"Not required") -> 99875 | R20: =IF(INTRO!$E$44="Endemic",IF($K20>1,IF($K20=4,"Unknown",IF($K20=99,"Surveillance",ROUND(E20*0.75,0))),0),"Not required") -> 15271 | S20: =IF(INTRO!$E$44="Endemic",IF($K20>1,IF($K20=4,"Unknown",IF($K20=99,"Surveillance",F20)),0),"Not required") -> 42059 | T20: =IF(INTRO!$E$44="Endemic",IF($K20>1,IF($K20=4,"Unknown",IF($K20=99,"Surveillance",G20)),0),"Not required") -> 87711 | U20: =IF(INTRO!$E$44="Endemic",IF($K20>1,IF($K20=4,"Unknown",IF($K20=99,"Surveillance",SUM($R20:$T20))),0),"Not required") -> 145041 | V20: 1 | W20: 0 | X20: 1 | Y20: 1 | Z20: MDA1 (IVM+ALB) | AA20: T2 (PZQ) | AH20: 51892 | AI20: Micheweni

Sheet MDA1
A1: MDA 1 - Ivermectin (IVM) and Albendazole (ALB)
A2: Administrative structure, population requiring PC by age group, population treated by age group and coverage
A4: TOTAL | G4: =SUBTOTAL(9,G$10:G$1010) -> 464440 | H4: 968559 | I4: 1432999 | K4: =SUBTOTAL(9,K$10:K$1010) -> 476239 | L4: 807977 | M4: 1284216 | O4: =IF(G4<>0,IF(K4/G4*100=0,"-",K4/G4*100)," ") -> 102.5404789 | P4: =IF(H4<>0,IF(L4/H4*100=0,"-",L4/H4*100)," ") -> 83.42052472 | Q4: =IF(I4<>0,IF(M4/I4*100=0,"-",M4/I4*100)," ") -> 89.61736889
A6: Country administrative structure | D6: PC implemented | E6: Date | F6: Population targeted for MDA 1 | J6: Population treated | N6: Programme coverage (%)
A7: Country | B7: Province/State | C7: District | F7: PreSAC | G7: SAC | H7: Adults | I7: Total | J7: PreSAC | K7: SAC | L7: Adults | M7: Total | N7: PreSAC | O7: SAC | P7: Adults | Q7: Total
A10: =IF(COUNTRY_INFO!A10=0," ",COUNTRY_INFO!A10) -> Zanzibar | B10: =IF(COUNTRY_INFO!B10=0," ",COUNTRY_INFO!B10) -> Kaskazini Unguja | C10: =IF(COUNTRY_INFO!C10=0," ",COUNTRY_INFO!C10) -> Kaskazini A | D10: =IF(COUNTRY_INFO!$Z10="MDA1 (IVM+ALB)",COUNTRY_INFO!$Z10," ") -> MDA1 (IVM+ALB) | E10: March 2022 | G10: 35795 | H10: 74649 | I10: =SUM(F10:H10) -> 110444 | K10: 46676 | L10: 73869 | M10: =SUM(J10:L10) -> 120545 | O10: =IF(G10<>0,IF(K10/G10*100=0,"-",K10/G10*100)," ") -> 130.3981003 | P10: =IF(H10<>0,IF(L10/H10*100=0,"-",L10/H10*100)," ") -> 98.95510991 | Q10: 109.1458115 | S10: =COUNTRY_INFO!F10 -> 36866 | T10: =COUNTRY_INFO!G10 -> 76880
A11: =IF(COUNTRY_INFO!A11=0," ",COUNTRY_INFO!A11) -> Zanzibar | B11: =IF(COUNTRY_INFO!B11=0," ",COUNTRY_INFO!B11) -> Kaskazini Unguja | C11: =IF(COUNTRY_INFO!C11=0," ",COUNTRY_INFO!C11) -> Kaskazini B | D11: =IF(COUNTRY_INFO!$Z11="MDA1 (IVM+ALB)",COUNTRY_INFO!$Z11," ") -> MDA1 (IVM+ALB) | E11: March 2022 | G11: 28426 | H11: 59281 | I11: =SUM(F11:H11) -> 87707 | K11: 22057 | L11: 44668 | M11: =SUM(J11:L11) -> 66725 | O11: =IF(G11<>0,IF(K11/G11*100=0,"-",K11/G11*100)," ") -> 77.59445578 | P11: =IF(H11<>0,IF(L11/H11*100=0,"-",L11/H11*100)," ") -> 75.34960611 | Q11: =IF(I11<>0,IF(M11/I11*100=0,"-",M11/I11*100)," ") -> 76.07716602 | S11: =COUNTRY_INFO!F11 -> 29276 | T11: =COUNTRY_INFO!G11 -> 61053
A12: =IF(COUNTRY_INFO!A12=0," ",COUNTRY_INFO!A12) -> Zanzibar | B12: =IF(COUNTRY_INFO!B12=0," ",COUNTRY_INFO!B12) -> Kusini Unguja | C12: =IF(COUNTRY_INFO!C12=0," ",COUNTRY_INFO!C12) -> Kusini | D12: =IF(COUNTRY_INFO!$Z12="MDA1 (IVM+ALB)",COUNTRY_INFO!$Z12," ") -> MDA1 (IVM+ALB) | E12: March 2022 | G12: 13211 | H12: 27550 | I12: 40761 | K12: 13876 | L12: 23863 | M12: 37739 | O12: 105.0336841 | P12: 86.61705989 | Q12: 92.58605039 | S12: =COUNTRY_INFO!F12 -> 13606 | T12: =COUNTRY_INFO!G12 -> 28374
A13: =IF(COUNTRY_INFO!A13=0," ",COUNTRY_INFO!A13) -> Zanzibar | B13: =IF(COUNTRY_INFO!B13=0," ",COUNTRY_INFO!B13) -> Kusini Unguja | C13: =IF(COUNTRY_INFO!C13=0," ",COUNTRY_INFO!C13) -> Kati | D13: =IF(COUNTRY_INFO!$Z13="MDA1 (IVM+ALB)",COUNTRY_INFO!$Z13," ") -> MDA1 (IVM+ALB) | E13: March 2022 | G13: 24867 | H13: 51858 | I13: 76725 | K13: 33243 | L13: 44828 | M13: 78071 | O13: 133.6831946 | P13: 86.44375024 | Q13: 101.7543174 | S13: =COUNTRY_INFO!F13 -> 25611 | T13: =COUNTRY_INFO!G13 -> 53409
A14: =IF(COUNTRY_INFO!A14=0," ",COUNTRY_INFO!A14) -> Zanzibar | B14: =IF(COUNTRY_INFO!B14=0," ",COUNTRY_INFO!B14) -> Mjini Magharibi | C14: =IF(COUNTRY_INFO!C14=0," ",COUNTRY_INFO!C14) -> Mjini | D14: =IF(COUNTRY_INFO!$Z14="MDA1 (IVM+ALB)",COUNTRY_INFO!$Z14," ") -> MDA1 (IVM+ALB) | E14: March 2022 | G14: 77427 | H14: 161469 | I14: 238896 | K14: 48753 | L14: 120719 | M14: 169472 | O14: 62.96640707 | P14: 74.7629576 | Q14: 70.93965575 | S14: =COUNTRY_INFO!F14 -> 79743 | T14: =COUNTRY_INFO!G14 -> 166297
A15: =IF(COUNTRY_INFO!A15=0," ",COUNTRY_INFO!A15) -> Zanzibar | B15: =IF(COUNTRY_INFO!B15=0," ",COUNTRY_INFO!B15) -> Mjini Magharibi | C15: =IF(COUNTRY_INFO!C15=0," ",COUNTRY_INFO!C15) -> Magharibi A | D15: =IF(COUNTRY_INFO!$Z15="MDA1 (IVM+ALB)",COUNTRY_INFO!$Z15," ") -> MDA1 (IVM+ALB) | E15: March 2022 | G15: 54648 | H15: 113965 | I15: 168613 | K15: 95355 | L15: 132352 | M15: 227707 | O15: 174.4894598 | P15: 116.1339008 | Q15: 135.0471197 | S15: =COUNTRY_INFO!F15 -> 56282 | T15: =COUNTRY_INFO!G15 -> 117372
A16: =IF(COUNTRY_INFO!A16=0," ",COUNTRY_INFO!A16) -> Zanzibar | B16: =IF(COUNTRY_INFO!B16=0," ",COUNTRY_INFO!B16) -> Mjini Magharibi | C16: =IF(COUNTRY_INFO!C16=0," ",COUNTRY_INFO!C16) -> Magharibi B | D16: =IF(COUNTRY_INFO!$Z16="MDA1 (IVM+ALB)",COUNTRY_INFO!$Z16," ") -> MDA1 (IVM+ALB) | E16: March 2022 | G16: 70733 | H16: 147509 | I16: 218242 | K16: 82499 | L16: 133269 | M16: 215768 | O16: 116.6343856 | P16: 90.34635175 | Q16: 98.86639602 | S16: =COUNTRY_INFO!F16 -> 72848 | T16: =COUNTRY_INFO!G16 -> 151920
A17: =IF(COUNTRY_INFO!A17=0," ",COUNTRY_INFO!A17) -> Zanzibar | B17: =IF(COUNTRY_INFO!B17=0," ",COUNTRY_INFO!B17) -> Kusini Pemba | C17: =IF(COUNTRY_INFO!C17=0," ",COUNTRY_INFO!C17) -> Chake chake | D17: =IF(COUNTRY_INFO!$Z17="MDA1 (IVM+ALB)",COUNTRY_INFO!$Z17," ") -> MDA1 (IVM+ALB) | E17: March 2022 | G17: 38318 | H17: 79910 | I17: 118228 | K17: 28996 | L17: 59507 | M17: 88503 | O17: 75.67200793 | P17: 74.46752597 | Q17: 74.85790168 | S17: =COUNTRY_INFO!F17 -> 39464 | T17: =COUNTRY_INFO!G17 -> 82299
A18: =IF(COUNTRY_INFO!A18=0," ",COUNTRY_INFO!A18) -> Zanzibar | B18: =IF(COUNTRY_INFO!B18=0," ",COUNTRY_INFO!B18) -> Kusini Pemba | C18: =IF(COUNTRY_INFO!C18=0," ",COUNTRY_INFO!C18) -> Mkoani | D18: =IF(COUNTRY_INFO!$Z18="MDA1 (IVM+ALB)",COUNTRY_INFO!$Z18," ") -> MDA1 (IVM+ALB) | E18: March 2022 | G18: 38226 | H18: 79717 | I18: 117943 | K18: 35547 | L18: 56168 | M18: 91715 | O18: 92.99168105 | P18: 70.4592496 | Q18: 77.76213934 | S18: =COUNTRY_INFO!F18 -> 39369 | T18: =COUNTRY_INFO!G18 -> 82100
A19: =IF(COUNTRY_INFO!A19=0," ",COUNTRY_INFO!A19) -> Zanzibar | B19: =IF(COUNTRY_INFO!B19=0," ",COUNTRY_INFO!B19) -> Kaskazini Pemba | C19: =IF(COUNTRY_INFO!C19=0," ",COUNTRY_INFO!C19) -> Wete | D19: =IF(COUNTRY_INFO!$Z19="MDA1 (IVM+ALB)",COUNTRY_INFO!$Z19," ") -> MDA1 (IVM+ALB) | E19: March 2022 | G19: 40838 | H19: 85164 | I19: 126002 | K19: 36500 | L19: 62091 | M19: 98591 | O19: 89.37754053 | P19: 72.90756658 | Q19: 78.2455834 | S19: =COUNTRY_INFO!F19 -> 43206 | T19: =COUNTRY_INFO!G19 -> 90103
A20: =IF(COUNTRY_INFO!A20=0," ",COUNTRY_INFO!A20) -> Zanzibar | B20: =IF(COUNTRY_INFO!B20=0," ",COUNTRY_INFO!B20) -> Kaskazini Pemba | C20: =IF(COUNTRY_INFO!C20=0," ",COUNTRY_INFO!C20) -> Micheweni | D20: =IF(COUNTRY_INFO!$Z20="MDA1 (IVM+ALB)",COUNTRY_INFO!$Z20," ") -> MDA1 (IVM+ALB) | E20: March 2022 | G20: 41951 | H20: 87487 | I20: 129438 | K20: 32737 | L20: 56643 | M20: 89380 | O20: 78.03628042 | P20: 64.74447632 | Q20: 69.05236484 | S20: =COUNTRY_INFO!F20 -> 42059 | T20: =COUNTRY_INFO!G20 -> 87711

Sheet MDA2 (hidden)
A1: MDA 2 - Diethylcarbamazine citrate (DEC) + Albendazole (ALB)
A2: Administrative structure, population requiring PC by age group, population treated by age group and coverage
A4: TOTAL | F4: =SUBTOTAL(9,F$10:F$1010) -> 0 | G4: 0 | H4: 0 | I4: 0 | J4: 0 | K4: 0 | L4: 0 | M4: 0 | N4: =IF(F4<>0,IF(J4/F4*100=0,"-",J4/F4*100)," ") ->  | O4: =IF(G4<>0,IF(K4/G4*100=0,"-",K4/G4*100)," ") ->  | P4: =IF(H4<>0,IF(L4/H4*100=0,"-",L4/H4*100)," ") ->  | Q4: =IF(I4<>0,IF(M4/I4*100=0,"-",M4/I4*100)," ") -> 
A6: Country administrative structure | D6: PC implemented | E6: Date | F6: Population targeted for MDA 2 | J6: Population treated | N6: Programme coverage (%)
A7: Country | B7: Province/State | C7: District | F7: PreSAC | G7: SAC | H7: Adults | I7: Total | J7: PreSAC | K7: SAC | L7: Adults | M7: Total | N7: PreSAC | O7: SAC | P7: Adults | Q7: Total
A10: =IF(COUNTRY_INFO!A10=0," ",COUNTRY_INFO!A10) -> Zanzibar | B10: =IF(COUNTRY_INFO!B10=0," ",COUNTRY_INFO!B10) -> Kaskazini Unguja | C10: =IF(COUNTRY_INFO!C10=0," ",COUNTRY_INFO!C10) -> Kaskazini A | D10: =IF(COUNTRY_INFO!$Z10="MDA2 (DEC+ALB)",COUNTRY_INFO!$Z10," ") ->  | I10: =SUM(F10:H10) -> 0 | M10: =SUM(J10:L10) -> 0 | N10: =IF(F10<>0,IF(J10/F10*100=0,"-",J10/F10*100)," ") ->  | O10: =IF(G10<>0,IF(K10/G10*100=0,"-",K10/G10*100)," ") -> 
A11: =IF(COUNTRY_INFO!A11=0," ",COUNTRY_INFO!A11) -> Zanzibar | B11: =IF(COUNTRY_INFO!B11=0," ",COUNTRY_INFO!B11) -> Kaskazini Unguja | C11: =IF(COUNTRY_INFO!C11=0," ",COUNTRY_INFO!C11) -> Kaskazini B | D11: =IF(COUNTRY_INFO!$Z11="MDA2 (DEC+ALB)",COUNTRY_INFO!$Z11," ") ->  | I11: =SUM(F11:H11) -> 0 | M11: =SUM(J11:L11) -> 0 | N11: =IF(F11<>0,IF(J11/F11*100=0,"-",J11/F11*100)," ") ->  | O11: =IF(G11<>0,IF(K11/G11*100=0,"-",K11/G11*100)," ") ->  | P11: =IF(H11<>0,IF(L11/H11*100=0,"-",L11/H11*100)," ") ->  | Q11: =IF(I11<>0,IF(M11/I11*100=0,"-",M11/I11*100)," ") -> 
A12: =IF(COUNTRY_INFO!A12=0," ",COUNTRY_INFO!A12) -> Zanzibar | B12: =IF(COUNTRY_INFO!B12=0," ",COUNTRY_INFO!B12) -> Kusini Unguja | C12: =IF(COUNTRY_INFO!C12=0," ",COUNTRY_INFO!C12) -> Kusini | D12: =IF(COUNTRY_INFO!$Z12="MDA2 (DEC+ALB)",COUNTRY_INFO!$Z12," ") ->  | I12: 0 | M12: 0
A13: =IF(COUNTRY_INFO!A13=0," ",COUNTRY_INFO!A13) -> Zanzibar | B13: =IF(COUNTRY_INFO!B13=0," ",COUNTRY_INFO!B13) -> Kusini Unguja | C13: =IF(COUNTRY_INFO!C13=0," ",COUNTRY_INFO!C13) -> Kati | D13: =IF(COUNTRY_INFO!$Z13="MDA2 (DEC+ALB)",COUNTRY_INFO!$Z13," ") ->  | I13: 0 | M13: 0
A14: =IF(COUNTRY_INFO!A14=0," ",COUNTRY_INFO!A14) -> Zanzibar | B14: =IF(COUNTRY_INFO!B14=0," ",COUNTRY_INFO!B14) -> Mjini Magharibi | C14: =IF(COUNTRY_INFO!C14=0," ",COUNTRY_INFO!C14) -> Mjini | D14: =IF(COUNTRY_INFO!$Z14="MDA2 (DEC+ALB)",COUNTRY_INFO!$Z14," ") ->  | I14: 0 | M14: 0
A15: =IF(COUNTRY_INFO!A15=0," ",COUNTRY_INFO!A15) -> Zanzibar | B15: =IF(COUNTRY_INFO!B15=0," ",COUNTRY_INFO!B15) -> Mjini Magharibi | C15: =IF(COUNTRY_INFO!C15=0," ",COUNTRY_INFO!C15) -> Magharibi A | D15: =IF(COUNTRY_INFO!$Z15="MDA2 (DEC+ALB)",COUNTRY_INFO!$Z15," ") ->  | I15: 0 | M15: 0
A16: =IF(COUNTRY_INFO!A16=0," ",COUNTRY_INFO!A16) -> Zanzibar | B16: =IF(COUNTRY_INFO!B16=0," ",COUNTRY_INFO!B16) -> Mjini Magharibi | C16: =IF(COUNTRY_INFO!C16=0," ",COUNTRY_INFO!C16) -> Magharibi B | D16: =IF(COUNTRY_INFO!$Z16="MDA2 (DEC+ALB)",COUNTRY_INFO!$Z16," ") ->  | I16: 0 | M16: 0
A17: =IF(COUNTRY_INFO!A17=0," ",COUNTRY_INFO!A17) -> Zanzibar | B17: =IF(COUNTRY_INFO!B17=0," ",COUNTRY_INFO!B17) -> Kusini Pemba | C17: =IF(COUNTRY_INFO!C17=0," ",COUNTRY_INFO!C17) -> Chake chake | D17: =IF(COUNTRY_INFO!$Z17="MDA2 (DEC+ALB)",COUNTRY_INFO!$Z17," ") ->  | I17: 0 | M17: 0
A18: =IF(COUNTRY_INFO!A18=0," ",COUNTRY_INFO!A18) -> Zanzibar | B18: =IF(COUNTRY_INFO!B18=0," ",COUNTRY_INFO!B18) -> Kusini Pemba | C18: =IF(COUNTRY_INFO!C18=0," ",COUNTRY_INFO!C18) -> Mkoani | D18: =IF(COUNTRY_INFO!$Z18="MDA2 (DEC+ALB)",COUNTRY_INFO!$Z18," ") ->  | I18: 0 | M18: 0
A19: =IF(COUNTRY_INFO!A19=0," ",COUNTRY_INFO!A19) -> Zanzibar | B19: =IF(COUNTRY_INFO!B19=0," ",COUNTRY_INFO!B19) -> Kaskazini Pemba | C19: =IF(COUNTRY_INFO!C19=0," ",COUNTRY_INFO!C19) -> Wete | D19: =IF(COUNTRY_INFO!$Z19="MDA2 (DEC+ALB)",COUNTRY_INFO!$Z19," ") ->  | I19: 0 | M19: 0
A20: =IF(COUNTRY_INFO!A20=0," ",COUNTRY_INFO!A20) -> Zanzibar | B20: =IF(COUNTRY_INFO!B20=0," ",COUNTRY_INFO!B20) -> Kaskazini Pemba | C20: =IF(COUNTRY_INFO!C20=0," ",COUNTRY_INFO!C20) -> Micheweni | D20: =IF(COUNTRY_INFO!$Z20="MDA2 (DEC+ALB)",COUNTRY_INFO!$Z20," ") ->  | I20: 0 | M20: 0

Sheet MDA3 (hidden)
A1: MDA 3 - Ivermectin (IVM)
A2: Administrative structure, population requiring PC by age group, population treated by age group and coverage
A4: TOTAL | F4: =SUBTOTAL(9,F$10:F$1010) -> 0 | G4: 0 | H4: 0 | I4: 0 | J4: 0 | K4: 0 | L4: 0 | M4: 0 | N4: 0 | O4: 0 | P4: 0 | Q4: 0 | R4: =IF(F4<>0,IF(O4/F4*100=0,"-",O4/F4*100)," ") ->  | S4: =IF(G4<>0,IF(P4/G4*100=0,"-",P4/G4*100)," ") ->  | T4: =IF(H4<>0,IF(Q4/H4*100=0,"-",Q4/H4*100)," ") -> 
A6: Country administrative structure | D6: PC implemented | E6: Date | F6: Population targeted for MDA 3 | I6: Population treated - 1st round | L6: Population treated - 2nd round | O6: Population treated | R6: Programme coverage (%)
A7: Country | B7: Province/State | C7: District | F7: SAC | G7: Adults | H7: Total | I7: SAC | J7: Adults | K7: Total | L7: SAC | M7: Adults | N7: Total | O7: SAC | P7: Adults | Q7: Total | R7: SAC | S7: Adults | T7: Total
A10: =IF(COUNTRY_INFO!A10=0," ",COUNTRY_INFO!A10) -> Zanzibar | B10: =IF(COUNTRY_INFO!B10=0," ",COUNTRY_INFO!B10) -> Kaskazini Unguja | C10: =IF(COUNTRY_INFO!C10=0," ",COUNTRY_INFO!C10) -> Kaskazini A | D10: =IF(COUNTRY_INFO!$Z10="MDA3 (IVM)",COUNTRY_INFO!$Z10," ") ->  | H10: =SUM(F10:G10) -> 0 | K10: =SUM(I10:J10) -> 0 | N10: =SUM(L10:M10) -> 0 | O10: =MAX(I10,L10) -> 0 | P10: 0 | Q10: =SUM(O10:P10) -> 0 | R10: =IF(F10<>0,IF(MAX(I10,L10)/F10*100=0,"-",MAX(I10,L10)/F10*100)," ") ->  | T10: =IF(H10<>0,IF((MAX(I10,L10)+MAX(J10,M10))/H10*100=0,"-",(MAX(I10,L10)+MAX(J10,M10))/H10*100)," ") -> 
A11: =IF(COUNTRY_INFO!A11=0," ",COUNTRY_INFO!A11) -> Zanzibar | B11: =IF(COUNTRY_INFO!B11=0," ",COUNTRY_INFO!B11) -> Kaskazini Unguja | C11: =IF(COUNTRY_INFO!C11=0," ",COUNTRY_INFO!C11) -> Kaskazini B | D11: =IF(COUNTRY_INFO!$Z11="MDA3 (IVM)",COUNTRY_INFO!$Z11," ") ->  | H11: =SUM(F11:G11) -> 0 | K11: =SUM(I11:J11) -> 0 | N11: =SUM(L11:M11) -> 0 | O11: =MAX(I11,L11) -> 0 | P11: =MAX(J11,M11) -> 0 | Q11: =SUM(O11:P11) -> 0 | R11: =IF(F11<>0,IF(MAX(I11,L11)/F11*100=0,"-",MAX(I11,L11)/F11*100)," ") ->  | S11: =IF(G11<>0,IF(MAX(J11,M11)/G11*100=0,"-",MAX(J11,M11)/G11*100)," ") ->  | T11: =IF(H11<>0,IF((MAX(I11,L11)+MAX(J11,M11))/H11*100=0,"-",(MAX(I11,L11)+MAX(J11,M11))/H11*100)," ") -> 
A12: =IF(COUNTRY_INFO!A12=0," ",COUNTRY_INFO!A12) -> Zanzibar | B12: =IF(COUNTRY_INFO!B12=0," ",COUNTRY_INFO!B12) -> Kusini Unguja | C12: =IF(COUNTRY_INFO!C12=0," ",COUNTRY_INFO!C12) -> Kusini | D12: =IF(COUNTRY_INFO!$Z12="MDA3 (IVM)",COUNTRY_INFO!$Z12," ") ->  | H12: 0 | K12: 0 | N12: 0 | O12: 0 | P12: 0 | Q12: 0
A13: =IF(COUNTRY_INFO!A13=0," ",COUNTRY_INFO!A13) -> Zanzibar | B13: =IF(COUNTRY_INFO!B13=0," ",COUNTRY_INFO!B13) -> Kusini Unguja | C13: =IF(COUNTRY_INFO!C13=0," ",COUNTRY_INFO!C13) -> Kati | D13: =IF(COUNTRY_INFO!$Z13="MDA3 (IVM)",COUNTRY_INFO!$Z13," ") ->  | H13: 0 | K13: 0 | N13: 0 | O13: 0 | P13: 0 | Q13: 0
A14: =IF(COUNTRY_INFO!A14=0," ",COUNTRY_INFO!A14) -> Zanzibar | B14: =IF(COUNTRY_INFO!B14=0," ",COUNTRY_INFO!B14) -> Mjini Magharibi | C14: =IF(COUNTRY_INFO!C14=0," ",COUNTRY_INFO!C14) -> Mjini | D14: =IF(COUNTRY_INFO!$Z14="MDA3 (IVM)",COUNTRY_INFO!$Z14," ") ->  | H14: 0 | K14: 0 | N14: 0 | O14: 0 | P14: 0 | Q14: 0
A15: =IF(COUNTRY_INFO!A15=0," ",COUNTRY_INFO!A15) -> Zanzibar | B15: =IF(COUNTRY_INFO!B15=0," ",COUNTRY_INFO!B15) -> Mjini Magharibi | C15: =IF(COUNTRY_INFO!C15=0," ",COUNTRY_INFO!C15) -> Magharibi A | D15: =IF(COUNTRY_INFO!$Z15="MDA3 (IVM)",COUNTRY_INFO!$Z15," ") ->  | H15: 0 | K15: 0 | N15: 0 | O15: 0 | P15: 0 | Q15: 0
A16: =IF(COUNTRY_INFO!A16=0," ",COUNTRY_INFO!A16) -> Zanzibar | B16: =IF(COUNTRY_INFO!B16=0," ",COUNTRY_INFO!B16) -> Mjini Magharibi | C16: =IF(COUNTRY_INFO!C16=0," ",COUNTRY_INFO!C16) -> Magharibi B | D16: =IF(COUNTRY_INFO!$Z16="MDA3 (IVM)",COUNTRY_INFO!$Z16," ") ->  | H16: 0 | K16: 0 | N16: 0 | O16: 0 | P16: 0 | Q16: 0
A17: =IF(COUNTRY_INFO!A17=0," ",COUNTRY_INFO!A17) -> Zanzibar | B17: =IF(COUNTRY_INFO!B17=0," ",COUNTRY_INFO!B17) -> Kusini Pemba | C17: =IF(COUNTRY_INFO!C17=0," ",COUNTRY_INFO!C17) -> Chake chake | D17: =IF(COUNTRY_INFO!$Z17="MDA3 (IVM)",COUNTRY_INFO!$Z17," ") ->  | H17: 0 | K17: 0 | N17: 0 | O17: 0 | P17: 0 | Q17: 0
A18: =IF(COUNTRY_INFO!A18=0," ",COUNTRY_INFO!A18) -> Zanzibar | B18: =IF(COUNTRY_INFO!B18=0," ",COUNTRY_INFO!B18) -> Kusini Pemba | C18: =IF(COUNTRY_INFO!C18=0," ",COUNTRY_INFO!C18) -> Mkoani | D18: =IF(COUNTRY_INFO!$Z18="MDA3 (IVM)",COUNTRY_INFO!$Z18," ") ->  | H18: 0 | K18: 0 | N18: 0 | O18: 0 | P18: 0 | Q18: 0
A19: =IF(COUNTRY_INFO!A19=0," ",COUNTRY_INFO!A19) -> Zanzibar | B19: =IF(COUNTRY_INFO!B19=0," ",COUNTRY_INFO!B19) -> Kaskazini Pemba | C19: =IF(COUNTRY_INFO!C19=0," ",COUNTRY_INFO!C19) -> Wete | D19: =IF(COUNTRY_INFO!$Z19="MDA3 (IVM)",COUNTRY_INFO!$Z19," ") ->  | H19: 0 | K19: 0 | N19: 0 | O19: 0 | P19: 0 | Q19: 0
A20: =IF(COUNTRY_INFO!A20=0," ",COUNTRY_INFO!A20) -> Zanzibar | B20: =IF(COUNTRY_INFO!B20=0," ",COUNTRY_INFO!B20) -> Kaskazini Pemba | C20: =IF(COUNTRY_INFO!C20=0," ",COUNTRY_INFO!C20) -> Micheweni | D20: =IF(COUNTRY_INFO!$Z20="MDA3 (IVM)",COUNTRY_INFO!$Z20," ") ->  | H20: 0 | K20: 0 | N20: 0 | O20: 0 | P20: 0 | Q20: 0

Sheet MDA5 (hidden)
A1: MDA 5 - Ivermectin (IVM) + Diethylcarbamazine citrate (DEC) + Albendazole (ALB)
A2: Administrative structure, population requiring PC by age group, population treated by age group and coverage
A4: TOTAL | F4: =SUBTOTAL(9,F$10:F$1010) -> 0 | G4: 0 | H4: 0 | I4: 0 | J4: 0 | K4: 0 | L4: 0 | M4: 0 | N4: =IF(F4<>0,IF(J4/F4*100=0,"-",J4/F4*100)," ") ->  | O4: =IF(G4<>0,IF(K4/G4*100=0,"-",K4/G4*100)," ") ->  | P4: =IF(H4<>0,IF(L4/H4*100=0,"-",L4/H4*100)," ") ->  | Q4: =IF(I4<>0,IF(M4/I4*100=0,"-",M4/I4*100)," ") -> 
A6: Country administrative structure | D6: PC implemented | E6: Date | F6: Population targeted for MDA 5 | J6: Population treated | N6: Programme coverage (%)
A7: Country | B7: Province/State | C7: District | F7: PreSAC | G7: SAC | H7: Adults | I7: Total | J7: PreSAC | K7: SAC | L7: Adults | M7: Total | N7: PreSAC | O7: SAC | P7: Adults | Q7: Total
A10: =IF(COUNTRY_INFO!A10=0," ",COUNTRY_INFO!A10) -> Zanzibar | B10: =IF(COUNTRY_INFO!B10=0," ",COUNTRY_INFO!B10) -> Kaskazini Unguja | C10: =IF(COUNTRY_INFO!C10=0," ",COUNTRY_INFO!C10) -> Kaskazini A | D10: =IF(COUNTRY_INFO!$Z10="MDA5 (IDA)",COUNTRY_INFO!$Z10," ") ->  | I10: =SUM(F10:H10) -> 0 | M10: =SUM(J10:L10) -> 0 | N10: =IF(F10<>0,IF(J10/F10*100=0,"-",J10/F10*100)," ") ->  | O10: =IF(G10<>0,IF(K10/G10*100=0,"-",K10/G10*100)," ") -> 
A11: =IF(COUNTRY_INFO!A11=0," ",COUNTRY_INFO!A11) -> Zanzibar | B11: =IF(COUNTRY_INFO!B11=0," ",COUNTRY_INFO!B11) -> Kaskazini Unguja | C11: =IF(COUNTRY_INFO!C11=0," ",COUNTRY_INFO!C11) -> Kaskazini B | D11: =IF(COUNTRY_INFO!$Z11="MDA5 (IDA)",COUNTRY_INFO!$Z11," ") ->  | I11: =SUM(F11:H11) -> 0 | M11: =SUM(J11:L11) -> 0 | N11: =IF(F11<>0,IF(J11/F11*100=0,"-",J11/F11*100)," ") ->  | O11: =IF(G11<>0,IF(K11/G11*100=0,"-",K11/G11*100)," ") ->  | P11: =IF(H11<>0,IF(L11/H11*100=0,"-",L11/H11*100)," ") ->  | Q11: =IF(I11<>0,IF(M11/I11*100=0,"-",M11/I11*100)," ") -> 
A12: =IF(COUNTRY_INFO!A12=0," ",COUNTRY_INFO!A12) -> Zanzibar | B12: =IF(COUNTRY_INFO!B12=0," ",COUNTRY_INFO!B12) -> Kusini Unguja | C12: =IF(COUNTRY_INFO!C12=0," ",COUNTRY_INFO!C12) -> Kusini | D12: =IF(COUNTRY_INFO!$Z12="MDA5 (IDA)",COUNTRY_INFO!$Z12," ") ->  | I12: 0 | M12: 0
A13: =IF(COUNTRY_INFO!A13=0," ",COUNTRY_INFO!A13) -> Zanzibar | B13: =IF(COUNTRY_INFO!B13=0," ",COUNTRY_INFO!B13) -> Kusini Unguja | C13: =IF(COUNTRY_INFO!C13=0," ",COUNTRY_INFO!C13) -> Kati | D13: =IF(COUNTRY_INFO!$Z13="MDA5 (IDA)",COUNTRY_INFO!$Z13," ") ->  | I13: 0 | M13: 0
A14: =IF(COUNTRY_INFO!A14=0," ",COUNTRY_INFO!A14) -> Zanzibar | B14: =IF(COUNTRY_INFO!B14=0," ",COUNTRY_INFO!B14) -> Mjini Magharibi | C14: =IF(COUNTRY_INFO!C14=0," ",COUNTRY_INFO!C14) -> Mjini | D14: =IF(COUNTRY_INFO!$Z14="MDA5 (IDA)",COUNTRY_INFO!$Z14," ") ->  | I14: 0 | M14: 0
A15: =IF(COUNTRY_INFO!A15=0," ",COUNTRY_INFO!A15) -> Zanzibar | B15: =IF(COUNTRY_INFO!B15=0," ",COUNTRY_INFO!B15) -> Mjini Magharibi | C15: =IF(COUNTRY_INFO!C15=0," ",COUNTRY_INFO!C15) -> Magharibi A | D15: =IF(COUNTRY_INFO!$Z15="MDA5 (IDA)",COUNTRY_INFO!$Z15," ") ->  | I15: 0 | M15: 0
A16: =IF(COUNTRY_INFO!A16=0," ",COUNTRY_INFO!A16) -> Zanzibar | B16: =IF(COUNTRY_INFO!B16=0," ",COUNTRY_INFO!B16) -> Mjini Magharibi | C16: =IF(COUNTRY_INFO!C16=0," ",COUNTRY_INFO!C16) -> Magharibi B | D16: =IF(COUNTRY_INFO!$Z16="MDA5 (IDA)",COUNTRY_INFO!$Z16," ") ->  | I16: 0 | M16: 0
A17: =IF(COUNTRY_INFO!A17=0," ",COUNTRY_INFO!A17) -> Zanzibar | B17: =IF(COUNTRY_INFO!B17=0," ",COUNTRY_INFO!B17) -> Kusini Pemba | C17: =IF(COUNTRY_INFO!C17=0," ",COUNTRY_INFO!C17) -> Chake chake | D17: =IF(COUNTRY_INFO!$Z17="MDA5 (IDA)",COUNTRY_INFO!$Z17," ") ->  | I17: 0 | M17: 0
A18: =IF(COUNTRY_INFO!A18=0," ",COUNTRY_INFO!A18) -> Zanzibar | B18: =IF(COUNTRY_INFO!B18=0," ",COUNTRY_INFO!B18) -> Kusini Pemba | C18: =IF(COUNTRY_INFO!C18=0," ",COUNTRY_INFO!C18) -> Mkoani | D18: =IF(COUNTRY_INFO!$Z18="MDA5 (IDA)",COUNTRY_INFO!$Z18," ") ->  | I18: 0 | M18: 0
A19: =IF(COUNTRY_INFO!A19=0," ",COUNTRY_INFO!A19) -> Zanzibar | B19: =IF(COUNTRY_INFO!B19=0," ",COUNTRY_INFO!B19) -> Kaskazini Pemba | C19: =IF(COUNTRY_INFO!C19=0," ",COUNTRY_INFO!C19) -> Wete | D19: =IF(COUNTRY_INFO!$Z19="MDA5 (IDA)",COUNTRY_INFO!$Z19," ") ->  | I19: 0 | M19: 0
A20: =IF(COUNTRY_INFO!A20=0," ",COUNTRY_INFO!A20) -> Zanzibar | B20: =IF(COUNTRY_INFO!B20=0," ",COUNTRY_INFO!B20) -> Kaskazini Pemba | C20: =IF(COUNTRY_INFO!C20=0," ",COUNTRY_INFO!C20) -> Micheweni | D20: =IF(COUNTRY_INFO!$Z20="MDA5 (IDA)",COUNTRY_INFO!$Z20," ") ->  | I20: 0 | M20: 0

Sheet T1
A1: T 1 - Praziquantel (PZQ) and Albendazole (ALB) or Mebendazole (MBD)
A2: Administrative structure, population requiring PC by age group, population treated by age group and coverage
A4: TOTAL | G4: =SUBTOTAL(9,G$10:G$1010) -> 0 | H4: 0 | I4: 0 | J4: 0 | K4: 0 | L4: 0 | M4: 0 | N4: 0 | O4: =IF(G4<>0,IF(K4/G4*100=0,"-",K4/G4*100)," ") ->  | P4: =IF(H4<>0,IF(L4/H4*100=0,"-",L4/H4*100)," ") ->  | Q4: =IF(I4<>0,IF(M4/I4*100=0,"-",M4/I4*100)," ") ->  | R4: =IF(J4<>0,IF(N4/J4*100=0,"-",N4/J4*100)," ") -> 
A6: Country administrative structure | D6: PC implemented | E6: Medicine | F6: Date | G6: Population targeted for T1 | K6: Population treated | O6: Programme coverage (%)
A7: Country | B7: Province/State | C7: District | G7: PreSAC | H7: SAC | I7: Adults | J7: Total | K7: PreSAC | L7: SAC | M7: Adults | N7: Total | O7: PreSAC | P7: SAC | Q7: Adults | R7: Total
A10: =IF(COUNTRY_INFO!A10=0," ",COUNTRY_INFO!A10) -> Zanzibar | B10: =IF(COUNTRY_INFO!B10=0," ",COUNTRY_INFO!B10) -> Kaskazini Unguja | C10: =IF(COUNTRY_INFO!C10=0," ",COUNTRY_INFO!C10) -> Kaskazini A | D10: =IF(OR(COUNTRY_INFO!$Z10="T1 (PZQ+ALB/MBD)",COUNTRY_INFO!$AA10="T1 (PZQ+ALB/MBD)"),"T1 (PZQ+ALB/MBD)"," ") ->  | J10: =SUM(G10:I10) -> 0 | N10: =SUM(K10:M10) -> 0 | O10: =IF(G10<>0,IF(K10/G10*100=0,"-",K10/G10*100)," ") ->  | P10: =IF(H10<>0,IF(L10/H10*100=0,"-",L10/H10*100)," ") ->  | Q10: =IF(I10<>0,IF(M10/I10*100=0,"-",M10/I10*100)," ") -> 
A11: =IF(COUNTRY_INFO!A11=0," ",COUNTRY_INFO!A11) -> Zanzibar | B11: =IF(COUNTRY_INFO!B11=0," ",COUNTRY_INFO!B11) -> Kaskazini Unguja | C11: =IF(COUNTRY_INFO!C11=0," ",COUNTRY_INFO!C11) -> Kaskazini B | D11: =IF(OR(COUNTRY_INFO!$Z11="T1 (PZQ+ALB/MBD)",COUNTRY_INFO!$AA11="T1 (PZQ+ALB/MBD)"),"T1 (PZQ+ALB/MBD)"," ") ->  | J11: =SUM(G11:I11) -> 0 | N11: =SUM(K11:M11) -> 0 | O11: =IF(G11<>0,IF(K11/G11*100=0,"-",K11/G11*100)," ") ->  | P11: =IF(H11<>0,IF(L11/H11*100=0,"-",L11/H11*100)," ") ->  | Q11: =IF(I11<>0,IF(M11/I11*100=0,"-",M11/I11*100)," ") ->  | R11: =IF(J11<>0,IF(N11/J11*100=0,"-",N11/J11*100)," ") -> 
A12: =IF(COUNTRY_INFO!A12=0," ",COUNTRY_INFO!A12) -> Zanzibar | B12: =IF(COUNTRY_INFO!B12=0," ",COUNTRY_INFO!B12) -> Kusini Unguja | C12: =IF(COUNTRY_INFO!C12=0," ",COUNTRY_INFO!C12) -> Kusini | D12: =IF(OR(COUNTRY_INFO!$Z12="T1 (PZQ+ALB/MBD)",COUNTRY_INFO!$AA12="T1 (PZQ+ALB/MBD)"),"T1 (PZQ+ALB/MBD)"," ") ->  | J12: 0 | N12: 0
A13: =IF(COUNTRY_INFO!A13=0," ",COUNTRY_INFO!A13) -> Zanzibar | B13: =IF(COUNTRY_INFO!B13=0," ",COUNTRY_INFO!B13) -> Kusini Unguja | C13: =IF(COUNTRY_INFO!C13=0," ",COUNTRY_INFO!C13) -> Kati | D13: =IF(OR(COUNTRY_INFO!$Z13="T1 (PZQ+ALB/MBD)",COUNTRY_INFO!$AA13="T1 (PZQ+ALB/MBD)"),"T1 (PZQ+ALB/MBD)"," ") ->  | J13: 0 | N13: 0
A14: =IF(COUNTRY_INFO!A14=0," ",COUNTRY_INFO!A14) -> Zanzibar | B14: =IF(COUNTRY_INFO!B14=0," ",COUNTRY_INFO!B14) -> Mjini Magharibi | C14: =IF(COUNTRY_INFO!C14=0," ",COUNTRY_INFO!C14) -> Mjini | D14: =IF(OR(COUNTRY_INFO!$Z14="T1 (PZQ+ALB/MBD)",COUNTRY_INFO!$AA14="T1 (PZQ+ALB/MBD)"),"T1 (PZQ+ALB/MBD)"," ") ->  | J14: 0 | N14: 0
A15: =IF(COUNTRY_INFO!A15=0," ",COUNTRY_INFO!A15) -> Zanzibar | B15: =IF(COUNTRY_INFO!B15=0," ",COUNTRY_INFO!B15) -> Mjini Magharibi | C15: =IF(COUNTRY_INFO!C15=0," ",COUNTRY_INFO!C15) -> Magharibi A | D15: =IF(OR(COUNTRY_INFO!$Z15="T1 (PZQ+ALB/MBD)",COUNTRY_INFO!$AA15="T1 (PZQ+ALB/MBD)"),"T1 (PZQ+ALB/MBD)"," ") ->  | J15: 0 | N15: 0
A16: =IF(COUNTRY_INFO!A16=0," ",COUNTRY_INFO!A16) -> Zanzibar | B16: =IF(COUNTRY_INFO!B16=0," ",COUNTRY_INFO!B16) -> Mjini Magharibi | C16: =IF(COUNTRY_INFO!C16=0," ",COUNTRY_INFO!C16) -> Magharibi B | D16: =IF(OR(COUNTRY_INFO!$Z16="T1 (PZQ+ALB/MBD)",COUNTRY_INFO!$AA16="T1 (PZQ+ALB/MBD)"),"T1 (PZQ+ALB/MBD)"," ") ->  | J16: 0 | N16: 0
A17: =IF(COUNTRY_INFO!A17=0," ",COUNTRY_INFO!A17) -> Zanzibar | B17: =IF(COUNTRY_INFO!B17=0," ",COUNTRY_INFO!B17) -> Kusini Pemba | C17: =IF(COUNTRY_INFO!C17=0," ",COUNTRY_INFO!C17) -> Chake chake | D17: =IF(OR(COUNTRY_INFO!$Z17="T1 (PZQ+ALB/MBD)",COUNTRY_INFO!$AA17="T1 (PZQ+ALB/MBD)"),"T1 (PZQ+ALB/MBD)"," ") ->  | J17: 0 | N17: 0
A18: =IF(COUNTRY_INFO!A18=0," ",COUNTRY_INFO!A18) -> Zanzibar | B18: =IF(COUNTRY_INFO!B18=0," ",COUNTRY_INFO!B18) -> Kusini Pemba | C18: =IF(COUNTRY_INFO!C18=0," ",COUNTRY_INFO!C18) -> Mkoani | D18: =IF(OR(COUNTRY_INFO!$Z18="T1 (PZQ+ALB/MBD)",COUNTRY_INFO!$AA18="T1 (PZQ+ALB/MBD)"),"T1 (PZQ+ALB/MBD)"," ") ->  | J18: 0 | N18: 0
A19: =IF(COUNTRY_INFO!A19=0," ",COUNTRY_INFO!A19) -> Zanzibar | B19: =IF(COUNTRY_INFO!B19=0," ",COUNTRY_INFO!B19) -> Kaskazini Pemba | C19: =IF(COUNTRY_INFO!C19=0," ",COUNTRY_INFO!C19) -> Wete | D19: =IF(OR(COUNTRY_INFO!$Z19="T1 (PZQ+ALB/MBD)",COUNTRY_INFO!$AA19="T1 (PZQ+ALB/MBD)"),"T1 (PZQ+ALB/MBD)"," ") ->  | J19: 0 | N19: 0
A20: =IF(COUNTRY_INFO!A20=0," ",COUNTRY_INFO!A20) -> Zanzibar | B20: =IF(COUNTRY_INFO!B20=0," ",COUNTRY_INFO!B20) -> Kaskazini Pemba | C20: =IF(COUNTRY_INFO!C20=0," ",COUNTRY_INFO!C20) -> Micheweni | D20: =IF(OR(COUNTRY_INFO!$Z20="T1 (PZQ+ALB/MBD)",COUNTRY_INFO!$AA20="T1 (PZQ+ALB/MBD)"),"T1 (PZQ+ALB/MBD)"," ") ->  | J20: 0 | N20: 0

Sheet T2
A1: T 2 - Praziquantel (PZQ)
A2: Administrative structure, population requiring PC by age group, population treated by age group and coverage
A4: TOTAL | F4: =SUBTOTAL(9,F$10:F$1010) -> 224971 | G4: =SUBTOTAL(9,G$10:G$1010) -> 451973 | H4: 942560 | I4: 1619504 | J4: =SUBTOTAL(9,J$10:J$1010) -> 92354 | K4: 408263 | L4: 684472 | M4: 1185089 | N4: 0 | O4: 0 | P4: 0 | Q4: 0 | R4: 92354 | S4: 408263 | T4: 684472 | U4: 1185089 | V4: =IF(F4<>0,IF(R4/F4*100=0,"-",R4/F4*100)," ") -> 41.05151331 | W4: =IF(G4<>0,IF(S4/G4*100=0,"-",S4/G4*100)," ") -> 90.32906833 | X4: =IF(H4<>0,IF(T4/H4*100=0,"-",T4/H4*100)," ") -> 72.61840095 | Y4: =IF(I4<>0,IF(U4/I4*100=0,"-",U4/I4*100)," ") -> 73.17604649
A6: Country administrative structure | D6: PC implemented | E6: Date | F6: Population targeted for T2 | J6: Population treated | N6: Population treated in HOT SPOTS | R6: Total population treated | V6: Programme coverage (%)
A7: Country | B7: Province/State | C7: District | F7: PreSAC | G7: SAC | H7: Adults | I7: Total | J7: PreSAC | K7: SAC | L7: Adults | M7: Total | N7: PreSAC | O7: SAC | P7: Adults | Q7: Total | R7: PreSAC | S7: SAC | T7: Adults | U7: Total | V7: PreSAC | W7: SAC | X7: Adults | Y7: Total
A10: =IF(COUNTRY_INFO!A10=0," ",COUNTRY_INFO!A10) -> Zanzibar | B10: =IF(COUNTRY_INFO!B10=0," ",COUNTRY_INFO!B10) -> Kaskazini Unguja | C10: =IF(COUNTRY_INFO!C10=0," ",COUNTRY_INFO!C10) -> Kaskazini A | D10: =IF(OR(COUNTRY_INFO!$Z10="T2 (PZQ)",COUNTRY_INFO!$AA10="T2 (PZQ)"),"T2 (PZQ)"," ") -> T2 (PZQ) | E10: March 2022 | F10: 17847 | G10: 35795 | H10: 74649 | I10: =SUM(F10:H10) -> 128291 | J10: 10718 | K10: 46821 | L10: 73886 | M10: =SUM(J10:L10) -> 131425 | Q10: =SUM(N10:P10) -> 0 | R10: =MAX(J10,N10) -> 10718 | S10: =MAX(K10,O10) -> 46821 | T10: =MAX(L10,P10) -> 73886 | U10: =SUM(R10:T10) -> 131425 | V10: =IF(F10<>0,IF(R10/F10*100=0,"-",R10/F10*100)," ") -> 60.05491119 | W10: =IF(G10<>0,IF(S10/G10*100=0,"-",S10/G10*100)," ") -> 130.8031848 | X10: =IF(H10<>0,IF(T10/H10*100=0,"-",T10/H10*100)," ") -> 98.97788316 | Y10: =IF(I10<>0,IF(U10/I10*100=0,"-",U10/I10*100)," ") -> 102.4428838 | Z10: 10661 | AA10: =Z10=R10 -> FALSE
A11: =IF(COUNTRY_INFO!A11=0," ",COUNTRY_INFO!A11) -> Zanzibar | B11: =IF(COUNTRY_INFO!B11=0," ",COUNTRY_INFO!B11) -> Kaskazini Unguja | C11: =IF(COUNTRY_INFO!C11=0," ",COUNTRY_INFO!C11) -> Kaskazini B | D11: =IF(OR(COUNTRY_INFO!$Z11="T2 (PZQ)",COUNTRY_INFO!$AA11="T2 (PZQ)"),"T2 (PZQ)"," ") -> T2 (PZQ) | E11: March 2022 | F11: 14172 | G11: 28426 | H11: 59281 | I11: =SUM(F11:H11) -> 101879 | J11: 6736 | K11: 25898 | L11: 47766 | M11: =SUM(J11:L11) -> 80400 | Q11: =SUM(N11:P11) -> 0 | R11: =MAX(J11,N11) -> 6736 | S11: =MAX(K11,O11) -> 25898 | T11: =MAX(L11,P11) -> 47766 | U11: =SUM(R11:T11) -> 80400 | V11: =IF(F11<>0,IF(R11/F11*100=0,"-",R11/F11*100)," ") -> 47.53034152 | W11: =IF(G11<>0,IF(S11/G11*100=0,"-",S11/G11*100)," ") -> 91.10673327 | X11: =IF(H11<>0,IF(T11/H11*100=0,"-",T11/H11*100)," ") -> 80.57556384 | Y11: =IF(I11<>0,IF(U11/I11*100=0,"-",U11/I11*100)," ") -> 78.91714681 | Z11: 5994 | AA11: =Z11=R11 -> FALSE
A12: =IF(COUNTRY_INFO!A12=0," ",COUNTRY_INFO!A12) -> Zanzibar | B12: =IF(COUNTRY_INFO!B12=0," ",COUNTRY_INFO!B12) -> Kusini Unguja | C12: =IF(COUNTRY_INFO!C12=0," ",COUNTRY_INFO!C12) -> Kusini | D12: =IF(OR(COUNTRY_INFO!$Z12="T2 (PZQ)",COUNTRY_INFO!$AA12="T2 (PZQ)"),"T2 (PZQ)"," ") ->  | I12: 0 | J12: 0 | M12: 0 | Q12: 0 | R12: 0 | S12: 0 | T12: 0 | U12: 0 | Z12: 2845 | AA12: FALSE
A13: =IF(COUNTRY_INFO!A13=0," ",COUNTRY_INFO!A13) -> Zanzibar | B13: =IF(COUNTRY_INFO!B13=0," ",COUNTRY_INFO!B13) -> Kusini Unguja | C13: =IF(COUNTRY_INFO!C13=0," ",COUNTRY_INFO!C13) -> Kati | D13: =IF(OR(COUNTRY_INFO!$Z13="T2 (PZQ)",COUNTRY_INFO!$AA13="T2 (PZQ)"),"T2 (PZQ)"," ") -> T2 (PZQ) | E13: March 2022 | F13: 12398 | G13: 25611 | H13: 53409 | I13: 91418 | J13: 7169 | K13: 33284 | L13: 43923 | M13: 84376 | Q13: 0 | R13: 7169 | S13: 33284 | T13: 43923 | U13: 84376 | V13: 57.82384256 | W13: 129.9597829 | X13: 82.23894849 | Y13: 92.29692183 | Z13: 7161 | AA13: FALSE
A14: =IF(COUNTRY_INFO!A14=0," ",COUNTRY_INFO!A14) -> Zanzibar | B14: =IF(COUNTRY_INFO!B14=0," ",COUNTRY_INFO!B14) -> Mjini Magharibi | C14: =IF(COUNTRY_INFO!C14=0," ",COUNTRY_INFO!C14) -> Mjini | D14: =IF(OR(COUNTRY_INFO!$Z14="T2 (PZQ)",COUNTRY_INFO!$AA14="T2 (PZQ)"),"T2 (PZQ)"," ") -> T2 (PZQ) | E14: March 2022 | F14: 38603 | G14: 77427 | H14: 161469 | I14: 277499 | J14: 8179 | K14: 35263 | L14: 97367 | M14: 140809 | Q14: 0 | R14: 8179 | S14: 35263 | T14: 97367 | U14: 140809 | V14: 21.18747248 | W14: 45.54354424 | X14: 60.30073884 | Y14: 50.74216484 | Z14: 11150 | AA14: FALSE
A15: =IF(COUNTRY_INFO!A15=0," ",COUNTRY_INFO!A15) -> Zanzibar | B15: =IF(COUNTRY_INFO!B15=0," ",COUNTRY_INFO!B15) -> Mjini Magharibi | C15: =IF(COUNTRY_INFO!C15=0," ",COUNTRY_INFO!C15) -> Magharibi A | D15: =IF(OR(COUNTRY_INFO!$Z15="T2 (PZQ)",COUNTRY_INFO!$AA15="T2 (PZQ)"),"T2 (PZQ)"," ") -> T2 (PZQ) | E15: March 2022 | F15: 27246 | G15: 54648 | H15: 113965 | I15: 195859 | J15: 10960 | K15: 66495 | L15: 65145 | M15: 142600 | Q15: 0 | R15: 10960 | S15: 66495 | T15: 65145 | U15: 142600 | V15: 40.22608823 | W15: 121.678744 | X15: 57.16228667 | Y15: 72.80747885 | Z15: 7847 | AA15: FALSE
A16: =IF(COUNTRY_INFO!A16=0," ",COUNTRY_INFO!A16) -> Zanzibar | B16: =IF(COUNTRY_INFO!B16=0," ",COUNTRY_INFO!B16) -> Mjini Magharibi | C16: =IF(COUNTRY_INFO!C16=0," ",COUNTRY_INFO!C16) -> Magharibi B | D16: =IF(OR(COUNTRY_INFO!$Z16="T2 (PZQ)",COUNTRY_INFO!$AA16="T2 (PZQ)"),"T2 (PZQ)"," ") -> T2 (PZQ) | E16: March 2022 | F16: 35266 | G16: 70733 | H16: 147509 | I16: 253508 | J16: 17186 | K16: 82499 | L16: 133269 | M16: 232954 | Q16: 0 | R16: 17186 | S16: 82499 | T16: 133269 | U16: 232954 | V16: 48.73249022 | W16: 116.6343856 | X16: 90.34635175 | Y16: 91.89216908 | Z16: 17186 | AA16: TRUE
A17: =IF(COUNTRY_INFO!A17=0," ",COUNTRY_INFO!A17) -> Zanzibar | B17: =IF(COUNTRY_INFO!B17=0," ",COUNTRY_INFO!B17) -> Kusini Pemba | C17: =IF(COUNTRY_INFO!C17=0," ",COUNTRY_INFO!C17) -> Chake chake | D17: =IF(OR(COUNTRY_INFO!$Z17="T2 (PZQ)",COUNTRY_INFO!$AA17="T2 (PZQ)"),"T2 (PZQ)"," ") -> T2 (PZQ) | E17: March 2022 | F17: 19104 | G17: 38318 | H17: 79910 | I17: 137332 | J17: 8948 | K17: 28996 | L17: 59507 | M17: 97451 | Q17: 0 | R17: 8948 | S17: 28996 | T17: 59507 | U17: 97451 | V17: 46.83835846 | W17: 75.67200793 | X17: 74.46752597 | Y17: 70.96015495 | Z17: 8948 | AA17: TRUE
A18: =IF(COUNTRY_INFO!A18=0," ",COUNTRY_INFO!A18) -> Zanzibar | B18: =IF(COUNTRY_INFO!B18=0," ",COUNTRY_INFO!B18) -> Kusini Pemba | C18: =IF(COUNTRY_INFO!C18=0," ",COUNTRY_INFO!C18) -> Mkoani | D18: =IF(OR(COUNTRY_INFO!$Z18="T2 (PZQ)",COUNTRY_INFO!$AA18="T2 (PZQ)"),"T2 (PZQ)"," ") -> T2 (PZQ) | E18: March 2022 | F18: 19058 | G18: 38226 | H18: 79717 | I18: 137001 | J18: 8843 | K18: 35547 | L18: 56168 | M18: 100558 | Q18: 0 | R18: 8843 | S18: 35547 | T18: 56168 | U18: 100558 | V18: 46.40046175 | W18: 92.99168105 | X18: 70.4592496 | Y18: 73.39946424 | Z18: 8558 | AA18: FALSE
A19: =IF(COUNTRY_INFO!A19=0," ",COUNTRY_INFO!A19) -> Zanzibar | B19: =IF(COUNTRY_INFO!B19=0," ",COUNTRY_INFO!B19) -> Kaskazini Pemba | C19: =IF(COUNTRY_INFO!C19=0," ",COUNTRY_INFO!C19) -> Wete | D19: =IF(OR(COUNTRY_INFO!$Z19="T2 (PZQ)",COUNTRY_INFO!$AA19="T2 (PZQ)"),"T2 (PZQ)"," ") -> T2 (PZQ) | E19: March 2022 | F19: 20916 | G19: 40838 | H19: 85164 | I19: 146918 | J19: 8552 | K19: 36500 | L19: 62091 | M19: 107143 | Q19: 0 | R19: 8552 | S19: 36500 | T19: 62091 | U19: 107143 | V19: 40.88735896 | W19: 89.37754053 | X19: 72.90756658 | Y19: 72.92707497 | Z19: 8552 | AA19: TRUE
A20: =IF(COUNTRY_INFO!A20=0," ",COUNTRY_INFO!A20) -> Zanzibar | B20: =IF(COUNTRY_INFO!B20=0," ",COUNTRY_INFO!B20) -> Kaskazini Pemba | C20: =IF(COUNTRY_INFO!C20=0," ",COUNTRY_INFO!C20) -> Micheweni | D20: =IF(OR(COUNTRY_INFO!$Z20="T2 (PZQ)",COUNTRY_INFO!$AA20="T2 (PZQ)"),"T2 (PZQ)"," ") -> T2 (PZQ) | E20: March 2022 | F20: 20361 | G20: 41951 | H20: 87487 | I20: 149799 | J20: 5063 | K20: 16960 | L20: 45350 | M20: 67373 | Q20: 0 | R20: 5063 | S20: 16960 | T20: 45350 | U20: 67373 | V20: 24.86616571 | W20: 40.42811852 | X20: 51.83627282 | Y20: 44.97560064 | Z20: 10086 | AA20: FALSE

Sheet T3_R1
A1: T 3 - Albendazole (ALB) or Mebendazole (MBD) - Round 1 | F1: Select medicine used for treatment of STH for each age group
A2: Administrative structure, population requiring PC by age group, population treated by age group and coverage | F2: ALB | J2: Select the category of Adults
A4: TOTAL | F4: =SUBTOTAL(9,F$10:F$1010) -> 231558 | G4: 0 | H4: 0 | I4: 231558 | J4: 98988 | K4: 0 | L4: 0 | M4: 98988 | N4: =IF(F4<>0,IF(J4/F4*100=0,"-",J4/F4*100)," ") -> 42.74868499 | O4: =IF(G4<>0,IF(K4/G4*100=0,"-",K4/G4*100)," ") ->  | P4: =IF(H4<>0,IF(L4/H4*100=0,"-",L4/H4*100)," ") ->  | Q4: =IF(I4<>0,IF(M4/I4*100=0,"-",M4/I4*100)," ") -> 42.74868499
A6: Country administrative structure | D6: PC implemented | E6: Date | F6: Population targeted for T3 | J6: Population treated | N6: Programme coverage (%)
A7: Country | B7: Province/State | C7: District | F7: PreSAC | G7: SAC | H7: Adults | I7: Total | J7: PreSAC | K7: SAC | L7: Adults | M7: Total | N7: PreSAC | O7: SAC | P7: Adults | Q7: Total
A10: =IF(COUNTRY_INFO!A10=0," ",COUNTRY_INFO!A10) -> Zanzibar | B10: =IF(COUNTRY_INFO!B10=0," ",COUNTRY_INFO!B10) -> Kaskazini Unguja | C10: =IF(COUNTRY_INFO!C10=0," ",COUNTRY_INFO!C10) -> Kaskazini A | D10: T3 (ALB/MBD) | E10: March 2022 | F10: 17847 | I10: =SUM(F10:H10) -> 17847 | J10: 10661 | M10: =SUM(J10:L10) -> 10661 | N10: =IF(F10<>0,IF(J10/F10*100=0,"-",J10/F10*100)," ") -> 59.73552978 | Q10: 59.73552978
A11: =IF(COUNTRY_INFO!A11=0," ",COUNTRY_INFO!A11) -> Zanzibar | B11: =IF(COUNTRY_INFO!B11=0," ",COUNTRY_INFO!B11) -> Kaskazini Unguja | C11: =IF(COUNTRY_INFO!C11=0," ",COUNTRY_INFO!C11) -> Kaskazini B | D11: T3 (ALB/MBD) | E11: March 2022 | F11: 14172 | I11: =SUM(F11:H11) -> 14172 | J11: 5994 | M11: =SUM(J11:L11) -> 5994 | N11: =IF(F11<>0,IF(J11/F11*100=0,"-",J11/F11*100)," ") -> 42.29466554 | O11: =IF(G11<>0,IF(K11/G11*100=0,"-",K11/G11*100)," ") ->  | P11: =IF(H11<>0,IF(L11/H11*100=0,"-",L11/H11*100)," ") ->  | Q11: =IF(I11<>0,IF(M11/I11*100=0,"-",M11/I11*100)," ") -> 42.29466554
A12: =IF(COUNTRY_INFO!A12=0," ",COUNTRY_INFO!A12) -> Zanzibar | B12: =IF(COUNTRY_INFO!B12=0," ",COUNTRY_INFO!B12) -> Kusini Unguja | C12: =IF(COUNTRY_INFO!C12=0," ",COUNTRY_INFO!C12) -> Kusini | D12: T3 (ALB/MBD) | E12: March 2022 | F12: 6587 | I12: 6587 | J12: 2845 | M12: 2845 | N12: 43.19113405 | Q12: 43.19113405
A13: =IF(COUNTRY_INFO!A13=0," ",COUNTRY_INFO!A13) -> Zanzibar | B13: =IF(COUNTRY_INFO!B13=0," ",COUNTRY_INFO!B13) -> Kusini Unguja | C13: =IF(COUNTRY_INFO!C13=0," ",COUNTRY_INFO!C13) -> Kati | D13: T3 (ALB/MBD) | E13: March 2022 | F13: 12398 | I13: 12398 | J13: 7161 | M13: 7161 | N13: 57.75931602 | Q13: 57.75931602
A14: =IF(COUNTRY_INFO!A14=0," ",COUNTRY_INFO!A14) -> Zanzibar | B14: =IF(COUNTRY_INFO!B14=0," ",COUNTRY_INFO!B14) -> Mjini Magharibi | C14: =IF(COUNTRY_INFO!C14=0," ",COUNTRY_INFO!C14) -> Mjini | D14: T3 (ALB/MBD) | E14: March 2022 | F14: 38603 | I14: 38603 | J14: 11150 | M14: 11150 | N14: 28.88376551 | Q14: 28.88376551
A15: =IF(COUNTRY_INFO!A15=0," ",COUNTRY_INFO!A15) -> Zanzibar | B15: =IF(COUNTRY_INFO!B15=0," ",COUNTRY_INFO!B15) -> Mjini Magharibi | C15: =IF(COUNTRY_INFO!C15=0," ",COUNTRY_INFO!C15) -> Magharibi A | D15: T3 (ALB/MBD) | E15: March 2022 | F15: 27246 | I15: 27246 | J15: 7847 | M15: 7847 | N15: 28.80055788 | Q15: 28.80055788
A16: =IF(COUNTRY_INFO!A16=0," ",COUNTRY_INFO!A16) -> Zanzibar | B16: =IF(COUNTRY_INFO!B16=0," ",COUNTRY_INFO!B16) -> Mjini Magharibi | C16: =IF(COUNTRY_INFO!C16=0," ",COUNTRY_INFO!C16) -> Magharibi B | D16: T3 (ALB/MBD) | E16: March 2022 | F16: 35266 | I16: 35266 | J16: 17186 | M16: 17186 | N16: 48.73249022 | Q16: 48.73249022
A17: =IF(COUNTRY_INFO!A17=0," ",COUNTRY_INFO!A17) -> Zanzibar | B17: =IF(COUNTRY_INFO!B17=0," ",COUNTRY_INFO!B17) -> Kusini Pemba | C17: =IF(COUNTRY_INFO!C17=0," ",COUNTRY_INFO!C17) -> Chake chake | D17: T3 (ALB/MBD) | E17: March 2022 | F17: 19104 | I17: 19104 | J17: 8948 | M17: 8948 | N17: 46.83835846 | Q17: 46.83835846
A18: =IF(COUNTRY_INFO!A18=0," ",COUNTRY_INFO!A18) -> Zanzibar | B18: =IF(COUNTRY_INFO!B18=0," ",COUNTRY_INFO!B18) -> Kusini Pemba | C18: =IF(COUNTRY_INFO!C18=0," ",COUNTRY_INFO!C18) -> Mkoani | D18: T3 (ALB/MBD) | E18: March 2022 | F18: 19058 | I18: 19058 | J18: 8558 | M18: 8558 | N18: 44.90502676 | Q18: 44.90502676
A19: =IF(COUNTRY_INFO!A19=0," ",COUNTRY_INFO!A19) -> Zanzibar | B19: =IF(COUNTRY_INFO!B19=0," ",COUNTRY_INFO!B19) -> Kaskazini Pemba | C19: =IF(COUNTRY_INFO!C19=0," ",COUNTRY_INFO!C19) -> Wete | D19: T3 (ALB/MBD) | E19: March 2022 | F19: 20916 | I19: 20916 | J19: 8552 | M19: 8552 | N19: 40.88735896 | Q19: 40.88735896
A20: =IF(COUNTRY_INFO!A20=0," ",COUNTRY_INFO!A20) -> Zanzibar | B20: =IF(COUNTRY_INFO!B20=0," ",COUNTRY_INFO!B20) -> Kaskazini Pemba | C20: =IF(COUNTRY_INFO!C20=0," ",COUNTRY_INFO!C20) -> Micheweni | D20: T3 (ALB/MBD) | E20: March 2022 | F20: 20361 | I20: 20361 | J20: 10086 | M20: 10086 | N20: 49.53587741 | Q20: 49.53587741

Sheet T3_R2
A1: T 3 - Albendazole (ALB) or Mebendazole (MBD) - Round 2 | F1: Select medicine used for treatment of STH for each age group
A2: Administrative structure, population requiring PC by age group, population treated by age group and coverage | J2: Select the category of Adults
A4: TOTAL | F4: =SUBTOTAL(9,F$10:F$1010) -> 0 | G4: 0 | H4: 0 | I4: 0 | J4: 0 | K4: 0 | L4: 0 | M4: 0 | N4: =IF(F4<>0,IF(J4/F4*100=0,"-",J4/F4*100)," ") ->  | O4: =IF(G4<>0,IF(K4/G4*100=0,"-",K4/G4*100)," ") ->  | P4: =IF(H4<>0,IF(L4/H4*100=0,"-",L4/H4*100)," ") ->  | Q4: =IF(I4<>0,IF(M4/I4*100=0,"-",M4/I4*100)," ") -> 
A6: Country administrative structure | D6: PC implemented | E6: Date | F6: Population targeted for T3 | J6: Population treated | N6: Programme coverage (%)
A7: Country | B7: Province/State | C7: District | F7: PreSAC | G7: SAC | H7: Adults | I7: Total | J7: PreSAC | K7: SAC | L7: Adults | M7: Total | N7: PreSAC | O7: SAC | P7: Adults | Q7: Total
A10: =IF(COUNTRY_INFO!A10=0," ",COUNTRY_INFO!A10) -> Zanzibar | B10: =IF(COUNTRY_INFO!B10=0," ",COUNTRY_INFO!B10) -> Kaskazini Unguja | C10: =IF(COUNTRY_INFO!C10=0," ",COUNTRY_INFO!C10) -> Kaskazini A | D10: =IF(AND(COUNTRY_INFO!$Z10="T3 (ALB/MBD)",COUNTRY_INFO!$AA10="T3 (ALB/MBD)"),"T3 (ALB/MBD)"," ") ->  | I10: =SUM(F10:H10) -> 0 | M10: =SUM(J10:L10) -> 0 | N10: =IF(F10<>0,IF(J10/F10*100=0,"-",J10/F10*100)," ") -> 
A11: =IF(COUNTRY_INFO!A11=0," ",COUNTRY_INFO!A11) -> Zanzibar | B11: =IF(COUNTRY_INFO!B11=0," ",COUNTRY_INFO!B11) -> Kaskazini Unguja | C11: =IF(COUNTRY_INFO!C11=0," ",COUNTRY_INFO!C11) -> Kaskazini B | D11: =IF(AND(COUNTRY_INFO!$Z11="T3 (ALB/MBD)",COUNTRY_INFO!$AA11="T3 (ALB/MBD)"),"T3 (ALB/MBD)"," ") ->  | I11: =SUM(F11:H11) -> 0 | M11: =SUM(J11:L11) -> 0 | N11: =IF(F11<>0,IF(J11/F11*100=0,"-",J11/F11*100)," ") ->  | O11: =IF(G11<>0,IF(K11/G11*100=0,"-",K11/G11*100)," ") ->  | P11: =IF(H11<>0,IF(L11/H11*100=0,"-",L11/H11*100)," ") ->  | Q11: =IF(I11<>0,IF(M11/I11*100=0,"-",M11/I11*100)," ") -> 
A12: =IF(COUNTRY_INFO!A12=0," ",COUNTRY_INFO!A12) -> Zanzibar | B12: =IF(COUNTRY_INFO!B12=0," ",COUNTRY_INFO!B12) -> Kusini Unguja | C12: =IF(COUNTRY_INFO!C12=0," ",COUNTRY_INFO!C12) -> Kusini | D12: =IF(AND(COUNTRY_INFO!$Z12="T3 (ALB/MBD)",COUNTRY_INFO!$AA12="T3 (ALB/MBD)"),"T3 (ALB/MBD)"," ") ->  | I12: 0 | M12: 0
A13: =IF(COUNTRY_INFO!A13=0," ",COUNTRY_INFO!A13) -> Zanzibar | B13: =IF(COUNTRY_INFO!B13=0," ",COUNTRY_INFO!B13) -> Kusini Unguja | C13: =IF(COUNTRY_INFO!C13=0," ",COUNTRY_INFO!C13) -> Kati | D13: =IF(AND(COUNTRY_INFO!$Z13="T3 (ALB/MBD)",COUNTRY_INFO!$AA13="T3 (ALB/MBD)"),"T3 (ALB/MBD)"," ") ->  | I13: 0 | M13: 0
A14: =IF(COUNTRY_INFO!A14=0," ",COUNTRY_INFO!A14) -> Zanzibar | B14: =IF(COUNTRY_INFO!B14=0," ",COUNTRY_INFO!B14) -> Mjini Magharibi | C14: =IF(COUNTRY_INFO!C14=0," ",COUNTRY_INFO!C14) -> Mjini | D14: =IF(AND(COUNTRY_INFO!$Z14="T3 (ALB/MBD)",COUNTRY_INFO!$AA14="T3 (ALB/MBD)"),"T3 (ALB/MBD)"," ") ->  | I14: 0 | M14: 0
A15: =IF(COUNTRY_INFO!A15=0," ",COUNTRY_INFO!A15) -> Zanzibar | B15: =IF(COUNTRY_INFO!B15=0," ",COUNTRY_INFO!B15) -> Mjini Magharibi | C15: =IF(COUNTRY_INFO!C15=0," ",COUNTRY_INFO!C15) -> Magharibi A | D15: =IF(AND(COUNTRY_INFO!$Z15="T3 (ALB/MBD)",COUNTRY_INFO!$AA15="T3 (ALB/MBD)"),"T3 (ALB/MBD)"," ") ->  | I15: 0 | M15: 0
A16: =IF(COUNTRY_INFO!A16=0," ",COUNTRY_INFO!A16) -> Zanzibar | B16: =IF(COUNTRY_INFO!B16=0," ",COUNTRY_INFO!B16) -> Mjini Magharibi | C16: =IF(COUNTRY_INFO!C16=0," ",COUNTRY_INFO!C16) -> Magharibi B | D16: =IF(AND(COUNTRY_INFO!$Z16="T3 (ALB/MBD)",COUNTRY_INFO!$AA16="T3 (ALB/MBD)"),"T3 (ALB/MBD)"," ") ->  | I16: 0 | M16: 0
A17: =IF(COUNTRY_INFO!A17=0," ",COUNTRY_INFO!A17) -> Zanzibar | B17: =IF(COUNTRY_INFO!B17=0," ",COUNTRY_INFO!B17) -> Kusini Pemba | C17: =IF(COUNTRY_INFO!C17=0," ",COUNTRY_INFO!C17) -> Chake chake | D17: =IF(AND(COUNTRY_INFO!$Z17="T3 (ALB/MBD)",COUNTRY_INFO!$AA17="T3 (ALB/MBD)"),"T3 (ALB/MBD)"," ") ->  | I17: 0 | M17: 0
A18: =IF(COUNTRY_INFO!A18=0," ",COUNTRY_INFO!A18) -> Zanzibar | B18: =IF(COUNTRY_INFO!B18=0," ",COUNTRY_INFO!B18) -> Kusini Pemba | C18: =IF(COUNTRY_INFO!C18=0," ",COUNTRY_INFO!C18) -> Mkoani | D18: =IF(AND(COUNTRY_INFO!$Z18="T3 (ALB/MBD)",COUNTRY_INFO!$AA18="T3 (ALB/MBD)"),"T3 (ALB/MBD)"," ") ->  | I18: 0 | M18: 0
A19: =IF(COUNTRY_INFO!A19=0," ",COUNTRY_INFO!A19) -> Zanzibar | B19: =IF(COUNTRY_INFO!B19=0," ",COUNTRY_INFO!B19) -> Kaskazini Pemba | C19: =IF(COUNTRY_INFO!C19=0," ",COUNTRY_INFO!C19) -> Wete | D19: =IF(AND(COUNTRY_INFO!$Z19="T3 (ALB/MBD)",COUNTRY_INFO!$AA19="T3 (ALB/MBD)"),"T3 (ALB/MBD)"," ") ->  | I19: 0 | M19: 0
A20: =IF(COUNTRY_INFO!A20=0," ",COUNTRY_INFO!A20) -> Zanzibar | B20: =IF(COUNTRY_INFO!B20=0," ",COUNTRY_INFO!B20) -> Kaskazini Pemba | C20: =IF(COUNTRY_INFO!C20=0," ",COUNTRY_INFO!C20) -> Micheweni | D20: =IF(AND(COUNTRY_INFO!$Z20="T3 (ALB/MBD)",COUNTRY_INFO!$AA20="T3 (ALB/MBD)"),"T3 (ALB/MBD)"," ") ->  | I20: 0 | M20: 0

Sheet T3_R3
A1: T 3 - Albendazole (ALB) or Mebendazole (MBD) - Round 3 | F1: Select medicine used for treatment of STH for each age group
A2: Administrative structure, population requiring PC by age group, population treated by age group and coverage | J2: Select the category of Adults
A4: TOTAL | F4: =SUBTOTAL(9,F$10:F$1010) -> 0 | G4: 0 | H4: 0 | I4: 0 | J4: 0 | K4: 0 | L4: 0 | M4: 0 | N4: =IF(F4<>0,IF(J4/F4*100=0,"-",J4/F4*100)," ") ->  | O4: =IF(G4<>0,IF(K4/G4*100=0,"-",K4/G4*100)," ") ->  | P4: =IF(H4<>0,IF(L4/H4*100=0,"-",L4/H4*100)," ") ->  | Q4: =IF(I4<>0,IF(M4/I4*100=0,"-",M4/I4*100)," ") -> 
A6: Country administrative structure | D6: PC implemented | E6: Date | F6: Population targeted for T3 | J6: Population treated | N6: Programme coverage (%)
A7: Country | B7: Province/State | C7: District | F7: PreSAC | G7: SAC | H7: Adults | I7: Total | J7: PreSAC | K7: SAC | L7: Adults | M7: Total | N7: PreSAC | O7: SAC | P7: Adults | Q7: Total
A10: =IF(COUNTRY_INFO!A10=0," ",COUNTRY_INFO!A10) -> Zanzibar | B10: =IF(COUNTRY_INFO!B10=0," ",COUNTRY_INFO!B10) -> Kaskazini Unguja | C10: =IF(COUNTRY_INFO!C10=0," ",COUNTRY_INFO!C10) -> Kaskazini A | D10: =IF(COUNTRY_INFO!$AB10="T3 (ALB/MBD)","T3 (ALB/MBD)"," ") ->  | I10: =SUM(F10:H10) -> 0 | M10: =SUM(J10:L10) -> 0 | N10: =IF(F10<>0,IF(J10/F10*100=0,"-",J10/F10*100)," ") -> 
A11: =IF(COUNTRY_INFO!A11=0," ",COUNTRY_INFO!A11) -> Zanzibar | B11: =IF(COUNTRY_INFO!B11=0," ",COUNTRY_INFO!B11) -> Kaskazini Unguja | C11: =IF(COUNTRY_INFO!C11=0," ",COUNTRY_INFO!C11) -> Kaskazini B | D11: =IF(COUNTRY_INFO!$AB11="T3 (ALB/MBD)","T3 (ALB/MBD)"," ") ->  | I11: =SUM(F11:H11) -> 0 | M11: =SUM(J11:L11) -> 0 | N11: =IF(F11<>0,IF(J11/F11*100=0,"-",J11/F11*100)," ") ->  | O11: =IF(G11<>0,IF(K11/G11*100=0,"-",K11/G11*100)," ") ->  | P11: =IF(H11<>0,IF(L11/H11*100=0,"-",L11/H11*100)," ") ->  | Q11: =IF(I11<>0,IF(M11/I11*100=0,"-",M11/I11*100)," ") -> 
A12: =IF(COUNTRY_INFO!A12=0," ",COUNTRY_INFO!A12) -> Zanzibar | B12: =IF(COUNTRY_INFO!B12=0," ",COUNTRY_INFO!B12) -> Kusini Unguja | C12: =IF(COUNTRY_INFO!C12=0," ",COUNTRY_INFO!C12) -> Kusini | D12: =IF(COUNTRY_INFO!$AB12="T3 (ALB/MBD)","T3 (ALB/MBD)"," ") ->  | I12: 0 | M12: 0
A13: =IF(COUNTRY_INFO!A13=0," ",COUNTRY_INFO!A13) -> Zanzibar | B13: =IF(COUNTRY_INFO!B13=0," ",COUNTRY_INFO!B13) -> Kusini Unguja | C13: =IF(COUNTRY_INFO!C13=0," ",COUNTRY_INFO!C13) -> Kati | D13: =IF(COUNTRY_INFO!$AB13="T3 (ALB/MBD)","T3 (ALB/MBD)"," ") ->  | I13: 0 | M13: 0
A14: =IF(COUNTRY_INFO!A14=0," ",COUNTRY_INFO!A14) -> Zanzibar | B14: =IF(COUNTRY_INFO!B14=0," ",COUNTRY_INFO!B14) -> Mjini Magharibi | C14: =IF(COUNTRY_INFO!C14=0," ",COUNTRY_INFO!C14) -> Mjini | D14: =IF(COUNTRY_INFO!$AB14="T3 (ALB/MBD)","T3 (ALB/MBD)"," ") ->  | I14: 0 | M14: 0
A15: =IF(COUNTRY_INFO!A15=0," ",COUNTRY_INFO!A15) -> Zanzibar | B15: =IF(COUNTRY_INFO!B15=0," ",COUNTRY_INFO!B15) -> Mjini Magharibi | C15: =IF(COUNTRY_INFO!C15=0," ",COUNTRY_INFO!C15) -> Magharibi A | D15: =IF(COUNTRY_INFO!$AB15="T3 (ALB/MBD)","T3 (ALB/MBD)"," ") ->  | I15: 0 | M15: 0
A16: =IF(COUNTRY_INFO!A16=0," ",COUNTRY_INFO!A16) -> Zanzibar | B16: =IF(COUNTRY_INFO!B16=0," ",COUNTRY_INFO!B16) -> Mjini Magharibi | C16: =IF(COUNTRY_INFO!C16=0," ",COUNTRY_INFO!C16) -> Magharibi B | D16: =IF(COUNTRY_INFO!$AB16="T3 (ALB/MBD)","T3 (ALB/MBD)"," ") ->  | I16: 0 | M16: 0
A17: =IF(COUNTRY_INFO!A17=0," ",COUNTRY_INFO!A17) -> Zanzibar | B17: =IF(COUNTRY_INFO!B17=0," ",COUNTRY_INFO!B17) -> Kusini Pemba | C17: =IF(COUNTRY_INFO!C17=0," ",COUNTRY_INFO!C17) -> Chake chake | D17: =IF(COUNTRY_INFO!$AB17="T3 (ALB/MBD)","T3 (ALB/MBD)"," ") ->  | I17: 0 | M17: 0
A18: =IF(COUNTRY_INFO!A18=0," ",COUNTRY_INFO!A18) -> Zanzibar | B18: =IF(COUNTRY_INFO!B18=0," ",COUNTRY_INFO!B18) -> Kusini Pemba | C18: =IF(COUNTRY_INFO!C18=0," ",COUNTRY_INFO!C18) -> Mkoani | D18: =IF(COUNTRY_INFO!$AB18="T3 (ALB/MBD)","T3 (ALB/MBD)"," ") ->  | I18: 0 | M18: 0
A19: =IF(COUNTRY_INFO!A19=0," ",COUNTRY_INFO!A19) -> Zanzibar | B19: =IF(COUNTRY_INFO!B19=0," ",COUNTRY_INFO!B19) -> Kaskazini Pemba | C19: =IF(COUNTRY_INFO!C19=0," ",COUNTRY_INFO!C19) -> Wete | D19: =IF(COUNTRY_INFO!$AB19="T3 (ALB/MBD)","T3 (ALB/MBD)"," ") ->  | I19: 0 | M19: 0
A20: =IF(COUNTRY_INFO!A20=0," ",COUNTRY_INFO!A20) -> Zanzibar | B20: =IF(COUNTRY_INFO!B20=0," ",COUNTRY_INFO!B20) -> Kaskazini Pemba | C20: =IF(COUNTRY_INFO!C20=0," ",COUNTRY_INFO!C20) -> Micheweni | D20: =IF(COUNTRY_INFO!$AB20="T3 (ALB/MBD)","T3 (ALB/MBD)"," ") ->  | I20: 0 | M20: 0

Sheet DISTRICT
A1: Number of individuals treated
A2: Administrative structure, population treated by age group and gender
A4: TOTAL | D4: =SUBTOTAL(9,D$10:D$1010) -> 1768965 | E4: =SUBTOTAL(9,E$10:E$1010) -> 0 | F4: 0 | G4: 1284216 | H4: 1264653 | I4: =IF(D4>0,IF(H4/D4*100<>0,H4/D4*100,"-"),0) -> 71.49112617 | J4: =SUBTOTAL(9,J$10:J$1010) -> 0 | K4: 0 | L4: 0 | M4: 1284216 | N4: 0 | O4: =IF(J4>0,IF(N4/J4*100<>0,N4/J4*100,"-"),0) -> 0 | P4: =SUBTOTAL(9,P$10:P$1010) -> 1135855 | Q4: 0 | R4: 0 | S4: 98988 | T4: 98988 | U4: =IF(COUNTRY_INFO!N4>0,IF(T4/COUNTRY_INFO!N4*100<>0,T4/COUNTRY_INFO!N4*100,"-"),0) -> 42.74868499 | V4: 476239 | W4: =SUBTOTAL(9,W$10:W$1010) -> 409803 | X4: =IF(COUNTRY_INFO!O4>0,IF(W4/COUNTRY_INFO!O4*100<>0,W4/COUNTRY_INFO!O4*100,"-"),0) -> 85.67369807 | Y4: =SUBTOTAL(9,Y$10:Y$1010) -> 807977 | Z4: =SUBTOTAL(9,Z$10:Z$1010) -> 425967 | AA4: =IF(COUNTRY_INFO!P4>0,IF(Z4/COUNTRY_INFO!P4*100<>0,Z4/COUNTRY_INFO!P4*100,"-"),0) -> 100 | AB4: =SUBTOTAL(9,AB$10:AB$1010) -> 1383204 | AC4: =SUBTOTAL(9,AC$10:AC$1010) -> 934758 | AD4: =IF(P4>0,IF(AC4/P4*100<>0,AC4/P4*100,"-"),0) -> 82.29553948 | AE4: =SUBTOTAL(9,AE$10:AE$1010) -> 1327606 | AF4: 0 | AG4: 0 | AH4: 92354 | AI4: 84175 | AJ4: =IF(COUNTRY_INFO!R4>0,IF(AI4/COUNTRY_INFO!R4*100<>0,AI4/COUNTRY_INFO!R4*100,"-"),0) -> 60.2204925 | AK4: =SUBTOTAL(9,AK$10:AK$1010) -> 408263 | AL4: 335508 | AM4: =IF(COUNTRY_INFO!S4>0,IF(AL4/COUNTRY_INFO!S4*100<>0,AL4/COUNTRY_INFO!S4*100,"-"),0) -> 87.14923594 | AN4: =SUBTOTAL(9,AN$10:AN$1010) -> 684472 | AO4: 587105 | AP4: =IF(COUNTRY_INFO!T4>0,IF(AO4/COUNTRY_INFO!T4*100<>0,AO4/COUNTRY_INFO!T4*100,"-"),0) -> 73.12788115 | AQ4: =SUBTOTAL(9,AQ$10:AQ$1010) -> 1185089 | AR4: 1006788 | AS4: =IF(AE4>0,IF(AR4/AE4*100<>0,AR4/AE4*100,"-"),0) -> 75.83484859
P5: 1135855 | Q5: 0 | R5: 0 | S5: 98988 | T5: 98988 | Z5: 425967 | AB5: 1383204
A6: Country administrative structure | D6: Population requiring PC for LF | E6: Population treated for lymphatic filariasis | J6: Population requiring PC for ONCHO | K6: Population treated for onchocerciasis | P6: Population requiring PC for STH | Q6: Population treated for STH | AE6: Population requiring PC for SCH | AF6: Population treated for schistosomiasis | AY6: =SUBTOTAL(9,AY10:AY1010) -> 61559 | AZ6: =SUBTOTAL(9,AZ10:AZ1010) -> 231558 | BA6: 478330 | BB6: 997518 | BC6: 1768965 | BD6: =COUNTIF(BD10:BD1010,"Y") -> 11 | BE6: =SUBTOTAL(9,BE10:BE1010) -> 103193 | BF6: 480266 | BG6: 811092 | BH6: 1394551 | BI6: 103193 | BJ6: 413644 | BK6: 796112 | BL6: 1312949 | BM6: =IF(BC6<>0,BL6/BC6,0) -> 0.742213102
A7: Country | B7: Province/State | C7: District | E7: Male | F7: Female | G7: Total treated | H7: Total in need treated | I7: (%) | K7: Male | L7: Female | M7: Total treated | N7: Total in need treated | O7: (%) | Q7: Male | R7: Female | S7: Total PreSAC treated | T7: PreSAC in need treated | U7: PreSAC (%) | V7: Total SAC treated | W7: SAC in need treated | X7: SAC (%) | Y7: Total adults treated | Z7: Adults in need treated | AA7: Adults (%) | AB7: Total treated | AC7: Total in need treated | AD7: (%) | AF7: Male | AG7: Female | AH7: Total PreSAC treated | AI7: PreSAC in need treated | AJ7: PreSAC (%) | AK7: Total SAC treated | AL7: SAC in need treated | AM7: SAC (%) | AN7: Total adults treated | AO7: Adults in need treated | AP7: Adults (%) | AQ7: Total treated | AR7: Total in need treated | AS7: (%) | AU7: LF | AV7: ONCHO | AW7: STH | AX7: SCH | AY7: <1 | AZ7: PreSAC | BA7: SAC | BB7: Adults | BC7: Total | BD7: Dis | BE7: PreSAC | BF7: SAC | BG7: Adults | BH7: Total | BI7: PreSAC | BJ7: SAC | BK7: Adults | BL7: Total | BM7: Coverage
A10: =IF(COUNTRY_INFO!A10=0," ",COUNTRY_INFO!A10) -> Zanzibar | B10: =IF(COUNTRY_INFO!B10=0," ",COUNTRY_INFO!B10) -> Kaskazini Unguja | C10: =IF(COUNTRY_INFO!C10=0," ",COUNTRY_INFO!C10) -> Kaskazini A | D10: =COUNTRY_INFO!L10 -> 136337 | G10: =MAX('MDA1'!M10,'MDA2'!M10,'MDA5'!M10) -> 120545 | H10: =IF(AND(COUNTRY_INFO!H10>0,COUNTRY_INFO!H10<4),IF(D10>G10,G10,D10),0) -> 120545 | I10: =IF(AND(COUNTRY_INFO!H10>0,COUNTRY_INFO!H10<4),IF(G10/D10*100<>0,IF(G10/D10*100>100,100,G10/D10*100),"-"),0) -> 88.41693744 | J10: =COUNTRY_INFO!M10 -> Not required | M10: =MAX('MDA1'!M10,MAX('MDA3'!I10,'MDA3'!L10)+MAX('MDA3'!J10,'MDA3'!M10)) -> 120545 | N10: =IF(AND(COUNTRY_INFO!I10>0,COUNTRY_INFO!I10<4),IF(J10>M10,M10,J10),0) -> 0 | O10: =IF(AND(COUNTRY_INFO!I10>0,COUNTRY_INFO!I10<4),IF(M10/J10*100<>0,IF(M10/J10*100>100,100,M10/J10*100),"-"),0) -> 0 | P10: =COUNTRY_INFO!Q10 -> 87543 | S10: =MAX('MDA2'!J10,'MDA5'!J10,'T1'!K10,MAX(T3_R1!J10,T3_R2!J10,T3_R3!J10)) -> 10661 | T10: =IF(AND(COUNTRY_INFO!J10>1,COUNTRY_INFO!J10<99,COUNTRY_INFO!J10<>4,COUNTRY_INFO!J10<>5),IF(COUNTRY_INFO!N10>S10,S10,COUNTRY_INFO!N10),0) -> 10661 | U10: =IF(AND(COUNTRY_INFO!J10>1,COUNTRY_INFO!J10<99,COUNTRY_INFO!J10<>4,COUNTRY_INFO!J10<>5),IF(T10/COUNTRY_INFO!N10*100<>0,IF(T10/COUNTRY_INFO!N10*100>100,100,T10/COUNTRY_INFO!N10*100),"-"),0) -> 59.73552978 | V10: =MAX('MDA1'!K10,'MDA2'!K10,'MDA5'!K10,'T1'!L10,MAX(T3_R1!K10,T3_R2!K10,T3_R3!K10)) -> 46676 | W10: =IF(AND(COUNTRY_INFO!J10>1,COUNTRY_INFO!J10<99,COUNTRY_INFO!J10<>4,COUNTRY_INFO!J10<>5),IF(COUNTRY_INFO!O10>V10,V10,COUNTRY_INFO!O10),0) -> 36866 | X10: =IF(AND(COUNTRY_INFO!J10>1,COUNTRY_INFO!J10<99,COUNTRY_INFO!J10<>4,COUNTRY_INFO!J10<>5),IF(W10/COUNTRY_INFO!O10*100<>0,IF(W10/COUNTRY_INFO!O10*100>100,100,W10/COUNTRY_INFO!O10*100),"-"),0) -> 100 | Y10: =MAX('MDA1'!L10,'MDA2'!L10,'MDA5'!L10,'T1'!M10,MAX(T3_R1!L10,T3_R2!L10,T3_R3!L10)) -> 73869 | Z10: =IF(AND(COUNTRY_INFO!J10>1,COUNTRY_INFO!J10<99,COUNTRY_INFO!J10<>4,COUNTRY_INFO!J10<>5),IF(COUNTRY_INFO!P10>Y10,Y10,COUNTRY_INFO!P10),0) -> 32830 | AA10: =IF(AND(COUNTRY_INFO!J10>1,COUNTRY_INFO!J10<99,COUNTRY_INFO!J10<>4,COUNTRY_INFO!J10<>5),IF(Z10/COUNTRY_INFO!P10*100<>0,IF(Z10/COUNTRY_INFO!P10*100>100,100,Z10/COUNTRY_INFO!P10*100),"-"),0) -> 100 | AB10: =SUM(S10,V10,Y10) -> 131206 | AC10: =SUM(T10,W10,Z10) -> 80357 | AD10: =IF(AND(COUNTRY_INFO!J10>1,COUNTRY_INFO!J10<99,COUNTRY_INFO!J10<>4,COUNTRY_INFO!J10<>5),IF(AC10/P10*100<>0,IF(AC10/P10*100>100,100,AC10/P10*100),"-"),0) -> 91.79146248 | AE10: =COUNTRY_INFO!U10 -> 127131 | AH10: =MAX('T1'!K10,'T2'!R10) -> 10718 | AI10: =IF(AND(COUNTRY_INFO!K10>1,COUNTRY_INFO!K10<99,COUNTRY_INFO!K10<>4,COUNTRY_INFO!K10<>5),IF(COUNTRY_INFO!R10>AH10,AH10,COUNTRY_INFO!R10),0) -> 10718 | AJ10: =IF(AND(COUNTRY_INFO!K10>1,COUNTRY_INFO!K10<99,COUNTRY_INFO!K10<>4,COUNTRY_INFO!K10<>5),IF(AI10/COUNTRY_INFO!R10*100<>0,IF(AI10/COUNTRY_INFO!R10*100>100,100,AI10/COUNTRY_INFO!R10*100),"-"),0) -> 80.0747105 | AK10: =MAX('T1'!L10,'T2'!S10) -> 46821 | AL10: =IF(AND(COUNTRY_INFO!K10>1,COUNTRY_INFO!K10<99,COUNTRY_INFO!K10<>4,COUNTRY_INFO!K10<>5),IF(COUNTRY_INFO!S10>AK10,AK10,COUNTRY_INFO!S10),0) -> 36866 | AM10: =IF(AND(COUNTRY_INFO!K10>1,COUNTRY_INFO!K10<99,COUNTRY_INFO!K10<>4,COUNTRY_INFO!K10<>5),IF(AL10/COUNTRY_INFO!S10*100<>0,IF(AL10/COUNTRY_INFO!S10*100>100,100,AL10/COUNTRY_INFO!S10*100),"-"),0) -> 100 | AN10: =MAX('T1'!M10,'T2'!T10) -> 73886 | AO10: =IF(AND(COUNTRY_INFO!K10>1,COUNTRY_INFO!K10<99,COUNTRY_INFO!K10<>4,COUNTRY_INFO!K10<>5),IF(COUNTRY_INFO!T10>AN10,AN10,COUNTRY_INFO!T10),0) -> 73886 | AP10: =IF(AND(COUNTRY_INFO!K10>1,COUNTRY_INFO!K10<99,COUNTRY_INFO!K10<>4,COUNTRY_INFO!K10<>5),IF(AO10/COUNTRY_INFO!T10*100<>0,IF(AO10/COUNTRY_INFO!T10*100>100,100,AO10/COUNTRY_INFO!T10*100),"-"),0) -> 96.10561915 | AQ10: =SUM(AH10,AK10,AN10) -> 131425 | AR10: =SUM(AI10,AL10,AO10) -> 121470 | AS10: =IF(AND(COUNTRY_INFO!K10>1,COUNTRY_INFO!K10<99,COUNTRY_INFO!K10<>4,COUNTRY_INFO!K10<>5),IF(AH10/AE10*100<>0,IF(AR10/AE10*100>100,100,AR10/AE10*100),"-"),0) -> 95.54711282 | AU10: =IF(AND(D10<>0,D10<>"Unknown",D10<>"Stopped",D10<>"Not required"),D10/COUNTRY_INFO!D10,0) -> 1 | AV10: =IF(AND(J10<>0,J10<>"Unknown",J10<>"Stopped",J10<>"Not required"),J10/COUNTRY_INFO!D10,0) -> 0 | AW10: =IF(AND(P10<>0,P10<>"Unknown",P10<>"Surveillance",P10<>"Not required"),P10/COUNTRY_INFO!Q10,0) -> 1 | AX10: =IF(AND(AE10<>0,AE10<>"Unknown",AE10<>"Surveillance",AE10<>"Not required"),AE10/COUNTRY_INFO!U10,0) -> 1 | AY10: =IF(AU10>0,D10*PROFILE!$G$7,IF(AV10>0,J10*PROFILE!$G$7,0)) -> 4744.451916 | AZ10: =_xlfn.IFS(OR(AU10>0,AW10>0),COUNTRY_INFO!E10,AV10>0,J10*PROFILE!$G$8,AX10>0,COUNTRY_INFO!R10,COUNTIFS(AU10:AX10,">0")=0,0) -> 17847 | BA10: =_xlfn.IFS(OR(AU10>0,AW10>0),COUNTRY_INFO!F10,AV10>0,J10*PROFILE!$G$9,AX10>0,COUNTRY_INFO!S10,COUNTIFS(AU10:AX10,">0")=0,0) -> 36866 | BB10: =_xlfn.IFS(AU10>0,COUNTRY_INFO!G10,AND(AV10>0,AW10=0,AX10=0),J10*PROFILE!$G$10,AND(AV10>0,AW10>0,AX10=0),MAX(J10*PROFILE!$G$10,COUNTRY_INFO!P10),AND(AV10>0,AW10=0,AX10>0),MAX(J10*PROFILE!$G$10,COUNTRY_INFO!T10),AND(AV10=0,AW10>0,AX10>0),MAX(COUNTRY_INFO!P10,COUNTRY_INFO!T10),AND(AV10=0,AW10>0,AX10=0),COUNTRY_INFO!P10,AND(AV10=0,AW10=0,AX10>0),COUNTRY_INFO!T10,AND(AV10>0,AW10>0,AX10>0),MAX(J10*PROFILE!$G$10,COUNTRY_INFO!P10,COUNTRY_INFO!T10),COUNTIFS(AU10:AX10,">0")=0,0) -> 76880 | BC10: =SUM(AY10:BB10) -> 136337.4519 | BD10: =IF(COUNTIFS(AU10:AX10,">0")=0,0,IF(COUNTIFS(AU10:AX10,">0")<=IF(AND(OR(D10>=0,D10="Not required",D10="Unknown",D10="Stopped"),D10>0,H10>0),1,0)+IF(AND(OR(J10>=0,J10="Not required",J10="Unknown",J10="Stopped"),J10>0,N10>0),1,0)+IF(AND(OR(P10>=0,P10="Not required",P10="Surveillance",P10="Unknown"),P10>0,AC10>0),1,0)+IF(AND(OR(AE10>=0,AE10="Not required",AE10="Surveillance",AE10="Unknown"),AE10>0,AR10>0),1,0),"Y",0)) -> Y | BE10: =MAX('MDA2'!J10,'MDA5'!J10,S10,AH10) -> 10718 | BF10: =MAX('MDA1'!K10,'MDA2'!K10,'MDA3'!I10,'MDA3'!L10,'MDA5'!K10,V10,AK10) -> 46821 | BG10: =MAX('MDA1'!L10,'MDA2'!L10,'MDA3'!J10,'MDA3'!M10,'MDA5'!L10,Y10,AN10) -> 73886 | BH10: =SUM(BE10:BG10) -> 131425 | BI10: =_xlfn.IFS(AND(AU10=0,AW10=0,AX10=0),0,AND(AU10=0,AW10=0,AX10>0),AI10,AND(AU10=0,AW10>0,AX10=0),T10,AND(AU10=0,AW10>0,AX10>0),MAX(T10,AI10),AND(AU10>0,AW10=0,AX10=0),MIN(MAX('MDA2'!J10,'MDA5'!J10),AZ10),AND(AU10>0,AW10=0,AX10>0),MIN(MAX('MDA2'!J10,'MDA5'!J10,AI10),AZ10),AND(AU10>0,AW10>0,AX10=0),MIN(MAX('MDA2'!J10,'MDA5'!J10,T10),AZ10),AND(AU10>0,AW10>0,AX10>0),MIN(MAX('MDA2'!J10,'MDA5'!J10,AI10,T10),AZ10)) -> 10718 | BJ10: =_xlfn.IFS(AND(AU10=0,AV10=0,AW10=0,AX10=0),0,AND(AU10=0,AV10=0,AW10=0,AX10>0),AL10,AND(AU10=0,AV10=0,AW10>0,AX10=0),W10,AND(AU10=0,AV10=0,AW10>0,AX10>0),MAX(W10,AL10),AND(AU10=0,AV10>0,AW10=0,AX10=0),MIN(J10*PROFILE!$G$9,MAX('MDA3'!I10,'MDA3'!L10)),AND(AU10=0,AV10>0,AW10=0,AX10>0),MIN(J10*PROFILE!$G$9,MAX('MDA3'!I10,'MDA3'!L10,AL10)),AND(AU10=0,AV10>0,AW10>0,AX10=0),MIN(J10*PROFILE!$G$9,MAX('MDA3'!I10,'MDA3'!L10,W10)),AND(AU10=0,AV10>0,AW10>0,AX10>0),MIN(J10*PROFILE!$G$9,MAX('MDA3'!I10,'MDA3'!L10,W10,AL10)),AND(AU10>0,AV10=0,AW10=0,AX10=0),MIN(BA10,MAX('MDA1'!K10,'MDA2'!K10,'MDA5'!K10)),AND(AU10>0,AV10=0,AW10=0,AX10>0),MIN(BA10,MAX('MDA1'!K10,'MDA2'!K10,'MDA5'!K10,AL10)),AND(AU10>0,AV10=0,AW10>0,AX10=0),MIN(BA10,MAX('MDA1'!K10,'MDA2'!KL10,'MDA5'!K10,W10)),AND(AU10>0,AV10=0,AW10>0,AX10>0),MIN(BA10,MAX('MDA1'!K10,'MDA2'!K10,'MDA5'!K10,W10,AL10)),AND(AU10>0,AV10>0,AW10=0,AX10=0),MIN(BA10,MAX('MDA1'!K10,'MDA2'!K10,'MDA5'!K10,MAX('MDA3'!I10,'MDA3'!L10))),AND(AU10>0,AV10>0,AW10=0,AX10>0),MIN(BA10,MAX('MDA1'!K10,'MDA2'!K10,'MDA5'!K10,MAX('MDA3'!I10,'MDA3'!L10),AL10)),AND(AU10>0,AV10>0,AW10>0,AX10=0),MIN(BA10,MAX('MDA1'!K10,'MDA2'!K10,'MDA5'!K10,MAX('MDA3'!I10,'MDA3'!L10),W10)),AND(AU10>0,AV10>0,AW10>0,AX10>0),MIN(BA10,MAX('MDA1'!K10,'MDA2'!K10,'MDA5'!K10,MAX('MDA3'!I10,'MDA3'!L10),W10,AL10))) -> 36866 | BK10: =_xlfn.IFS(AND(AU10=0,AV10=0,AW10=0,AX10=0),0,AND(AU10=0,AV10=0,AW10=0,AX10>0),AO10,AND(AU10=0,AV10=0,AW10>0,AX10=0),Z10,AND(AU10=0,AV10=0,AW10>0,AX10>0),MAX(Z10,AO10),AND(AU10=0,AV10>0,AW10=0,AX10=0),MIN(J10*PROFILE!$G$10,MAX('MDA3'!J10,'MDA3'!J10)),AND(AU10=0,AV10>0,AW10=0,AX10>0),MIN(J10*PROFILE!$G$10,MAX('MDA3'!J10,'MDA3'!M10,AO10)),AND(AU10=0,AV10>0,AW10>0,AX10=0),MIN(J10*PROFILE!$G$10,MAX('MDA3'!J10,'MDA3'!M10,Z10)),AND(AU10=0,AV10>0,AW10>0,AX10>0),MIN(J10*PROFILE!$G$10,MAX('MDA3'!J10,'MDA3'!M10,Z10,AO10)),AND(AU10>0,AV10=0,AW10=0,AX10=0),MIN(BB10,MAX('MDA1'!L10,'MDA2'!L10,'MDA5'!L10)),AND(AU10>0,AV10=0,AW10=0,AX10>0),MIN(BB10,MAX('MDA1'!L10,'MDA2'!L10,'MDA5'!L10,AO10)),AND(AU10>0,AV10=0,AW10>0,AX10=0),MIN(BB10,MAX('MDA1'!L10,'MDA2'!L10,'MDA5'!L10,Z10)),AND(AU10>0,AV10=0,AW10>0,AX10>0),MIN(BB10,MAX('MDA1'!L10,'MDA2'!L10,'MDA5'!L10,Z10,AO10)),AND(AU10>0,AV10>0,AW10=0,AX10=0),MIN(BB10,MAX('MDA1'!L10,'MDA2'!L10,'MDA5'!L10,MAX('MDA3'!J10,'MDA3'!M10))),AND(AU10>0,AV10>0,AW10=0,AX10>0),MIN(BB10,MAX('MDA1'!L10,'MDA2'!L10,'MDA5'!L10,MAX('MDA3'!J10,'MDA3'!M10),AO10)),AND(AU10>0,AV10>0,AW10>0,AX10=0),MIN(BB10,MAX('MDA1'!L10,'MDA2'!L10,'MDA5'!L10,MAX('MDA3'!J10,'MDA3'!M10),Z10)),AND(AU10>0,AV10>0,AW10>0,AX10>0),MIN(BB10,MAX('MDA1'!L10,'MDA2'!L10,'MDA5'!L10,MAX('MDA3'!J10,'MDA3'!M10),Z10,AO10))) -> 73886 | BL10: =SUM(BI10:BK10) -> 121470 | BM10: =IF(BC10<>0,BL10/BC10*100,0) -> 89.09510798
A11: =IF(COUNTRY_INFO!A11=0," ",COUNTRY_INFO!A11) -> Zanzibar | B11: =IF(COUNTRY_INFO!B11=0," ",COUNTRY_INFO!B11) -> Kaskazini Unguja | C11: =IF(COUNTRY_INFO!C11=0," ",COUNTRY_INFO!C11) -> Kaskazini B | D11: =COUNTRY_INFO!L11 -> 108269 | G11: =MAX('MDA1'!M11,'MDA2'!M11,'MDA5'!M11) -> 66725 | H11: =IF(AND(COUNTRY_INFO!H11>0,COUNTRY_INFO!H11<4),IF(D11>G11,G11,D11),0) -> 66725 | I11: =IF(AND(COUNTRY_INFO!H11>0,COUNTRY_INFO!H11<4),IF(G11/D11*100<>0,IF(G11/D11*100>100,100,G11/D11*100),"-"),0) -> 61.62890578 | J11: =COUNTRY_INFO!M11 -> Not required | M11: =MAX('MDA1'!M11,MAX('MDA3'!I11,'MDA3'!L11)+MAX('MDA3'!J11,'MDA3'!M11)) -> 66725 | N11: =IF(AND(COUNTRY_INFO!I11>0,COUNTRY_INFO!I11<4),IF(J11>M11,M11,J11),0) -> 0 | O11: =IF(AND(COUNTRY_INFO!I11>0,COUNTRY_INFO!I11<4),IF(M11/J11*100<>0,IF(M11/J11*100>100,100,M11/J11*100),"-"),0) -> 0 | P11: =COUNTRY_INFO!Q11 -> 69519 | S11: =MAX('MDA2'!J11,'MDA5'!J11,'T1'!K11,MAX(T3_R1!J11,T3_R2!J11,T3_R3!J11)) -> 5994 | T11: =IF(AND(COUNTRY_INFO!J11>1,COUNTRY_INFO!J11<99,COUNTRY_INFO!J11<>4,COUNTRY_INFO!J11<>5),IF(COUNTRY_INFO!N11>S11,S11,COUNTRY_INFO!N11),0) -> 5994 | U11: =IF(AND(COUNTRY_INFO!J11>1,COUNTRY_INFO!J11<99,COUNTRY_INFO!J11<>4,COUNTRY_INFO!J11<>5),IF(T11/COUNTRY_INFO!N11*100<>0,IF(T11/COUNTRY_INFO!N11*100>100,100,T11/COUNTRY_INFO!N11*100),"-"),0) -> 42.29466554 | V11: =MAX('MDA1'!K11,'MDA2'!K11,'MDA5'!K11,'T1'!L11,MAX(T3_R1!K11,T3_R2!K11,T3_R3!K11)) -> 22057 | W11: =IF(AND(COUNTRY_INFO!J11>1,COUNTRY_INFO!J11<99,COUNTRY_INFO!J11<>4,COUNTRY_INFO!J11<>5),IF(COUNTRY_INFO!O11>V11,V11,COUNTRY_INFO!O11),0) -> 22057 | X11: =IF(AND(COUNTRY_INFO!J11>1,COUNTRY_INFO!J11<99,COUNTRY_INFO!J11<>4,COUNTRY_INFO!J11<>5),IF(W11/COUNTRY_INFO!O11*100<>0,IF(W11/COUNTRY_INFO!O11*100>100,100,W11/COUNTRY_INFO!O11*100),"-"),0) -> 75.34157672 | Y11: =MAX('MDA1'!L11,'MDA2'!L11,'MDA5'!L11,'T1'!M11,MAX(T3_R1!L11,T3_R2!L11,T3_R3!L11)) -> 44668 | Z11: =IF(AND(COUNTRY_INFO!J11>1,COUNTRY_INFO!J11<99,COUNTRY_INFO!J11<>4,COUNTRY_INFO!J11<>5),IF(COUNTRY_INFO!P11>Y11,Y11,COUNTRY_INFO!P11),0) -> 26071 | AA11: =IF(AND(COUNTRY_INFO!J11>1,COUNTRY_INFO!J11<99,COUNTRY_INFO!J11<>4,COUNTRY_INFO!J11<>5),IF(Z11/COUNTRY_INFO!P11*100<>0,IF(Z11/COUNTRY_INFO!P11*100>100,100,Z11/COUNTRY_INFO!P11*100),"-"),0) -> 100 | AB11: =SUM(S11,V11,Y11) -> 72719 | AC11: =SUM(T11,W11,Z11) -> 54122 | AD11: =IF(AND(COUNTRY_INFO!J11>1,COUNTRY_INFO!J11<99,COUNTRY_INFO!J11<>4,COUNTRY_INFO!J11<>5),IF(AC11/P11*100<>0,IF(AC11/P11*100>100,100,AC11/P11*100),"-"),0) -> 77.85209799 | AE11: =COUNTRY_INFO!U11 -> 100958 | AH11: =MAX('T1'!K11,'T2'!R11) -> 6736 | AI11: =IF(AND(COUNTRY_INFO!K11>1,COUNTRY_INFO!K11<99,COUNTRY_INFO!K11<>4,COUNTRY_INFO!K11<>5),IF(COUNTRY_INFO!R11>AH11,AH11,COUNTRY_INFO!R11),0) -> 6736 | AJ11: =IF(AND(COUNTRY_INFO!K11>1,COUNTRY_INFO!K11<99,COUNTRY_INFO!K11<>4,COUNTRY_INFO!K11<>5),IF(AI11/COUNTRY_INFO!R11*100<>0,IF(AI11/COUNTRY_INFO!R11*100>100,100,AI11/COUNTRY_INFO!R11*100),"-"),0) -> 63.37378869 | AK11: =MAX('T1'!L11,'T2'!S11) -> 25898 | AL11: =IF(AND(COUNTRY_INFO!K11>1,COUNTRY_INFO!K11<99,COUNTRY_INFO!K11<>4,COUNTRY_INFO!K11<>5),IF(COUNTRY_INFO!S11>AK11,AK11,COUNTRY_INFO!S11),0) -> 25898 | AM11: =IF(AND(COUNTRY_INFO!K11>1,COUNTRY_INFO!K11<99,COUNTRY_INFO!K11<>4,COUNTRY_INFO!K11<>5),IF(AL11/COUNTRY_INFO!S11*100<>0,IF(AL11/COUNTRY_INFO!S11*100>100,100,AL11/COUNTRY_INFO!S11*100),"-"),0) -> 88.46153846 | AN11: =MAX('T1'!M11,'T2'!T11) -> 47766 | AO11: =IF(AND(COUNTRY_INFO!K11>1,COUNTRY_INFO!K11<99,COUNTRY_INFO!K11<>4,COUNTRY_INFO!K11<>5),IF(COUNTRY_INFO!T11>AN11,AN11,COUNTRY_INFO!T11),0) -> 47766 | AP11: =IF(AND(COUNTRY_INFO!K11>1,COUNTRY_INFO!K11<99,COUNTRY_INFO!K11<>4,COUNTRY_INFO!K11<>5),IF(AO11/COUNTRY_INFO!T11*100<>0,IF(AO11/COUNTRY_INFO!T11*100>100,100,AO11/COUNTRY_INFO!T11*100),"-"),0) -> 78.23694167 | AQ11: =SUM(AH11,AK11,AN11) -> 80400 | AR11: =SUM(AI11,AL11,AO11) -> 80400 | AS11: =IF(AND(COUNTRY_INFO!K11>1,COUNTRY_INFO!K11<99,COUNTRY_INFO!K11<>4,COUNTRY_INFO!K11<>5),IF(AH11/AE11*100<>0,IF(AR11/AE11*100>100,100,AR11/AE11*100),"-"),0) -> 79.6370768 | AU11: =IF(AND(D11<>0,D11<>"Unknown",D11<>"Stopped",D11<>"Not required"),D11/COUNTRY_INFO!D11,0) -> 1 | AV11: =IF(AND(J11<>0,J11<>"Unknown",J11<>"Stopped",J11<>"Not required"),J11/COUNTRY_INFO!D11,0) -> 0 | AW11: =IF(AND(P11<>0,P11<>"Unknown",P11<>"Surveillance",P11<>"Not required"),P11/COUNTRY_INFO!Q11,0) -> 1 | AX11: =IF(AND(AE11<>0,AE11<>"Unknown",AE11<>"Surveillance",AE11<>"Not required"),AE11/COUNTRY_INFO!U11,0) -> 1 | AY11: =IF(AU11>0,D11*PROFILE!$G$7,IF(AV11>0,J11*PROFILE!$G$7,0)) -> 3767.701097 | AZ11: =_xlfn.IFS(OR(AU11>0,AW11>0),COUNTRY_INFO!E11,AV11>0,J11*PROFILE!$G$8,AX11>0,COUNTRY_INFO!R11,COUNTIFS(AU11:AX11,">0")=0,0) -> 14172 | BA11: =_xlfn.IFS(OR(AU11>0,AW11>0),COUNTRY_INFO!F11,AV11>0,J11*PROFILE!$G$9,AX11>0,COUNTRY_INFO!S11,COUNTIFS(AU11:AX11,">0")=0,0) -> 29276 | BB11: =_xlfn.IFS(AU11>0,COUNTRY_INFO!G11,AND(AV11>0,AW11=0,AX11=0),J11*PROFILE!$G$10,AND(AV11>0,AW11>0,AX11=0),MAX(J11*PROFILE!$G$10,COUNTRY_INFO!P11),AND(AV11>0,AW11=0,AX11>0),MAX(J11*PROFILE!$G$10,COUNTRY_INFO!T11),AND(AV11=0,AW11>0,AX11>0),MAX(COUNTRY_INFO!P11,COUNTRY_INFO!T11),AND(AV11=0,AW11>0,AX11=0),COUNTRY_INFO!P11,AND(AV11=0,AW11=0,AX11>0),COUNTRY_INFO!T11,AND(AV11>0,AW11>0,AX11>0),MAX(J11*PROFILE!$G$10,COUNTRY_INFO!P11,COUNTRY_INFO!T11),COUNTIFS(AU11:AX11,">0")=0,0) -> 61053 | BC11: =SUM(AY11:BB11) -> 108268.7011 | BD11: =IF(COUNTIFS(AU11:AX11,">0")=0,0,IF(COUNTIFS(AU11:AX11,">0")<=IF(AND(OR(D11>=0,D11="Not required",D11="Unknown",D11="Stopped"),D11>0,H11>0),1,0)+IF(AND(OR(J11>=0,J11="Not required",J11="Unknown",J11="Stopped"),J11>0,N11>0),1,0)+IF(AND(OR(P11>=0,P11="Not required",P11="Surveillance",P11="Unknown"),P11>0,AC11>0),1,0)+IF(AND(OR(AE11>=0,AE11="Not required",AE11="Surveillance",AE11="Unknown"),AE11>0,AR11>0),1,0),"Y",0)) -> Y | BE11: =MAX('MDA2'!J11,'MDA5'!J11,S11,AH11) -> 6736 | BF11: =MAX('MDA1'!K11,'MDA2'!K11,'MDA3'!I11,'MDA3'!L11,'MDA5'!K11,V11,AK11) -> 25898 | BG11: =MAX('MDA1'!L11,'MDA2'!L11,'MDA3'!J11,'MDA3'!M11,'MDA5'!L11,Y11,AN11) -> 47766 | BH11: =SUM(BE11:BG11) -> 80400 | BI11: =_xlfn.IFS(AND(AU11=0,AW11=0,AX11=0),0,AND(AU11=0,AW11=0,AX11>0),AI11,AND(AU11=0,AW11>0,AX11=0),T11,AND(AU11=0,AW11>0,AX11>0),MAX(T11,AI11),AND(AU11>0,AW11=0,AX11=0),MIN(MAX('MDA2'!J11,'MDA5'!J11),AZ11),AND(AU11>0,AW11=0,AX11>0),MIN(MAX('MDA2'!J11,'MDA5'!J11,AI11),AZ11),AND(AU11>0,AW11>0,AX11=0),MIN(MAX('MDA2'!J11,'MDA5'!J11,T11),AZ11),AND(AU11>0,AW11>0,AX11>0),MIN(MAX('MDA2'!J11,'MDA5'!J11,AI11,T11),AZ11)) -> 6736 | BJ11: =_xlfn.IFS(AND(AU11=0,AV11=0,AW11=0,AX11=0),0,AND(AU11=0,AV11=0,AW11=0,AX11>0),AL11,AND(AU11=0,AV11=0,AW11>0,AX11=0),W11,AND(AU11=0,AV11=0,AW11>0,AX11>0),MAX(W11,AL11),AND(AU11=0,AV11>0,AW11=0,AX11=0),MIN(J11*PROFILE!$G$9,MAX('MDA3'!I11,'MDA3'!L11)),AND(AU11=0,AV11>0,AW11=0,AX11>0),MIN(J11*PROFILE!$G$9,MAX('MDA3'!I11,'MDA3'!L11,AL11)),AND(AU11=0,AV11>0,AW11>0,AX11=0),MIN(J11*PROFILE!$G$9,MAX('MDA3'!I11,'MDA3'!L11,W11)),AND(AU11=0,AV11>0,AW11>0,AX11>0),MIN(J11*PROFILE!$G$9,MAX('MDA3'!I11,'MDA3'!L11,W11,AL11)),AND(AU11>0,AV11=0,AW11=0,AX11=0),MIN(BA11,MAX('MDA1'!K11,'MDA2'!K11,'MDA5'!K11)),AND(AU11>0,AV11=0,AW11=0,AX11>0),MIN(BA11,MAX('MDA1'!K11,'MDA2'!K11,'MDA5'!K11,AL11)),AND(AU11>0,AV11=0,AW11>0,AX11=0),MIN(BA11,MAX('MDA1'!K11,'MDA2'!KL11,'MDA5'!K11,W11)),AND(AU11>0,AV11=0,AW11>0,AX11>0),MIN(BA11,MAX('MDA1'!K11,'MDA2'!K11,'MDA5'!K11,W11,AL11)),AND(AU11>0,AV11>0,AW11=0,AX11=0),MIN(BA11,MAX('MDA1'!K11,'MDA2'!K11,'MDA5'!K11,MAX('MDA3'!I11,'MDA3'!L11))),AND(AU11>0,AV11>0,AW11=0,AX11>0),MIN(BA11,MAX('MDA1'!K11,'MDA2'!K11,'MDA5'!K11,MAX('MDA3'!I11,'MDA3'!L11),AL11)),AND(AU11>0,AV11>0,AW11>0,AX11=0),MIN(BA11,MAX('MDA1'!K11,'MDA2'!K11,'MDA5'!K11,MAX('MDA3'!I11,'MDA3'!L11),W11)),AND(AU11>0,AV11>0,AW11>0,AX11>0),MIN(BA11,MAX('MDA1'!K11,'MDA2'!K11,'MDA5'!K11,MAX('MDA3'!I11,'MDA3'!L11),W11,AL11))) -> 25898 | BK11: =_xlfn.IFS(AND(AU11=0,AV11=0,AW11=0,AX11=0),0,AND(AU11=0,AV11=0,AW11=0,AX11>0),AO11,AND(AU11=0,AV11=0,AW11>0,AX11=0),Z11,AND(AU11=0,AV11=0,AW11>0,AX11>0),MAX(Z11,AO11),AND(AU11=0,AV11>0,AW11=0,AX11=0),MIN(J11*PROFILE!$G$10,MAX('MDA3'!J11,'MDA3'!J11)),AND(AU11=0,AV11>0,AW11=0,AX11>0),MIN(J11*PROFILE!$G$10,MAX('MDA3'!J11,'MDA3'!M11,AO11)),AND(AU11=0,AV11>0,AW11>0,AX11=0),MIN(J11*PROFILE!$G$10,MAX('MDA3'!J11,'MDA3'!M11,Z11)),AND(AU11=0,AV11>0,AW11>0,AX11>0),MIN(J11*PROFILE!$G$10,MAX('MDA3'!J11,'MDA3'!M11,Z11,AO11)),AND(AU11>0,AV11=0,AW11=0,AX11=0),MIN(BB11,MAX('MDA1'!L11,'MDA2'!L11,'MDA5'!L11)),AND(AU11>0,AV11=0,AW11=0,AX11>0),MIN(BB11,MAX('MDA1'!L11,'MDA2'!L11,'MDA5'!L11,AO11)),AND(AU11>0,AV11=0,AW11>0,AX11=0),MIN(BB11,MAX('MDA1'!L11,'MDA2'!L11,'MDA5'!L11,Z11)),AND(AU11>0,AV11=0,AW11>0,AX11>0),MIN(BB11,MAX('MDA1'!L11,'MDA2'!L11,'MDA5'!L11,Z11,AO11)),AND(AU11>0,AV11>0,AW11=0,AX11=0),MIN(BB11,MAX('MDA1'!L11,'MDA2'!L11,'MDA5'!L11,MAX('MDA3'!J11,'MDA3'!M11))),AND(AU11>0,AV11>0,AW11=0,AX11>0),MIN(BB11,MAX('MDA1'!L11,'MDA2'!L11,'MDA5'!L11,MAX('MDA3'!J11,'MDA3'!M11),AO11)),AND(AU11>0,AV11>0,AW11>0,AX11=0),MIN(BB11,MAX('MDA1'!L11,'MDA2'!L11,'MDA5'!L11,MAX('MDA3'!J11,'MDA3'!M11),Z11)),AND(AU11>0,AV11>0,AW11>0,AX11>0),MIN(BB11,MAX('MDA1'!L11,'MDA2'!L11,'MDA5'!L11,MAX('MDA3'!J11,'MDA3'!M11),Z11,AO11))) -> 47766 | BL11: =SUM(BI11:BK11) -> 80400 | BM11: =IF(BC11<>0,BL11/BC11*100,0) -> 74.25968834
A12: =IF(COUNTRY_INFO!A12=0," ",COUNTRY_INFO!A12) -> Zanzibar | B12: =IF(COUNTRY_INFO!B12=0," ",COUNTRY_INFO!B12) -> Kusini Unguja | C12: =IF(COUNTRY_INFO!C12=0," ",COUNTRY_INFO!C12) -> Kusini | D12: =COUNTRY_INFO!L12 -> 50318 | G12: =MAX('MDA1'!M12,'MDA2'!M12,'MDA5'!M12) -> 37739 | H12: =IF(AND(COUNTRY_INFO!H12>0,COUNTRY_INFO!H12<4),IF(D12>G12,G12,D12),0) -> 37739 | I12: =IF(AND(COUNTRY_INFO!H12>0,COUNTRY_INFO!H12<4),IF(G12/D12*100<>0,IF(G12/D12*100>100,100,G12/D12*100),"-"),0) -> 75.00099368 | J12: =COUNTRY_INFO!M12 -> Not required | M12: =MAX('MDA1'!M12,MAX('MDA3'!I12,'MDA3'!L12)+MAX('MDA3'!J12,'MDA3'!M12)) -> 37739 | N12: =IF(AND(COUNTRY_INFO!I12>0,COUNTRY_INFO!I12<4),IF(J12>M12,M12,J12),0) -> 0 | O12: =IF(AND(COUNTRY_INFO!I12>0,COUNTRY_INFO!I12<4),IF(M12/J12*100<>0,IF(M12/J12*100>100,100,M12/J12*100),"-"),0) -> 0 | P12: =COUNTRY_INFO!Q12 -> 32310 | S12: =MAX('MDA2'!J12,'MDA5'!J12,'T1'!K12,MAX(T3_R1!J12,T3_R2!J12,T3_R3!J12)) -> 2845 | T12: =IF(AND(COUNTRY_INFO!J12>1,COUNTRY_INFO!J12<99,COUNTRY_INFO!J12<>4,COUNTRY_INFO!J12<>5),IF(COUNTRY_INFO!N12>S12,S12,COUNTRY_INFO!N12),0) -> 2845 | U12: =IF(AND(COUNTRY_INFO!J12>1,COUNTRY_INFO!J12<99,COUNTRY_INFO!J12<>4,COUNTRY_INFO!J12<>5),IF(T12/COUNTRY_INFO!N12*100<>0,IF(T12/COUNTRY_INFO!N12*100>100,100,T12/COUNTRY_INFO!N12*100),"-"),0) -> 43.19113405 | V12: =MAX('MDA1'!K12,'MDA2'!K12,'MDA5'!K12,'T1'!L12,MAX(T3_R1!K12,T3_R2!K12,T3_R3!K12)) -> 13876 | W12: =IF(AND(COUNTRY_INFO!J12>1,COUNTRY_INFO!J12<99,COUNTRY_INFO!J12<>4,COUNTRY_INFO!J12<>5),IF(COUNTRY_INFO!O12>V12,V12,COUNTRY_INFO!O12),0) -> 13606 | X12: =IF(AND(COUNTRY_INFO!J12>1,COUNTRY_INFO!J12<99,COUNTRY_INFO!J12<>4,COUNTRY_INFO!J12<>5),IF(W12/COUNTRY_INFO!O12*100<>0,IF(W12/COUNTRY_INFO!O12*100>100,100,W12/COUNTRY_INFO!O12*100),"-"),0) -> 100 | Y12: =MAX('MDA1'!L12,'MDA2'!L12,'MDA5'!L12,'T1'!M12,MAX(T3_R1!L12,T3_R2!L12,T3_R3!L12)) -> 23863 | Z12: =IF(AND(COUNTRY_INFO!J12>1,COUNTRY_INFO!J12<99,COUNTRY_INFO!J12<>4,COUNTRY_INFO!J12<>5),IF(COUNTRY_INFO!P12>Y12,Y12,COUNTRY_INFO!P12),0) -> 12117 | AA12: =IF(AND(COUNTRY_INFO!J12>1,COUNTRY_INFO!J12<99,COUNTRY_INFO!J12<>4,COUNTRY_INFO!J12<>5),IF(Z12/COUNTRY_INFO!P12*100<>0,IF(Z12/COUNTRY_INFO!P12*100>100,100,Z12/COUNTRY_INFO!P12*100),"-"),0) -> 100 | AB12: 40584 | AC12: 28568 | AD12: =IF(AND(COUNTRY_INFO!J12>1,COUNTRY_INFO!J12<99,COUNTRY_INFO!J12<>4,COUNTRY_INFO!J12<>5),IF(AC12/P12*100<>0,IF(AC12/P12*100>100,100,AC12/P12*100),"-"),0) -> 88.4184463 | AE12: =COUNTRY_INFO!U12 -> 0 | AH12: =MAX('T1'!K12,'T2'!R12) -> 0 | AI12: =IF(AND(COUNTRY_INFO!K12>1,COUNTRY_INFO!K12<99,COUNTRY_INFO!K12<>4,COUNTRY_INFO!K12<>5),IF(COUNTRY_INFO!R12>AH12,AH12,COUNTRY_INFO!R12),0) -> 0 | AJ12: =IF(AND(COUNTRY_INFO!K12>1,COUNTRY_INFO!K12<99,COUNTRY_INFO!K12<>4,COUNTRY_INFO!K12<>5),IF(AI12/COUNTRY_INFO!R12*100<>0,IF(AI12/COUNTRY_INFO!R12*100>100,100,AI12/COUNTRY_INFO!R12*100),"-"),0) -> 0 | AK12: =MAX('T1'!L12,'T2'!S12) -> 0 | AL12: =IF(AND(COUNTRY_INFO!K12>1,COUNTRY_INFO!K12<99,COUNTRY_INFO!K12<>4,COUNTRY_INFO!K12<>5),IF(COUNTRY_INFO!S12>AK12,AK12,COUNTRY_INFO!S12),0) -> 0 | AM12: =IF(AND(COUNTRY_INFO!K12>1,COUNTRY_INFO!K12<99,COUNTRY_INFO!K12<>4,COUNTRY_INFO!K12<>5),IF(AL12/COUNTRY_INFO!S12*100<>0,IF(AL12/COUNTRY_INFO!S12*100>100,100,AL12/COUNTRY_INFO!S12*100),"-"),0) -> 0 | AN12: =MAX('T1'!M12,'T2'!T12) -> 0 | AO12: =IF(AND(COUNTRY_INFO!K12>1,COUNTRY_INFO!K12<99,COUNTRY_INFO!K12<>4,COUNTRY_INFO!K12<>5),IF(COUNTRY_INFO!T12>AN12,AN12,COUNTRY_INFO!T12),0) -> 0 | AP12: =IF(AND(COUNTRY_INFO!K12>1,COUNTRY_INFO!K12<99,COUNTRY_INFO!K12<>4,COUNTRY_INFO!K12<>5),IF(AO12/COUNTRY_INFO!T12*100<>0,IF(AO12/COUNTRY_INFO!T12*100>100,100,AO12/COUNTRY_INFO!T12*100),"-"),0) -> 0 | AQ12: 0 | AR12: 0 | AS12: =IF(AND(COUNTRY_INFO!K12>1,COUNTRY_INFO!K12<99,COUNTRY_INFO!K12<>4,COUNTRY_INFO!K12<>5),IF(AH12/AE12*100<>0,IF(AR12/AE12*100>100,100,AR12/AE12*100),"-"),0) -> 0 | AU12: =IF(AND(D12<>0,D12<>"Unknown",D12<>"Stopped",D12<>"Not required"),D12/COUNTRY_INFO!D12,0) -> 1 | AV12: =IF(AND(J12<>0,J12<>"Unknown",J12<>"Stopped",J12<>"Not required"),J12/COUNTRY_INFO!D12,0) -> 0 | AW12: =IF(AND(P12<>0,P12<>"Unknown",P12<>"Surveillance",P12<>"Not required"),P12/COUNTRY_INFO!Q12,0) -> 1 | AX12: =IF(AND(AE12<>0,AE12<>"Unknown",AE12<>"Surveillance",AE12<>"Not required"),AE12/COUNTRY_INFO!U12,0) -> 0 | AY12: =IF(AU12>0,D12*PROFILE!$G$7,IF(AV12>0,J12*PROFILE!$G$7,0)) -> 1751.038467 | AZ12: =_xlfn.IFS(OR(AU12>0,AW12>0),COUNTRY_INFO!E12,AV12>0,J12*PROFILE!$G$8,AX12>0,COUNTRY_INFO!R12,COUNTIFS(AU12:AX12,">0")=0,0) -> 6587 | BA12: =_xlfn.IFS(OR(AU12>0,AW12>0),COUNTRY_INFO!F12,AV12>0,J12*PROFILE!$G$9,AX12>0,COUNTRY_INFO!S12,COUNTIFS(AU12:AX12,">0")=0,0) -> 13606 | BB12: =_xlfn.IFS(AU12>0,COUNTRY_INFO!G12,AND(AV12>0,AW12=0,AX12=0),J12*PROFILE!$G$10,AND(AV12>0,AW12>0,AX12=0),MAX(J12*PROFILE!$G$10,COUNTRY_INFO!P12),AND(AV12>0,AW12=0,AX12>0),MAX(J12*PROFILE!$G$10,COUNTRY_INFO!T12),AND(AV12=0,AW12>0,AX12>0),MAX(COUNTRY_INFO!P12,COUNTRY_INFO!T12),AND(AV12=0,AW12>0,AX12=0),COUNTRY_INFO!P12,AND(AV12=0,AW12=0,AX12>0),COUNTRY_INFO!T12,AND(AV12>0,AW12>0,AX12>0),MAX(J12*PROFILE!$G$10,COUNTRY_INFO!P12,COUNTRY_INFO!T12),COUNTIFS(AU12:AX12,">0")=0,0) -> 28374 | BC12: 50318.03847 | BD12: Y | BE12: =MAX('MDA2'!J12,'MDA5'!J12,S12,AH12) -> 2845 | BF12: =MAX('MDA1'!K12,'MDA2'!K12,'MDA3'!I12,'MDA3'!L12,'MDA5'!K12,V12,AK12) -> 13876 | BG12: =MAX('MDA1'!L12,'MDA2'!L12,'MDA3'!J12,'MDA3'!M12,'MDA5'!L12,Y12,AN12) -> 23863 | BH12: 40584 | BI12: =_xlfn.IFS(AND(AU12=0,AW12=0,AX12=0),0,AND(AU12=0,AW12=0,AX12>0),AI12,AND(AU12=0,AW12>0,AX12=0),T12,AND(AU12=0,AW12>0,AX12>0),MAX(T12,AI12),AND(AU12>0,AW12=0,AX12=0),MIN(MAX('MDA2'!J12,'MDA5'!J12),AZ12),AND(AU12>0,AW12=0,AX12>0),MIN(MAX('MDA2'!J12,'MDA5'!J12,AI12),AZ12),AND(AU12>0,AW12>0,AX12=0),MIN(MAX('MDA2'!J12,'MDA5'!J12,T12),AZ12),AND(AU12>0,AW12>0,AX12>0),MIN(MAX('MDA2'!J12,'MDA5'!J12,AI12,T12),AZ12)) -> 2845 | BJ12: =_xlfn.IFS(AND(AU12=0,AV12=0,AW12=0,AX12=0),0,AND(AU12=0,AV12=0,AW12=0,AX12>0),AL12,AND(AU12=0,AV12=0,AW12>0,AX12=0),W12,AND(AU12=0,AV12=0,AW12>0,AX12>0),MAX(W12,AL12),AND(AU12=0,AV12>0,AW12=0,AX12=0),MIN(J12*PROFILE!$G$9,MAX('MDA3'!I12,'MDA3'!L12)),AND(AU12=0,AV12>0,AW12=0,AX12>0),MIN(J12*PROFILE!$G$9,MAX('MDA3'!I12,'MDA3'!L12,AL12)),AND(AU12=0,AV12>0,AW12>0,AX12=0),MIN(J12*PROFILE!$G$9,MAX('MDA3'!I12,'MDA3'!L12,W12)),AND(AU12=0,AV12>0,AW12>0,AX12>0),MIN(J12*PROFILE!$G$9,MAX('MDA3'!I12,'MDA3'!L12,W12,AL12)),AND(AU12>0,AV12=0,AW12=0,AX12=0),MIN(BA12,MAX('MDA1'!K12,'MDA2'!K12,'MDA5'!K12)),AND(AU12>0,AV12=0,AW12=0,AX12>0),MIN(BA12,MAX('MDA1'!K12,'MDA2'!K12,'MDA5'!K12,AL12)),AND(AU12>0,AV12=0,AW12>0,AX12=0),MIN(BA12,MAX('MDA1'!K12,'MDA2'!KL12,'MDA5'!K12,W12)),AND(AU12>0,AV12=0,AW12>0,AX12>0),MIN(BA12,MAX('MDA1'!K12,'MDA2'!K12,'MDA5'!K12,W12,AL12)),AND(AU12>0,AV12>0,AW12=0,AX12=0),MIN(BA12,MAX('MDA1'!K12,'MDA2'!K12,'MDA5'!K12,MAX('MDA3'!I12,'MDA3'!L12))),AND(AU12>0,AV12>0,AW12=0,AX12>0),MIN(BA12,MAX('MDA1'!K12,'MDA2'!K12,'MDA5'!K12,MAX('MDA3'!I12,'MDA3'!L12),AL12)),AND(AU12>0,AV12>0,AW12>0,AX12=0),MIN(BA12,MAX('MDA1'!K12,'MDA2'!K12,'MDA5'!K12,MAX('MDA3'!I12,'MDA3'!L12),W12)),AND(AU12>0,AV12>0,AW12>0,AX12>0),MIN(BA12,MAX('MDA1'!K12,'MDA2'!K12,'MDA5'!K12,MAX('MDA3'!I12,'MDA3'!L12),W12,AL12))) -> 13606 | BK12: =_xlfn.IFS(AND(AU12=0,AV12=0,AW12=0,AX12=0),0,AND(AU12=0,AV12=0,AW12=0,AX12>0),AO12,AND(AU12=0,AV12=0,AW12>0,AX12=0),Z12,AND(AU12=0,AV12=0,AW12>0,AX12>0),MAX(Z12,AO12),AND(AU12=0,AV12>0,AW12=0,AX12=0),MIN(J12*PROFILE!$G$10,MAX('MDA3'!J12,'MDA3'!J12)),AND(AU12=0,AV12>0,AW12=0,AX12>0),MIN(J12*PROFILE!$G$10,MAX('MDA3'!J12,'MDA3'!M12,AO12)),AND(AU12=0,AV12>0,AW12>0,AX12=0),MIN(J12*PROFILE!$G$10,MAX('MDA3'!J12,'MDA3'!M12,Z12)),AND(AU12=0,AV12>0,AW12>0,AX12>0),MIN(J12*PROFILE!$G$10,MAX('MDA3'!J12,'MDA3'!M12,Z12,AO12)),AND(AU12>0,AV12=0,AW12=0,AX12=0),MIN(BB12,MAX('MDA1'!L12,'MDA2'!L12,'MDA5'!L12)),AND(AU12>0,AV12=0,AW12=0,AX12>0),MIN(BB12,MAX('MDA1'!L12,'MDA2'!L12,'MDA5'!L12,AO12)),AND(AU12>0,AV12=0,AW12>0,AX12=0),MIN(BB12,MAX('MDA1'!L12,'MDA2'!L12,'MDA5'!L12,Z12)),AND(AU12>0,AV12=0,AW12>0,AX12>0),MIN(BB12,MAX('MDA1'!L12,'MDA2'!L12,'MDA5'!L12,Z12,AO12)),AND(AU12>0,AV12>0,AW12=0,AX12=0),MIN(BB12,MAX('MDA1'!L12,'MDA2'!L12,'MDA5'!L12,MAX('MDA3'!J12,'MDA3'!M12))),AND(AU12>0,AV12>0,AW12=0,AX12>0),MIN(BB12,MAX('MDA1'!L12,'MDA2'!L12,'MDA5'!L12,MAX('MDA3'!J12,'MDA3'!M12),AO12)),AND(AU12>0,AV12>0,AW12>0,AX12=0),MIN(BB12,MAX('MDA1'!L12,'MDA2'!L12,'MDA5'!L12,MAX('MDA3'!J12,'MDA3'!M12),Z12)),AND(AU12>0,AV12>0,AW12>0,AX12>0),MIN(BB12,MAX('MDA1'!L12,'MDA2'!L12,'MDA5'!L12,MAX('MDA3'!J12,'MDA3'!M12),Z12,AO12))) -> 23863 | BL12: 40314 | BM12: 80.11838543
A13: =IF(COUNTRY_INFO!A13=0," ",COUNTRY_INFO!A13) -> Zanzibar | B13: =IF(COUNTRY_INFO!B13=0," ",COUNTRY_INFO!B13) -> Kusini Unguja | C13: =IF(COUNTRY_INFO!C13=0," ",COUNTRY_INFO!C13) -> Kati | D13: =COUNTRY_INFO!L13 -> 94714 | G13: =MAX('MDA1'!M13,'MDA2'!M13,'MDA5'!M13) -> 78071 | H13: =IF(AND(COUNTRY_INFO!H13>0,COUNTRY_INFO!H13<4),IF(D13>G13,G13,D13),0) -> 78071 | I13: =IF(AND(COUNTRY_INFO!H13>0,COUNTRY_INFO!H13<4),IF(G13/D13*100<>0,IF(G13/D13*100>100,100,G13/D13*100),"-"),0) -> 82.42815212 | J13: =COUNTRY_INFO!M13 -> Not required | M13: =MAX('MDA1'!M13,MAX('MDA3'!I13,'MDA3'!L13)+MAX('MDA3'!J13,'MDA3'!M13)) -> 78071 | N13: =IF(AND(COUNTRY_INFO!I13>0,COUNTRY_INFO!I13<4),IF(J13>M13,M13,J13),0) -> 0 | O13: =IF(AND(COUNTRY_INFO!I13>0,COUNTRY_INFO!I13<4),IF(M13/J13*100<>0,IF(M13/J13*100>100,100,M13/J13*100),"-"),0) -> 0 | P13: =COUNTRY_INFO!Q13 -> 60816 | S13: =MAX('MDA2'!J13,'MDA5'!J13,'T1'!K13,MAX(T3_R1!J13,T3_R2!J13,T3_R3!J13)) -> 7161 | T13: =IF(AND(COUNTRY_INFO!J13>1,COUNTRY_INFO!J13<99,COUNTRY_INFO!J13<>4,COUNTRY_INFO!J13<>5),IF(COUNTRY_INFO!N13>S13,S13,COUNTRY_INFO!N13),0) -> 7161 | U13: =IF(AND(COUNTRY_INFO!J13>1,COUNTRY_INFO!J13<99,COUNTRY_INFO!J13<>4,COUNTRY_INFO!J13<>5),IF(T13/COUNTRY_INFO!N13*100<>0,IF(T13/COUNTRY_INFO!N13*100>100,100,T13/COUNTRY_INFO!N13*100),"-"),0) -> 57.75931602 | V13: =MAX('MDA1'!K13,'MDA2'!K13,'MDA5'!K13,'T1'!L13,MAX(T3_R1!K13,T3_R2!K13,T3_R3!K13)) -> 33243 | W13: =IF(AND(COUNTRY_INFO!J13>1,COUNTRY_INFO!J13<99,COUNTRY_INFO!J13<>4,COUNTRY_INFO!J13<>5),IF(COUNTRY_INFO!O13>V13,V13,COUNTRY_INFO!O13),0) -> 25611 | X13: =IF(AND(COUNTRY_INFO!J13>1,COUNTRY_INFO!J13<99,COUNTRY_INFO!J13<>4,COUNTRY_INFO!J13<>5),IF(W13/COUNTRY_INFO!O13*100<>0,IF(W13/COUNTRY_INFO!O13*100>100,100,W13/COUNTRY_INFO!O13*100),"-"),0) -> 100 | Y13: =MAX('MDA1'!L13,'MDA2'!L13,'MDA5'!L13,'T1'!M13,MAX(T3_R1!L13,T3_R2!L13,T3_R3!L13)) -> 44828 | Z13: =IF(AND(COUNTRY_INFO!J13>1,COUNTRY_INFO!J13<99,COUNTRY_INFO!J13<>4,COUNTRY_INFO!J13<>5),IF(COUNTRY_INFO!P13>Y13,Y13,COUNTRY_INFO!P13),0) -> 22807 | AA13: =IF(AND(COUNTRY_INFO!J13>1,COUNTRY_INFO!J13<99,COUNTRY_INFO!J13<>4,COUNTRY_INFO!J13<>5),IF(Z13/COUNTRY_INFO!P13*100<>0,IF(Z13/COUNTRY_INFO!P13*100>100,100,Z13/COUNTRY_INFO!P13*100),"-"),0) -> 100 | AB13: 85232 | AC13: 55579 | AD13: =IF(AND(COUNTRY_INFO!J13>1,COUNTRY_INFO!J13<99,COUNTRY_INFO!J13<>4,COUNTRY_INFO!J13<>5),IF(AC13/P13*100<>0,IF(AC13/P13*100>100,100,AC13/P13*100),"-"),0) -> 91.38877927 | AE13: =COUNTRY_INFO!U13 -> 88319 | AH13: =MAX('T1'!K13,'T2'!R13) -> 7169 | AI13: =IF(AND(COUNTRY_INFO!K13>1,COUNTRY_INFO!K13<99,COUNTRY_INFO!K13<>4,COUNTRY_INFO!K13<>5),IF(COUNTRY_INFO!R13>AH13,AH13,COUNTRY_INFO!R13),0) -> 7169 | AJ13: =IF(AND(COUNTRY_INFO!K13>1,COUNTRY_INFO!K13<99,COUNTRY_INFO!K13<>4,COUNTRY_INFO!K13<>5),IF(AI13/COUNTRY_INFO!R13*100<>0,IF(AI13/COUNTRY_INFO!R13*100>100,100,AI13/COUNTRY_INFO!R13*100),"-"),0) -> 77.09431122 | AK13: =MAX('T1'!L13,'T2'!S13) -> 33284 | AL13: =IF(AND(COUNTRY_INFO!K13>1,COUNTRY_INFO!K13<99,COUNTRY_INFO!K13<>4,COUNTRY_INFO!K13<>5),IF(COUNTRY_INFO!S13>AK13,AK13,COUNTRY_INFO!S13),0) -> 25611 | AM13: =IF(AND(COUNTRY_INFO!K13>1,COUNTRY_INFO!K13<99,COUNTRY_INFO!K13<>4,COUNTRY_INFO!K13<>5),IF(AL13/COUNTRY_INFO!S13*100<>0,IF(AL13/COUNTRY_INFO!S13*100>100,100,AL13/COUNTRY_INFO!S13*100),"-"),0) -> 100 | AN13: =MAX('T1'!M13,'T2'!T13) -> 43923 | AO13: =IF(AND(COUNTRY_INFO!K13>1,COUNTRY_INFO!K13<99,COUNTRY_INFO!K13<>4,COUNTRY_INFO!K13<>5),IF(COUNTRY_INFO!T13>AN13,AN13,COUNTRY_INFO!T13),0) -> 43923 | AP13: =IF(AND(COUNTRY_INFO!K13>1,COUNTRY_INFO!K13<99,COUNTRY_INFO!K13<>4,COUNTRY_INFO!K13<>5),IF(AO13/COUNTRY_INFO!T13*100<>0,IF(AO13/COUNTRY_INFO!T13*100>100,100,AO13/COUNTRY_INFO!T13*100),"-"),0) -> 82.23894849 | AQ13: 84376 | AR13: 76703 | AS13: =IF(AND(COUNTRY_INFO!K13>1,COUNTRY_INFO!K13<99,COUNTRY_INFO!K13<>4,COUNTRY_INFO!K13<>5),IF(AH13/AE13*100<>0,IF(AR13/AE13*100>100,100,AR13/AE13*100),"-"),0) -> 86.84767717 | AU13: =IF(AND(D13<>0,D13<>"Unknown",D13<>"Stopped",D13<>"Not required"),D13/COUNTRY_INFO!D13,0) -> 1 | AV13: =IF(AND(J13<>0,J13<>"Unknown",J13<>"Stopped",J13<>"Not required"),J13/COUNTRY_INFO!D13,0) -> 0 | AW13: =IF(AND(P13<>0,P13<>"Unknown",P13<>"Surveillance",P13<>"Not required"),P13/COUNTRY_INFO!Q13,0) -> 1 | AX13: =IF(AND(AE13<>0,AE13<>"Unknown",AE13<>"Surveillance",AE13<>"Not required"),AE13/COUNTRY_INFO!U13,0) -> 1 | AY13: =IF(AU13>0,D13*PROFILE!$G$7,IF(AV13>0,J13*PROFILE!$G$7,0)) -> 3295.994622 | AZ13: =_xlfn.IFS(OR(AU13>0,AW13>0),COUNTRY_INFO!E13,AV13>0,J13*PROFILE!$G$8,AX13>0,COUNTRY_INFO!R13,COUNTIFS(AU13:AX13,">0")=0,0) -> 12398 | BA13: =_xlfn.IFS(OR(AU13>0,AW13>0),COUNTRY_INFO!F13,AV13>0,J13*PROFILE!$G$9,AX13>0,COUNTRY_INFO!S13,COUNTIFS(AU13:AX13,">0")=0,0) -> 25611 | BB13: =_xlfn.IFS(AU13>0,COUNTRY_INFO!G13,AND(AV13>0,AW13=0,AX13=0),J13*PROFILE!$G$10,AND(AV13>0,AW13>0,AX13=0),MAX(J13*PROFILE!$G$10,COUNTRY_INFO!P13),AND(AV13>0,AW13=0,AX13>0),MAX(J13*PROFILE!$G$10,COUNTRY_INFO!T13),AND(AV13=0,AW13>0,AX13>0),MAX(COUNTRY_INFO!P13,COUNTRY_INFO!T13),AND(AV13=0,AW13>0,AX13=0),COUNTRY_INFO!P13,AND(AV13=0,AW13=0,AX13>0),COUNTRY_INFO!T13,AND(AV13>0,AW13>0,AX13>0),MAX(J13*PROFILE!$G$10,COUNTRY_INFO!P13,COUNTRY_INFO!T13),COUNTIFS(AU13:AX13,">0")=0,0) -> 53409 | BC13: 94713.99462 | BD13: Y | BE13: =MAX('MDA2'!J13,'MDA5'!J13,S13,AH13) -> 7169 | BF13: =MAX('MDA1'!K13,'MDA2'!K13,'MDA3'!I13,'MDA3'!L13,'MDA5'!K13,V13,AK13) -> 33284 | BG13: =MAX('MDA1'!L13,'MDA2'!L13,'MDA3'!J13,'MDA3'!M13,'MDA5'!L13,Y13,AN13) -> 44828 | BH13: 85281 | BI13: =_xlfn.IFS(AND(AU13=0,AW13=0,AX13=0),0,AND(AU13=0,AW13=0,AX13>0),AI13,AND(AU13=0,AW13>0,AX13=0),T13,AND(AU13=0,AW13>0,AX13>0),MAX(T13,AI13),AND(AU13>0,AW13=0,AX13=0),MIN(MAX('MDA2'!J13,'MDA5'!J13),AZ13),AND(AU13>0,AW13=0,AX13>0),MIN(MAX('MDA2'!J13,'MDA5'!J13,AI13),AZ13),AND(AU13>0,AW13>0,AX13=0),MIN(MAX('MDA2'!J13,'MDA5'!J13,T13),AZ13),AND(AU13>0,AW13>0,AX13>0),MIN(MAX('MDA2'!J13,'MDA5'!J13,AI13,T13),AZ13)) -> 7169 | BJ13: =_xlfn.IFS(AND(AU13=0,AV13=0,AW13=0,AX13=0),0,AND(AU13=0,AV13=0,AW13=0,AX13>0),AL13,AND(AU13=0,AV13=0,AW13>0,AX13=0),W13,AND(AU13=0,AV13=0,AW13>0,AX13>0),MAX(W13,AL13),AND(AU13=0,AV13>0,AW13=0,AX13=0),MIN(J13*PROFILE!$G$9,MAX('MDA3'!I13,'MDA3'!L13)),AND(AU13=0,AV13>0,AW13=0,AX13>0),MIN(J13*PROFILE!$G$9,MAX('MDA3'!I13,'MDA3'!L13,AL13)),AND(AU13=0,AV13>0,AW13>0,AX13=0),MIN(J13*PROFILE!$G$9,MAX('MDA3'!I13,'MDA3'!L13,W13)),AND(AU13=0,AV13>0,AW13>0,AX13>0),MIN(J13*PROFILE!$G$9,MAX('MDA3'!I13,'MDA3'!L13,W13,AL13)),AND(AU13>0,AV13=0,AW13=0,AX13=0),MIN(BA13,MAX('MDA1'!K13,'MDA2'!K13,'MDA5'!K13)),AND(AU13>0,AV13=0,AW13=0,AX13>0),MIN(BA13,MAX('MDA1'!K13,'MDA2'!K13,'MDA5'!K13,AL13)),AND(AU13>0,AV13=0,AW13>0,AX13=0),MIN(BA13,MAX('MDA1'!K13,'MDA2'!KL13,'MDA5'!K13,W13)),AND(AU13>0,AV13=0,AW13>0,AX13>0),MIN(BA13,MAX('MDA1'!K13,'MDA2'!K13,'MDA5'!K13,W13,AL13)),AND(AU13>0,AV13>0,AW13=0,AX13=0),MIN(BA13,MAX('MDA1'!K13,'MDA2'!K13,'MDA5'!K13,MAX('MDA3'!I13,'MDA3'!L13))),AND(AU13>0,AV13>0,AW13=0,AX13>0),MIN(BA13,MAX('MDA1'!K13,'MDA2'!K13,'MDA5'!K13,MAX('MDA3'!I13,'MDA3'!L13),AL13)),AND(AU13>0,AV13>0,AW13>0,AX13=0),MIN(BA13,MAX('MDA1'!K13,'MDA2'!K13,'MDA5'!K13,MAX('MDA3'!I13,'MDA3'!L13),W13)),AND(AU13>0,AV13>0,AW13>0,AX13>0),MIN(BA13,MAX('MDA1'!K13,'MDA2'!K13,'MDA5'!K13,MAX('MDA3'!I13,'MDA3'!L13),W13,AL13))) -> 25611 | BK13: =_xlfn.IFS(AND(AU13=0,AV13=0,AW13=0,AX13=0),0,AND(AU13=0,AV13=0,AW13=0,AX13>0),AO13,AND(AU13=0,AV13=0,AW13>0,AX13=0),Z13,AND(AU13=0,AV13=0,AW13>0,AX13>0),MAX(Z13,AO13),AND(AU13=0,AV13>0,AW13=0,AX13=0),MIN(J13*PROFILE!$G$10,MAX('MDA3'!J13,'MDA3'!J13)),AND(AU13=0,AV13>0,AW13=0,AX13>0),MIN(J13*PROFILE!$G$10,MAX('MDA3'!J13,'MDA3'!M13,AO13)),AND(AU13=0,AV13>0,AW13>0,AX13=0),MIN(J13*PROFILE!$G$10,MAX('MDA3'!J13,'MDA3'!M13,Z13)),AND(AU13=0,AV13>0,AW13>0,AX13>0),MIN(J13*PROFILE!$G$10,MAX('MDA3'!J13,'MDA3'!M13,Z13,AO13)),AND(AU13>0,AV13=0,AW13=0,AX13=0),MIN(BB13,MAX('MDA1'!L13,'MDA2'!L13,'MDA5'!L13)),AND(AU13>0,AV13=0,AW13=0,AX13>0),MIN(BB13,MAX('MDA1'!L13,'MDA2'!L13,'MDA5'!L13,AO13)),AND(AU13>0,AV13=0,AW13>0,AX13=0),MIN(BB13,MAX('MDA1'!L13,'MDA2'!L13,'MDA5'!L13,Z13)),AND(AU13>0,AV13=0,AW13>0,AX13>0),MIN(BB13,MAX('MDA1'!L13,'MDA2'!L13,'MDA5'!L13,Z13,AO13)),AND(AU13>0,AV13>0,AW13=0,AX13=0),MIN(BB13,MAX('MDA1'!L13,'MDA2'!L13,'MDA5'!L13,MAX('MDA3'!J13,'MDA3'!M13))),AND(AU13>0,AV13>0,AW13=0,AX13>0),MIN(BB13,MAX('MDA1'!L13,'MDA2'!L13,'MDA5'!L13,MAX('MDA3'!J13,'MDA3'!M13),AO13)),AND(AU13>0,AV13>0,AW13>0,AX13=0),MIN(BB13,MAX('MDA1'!L13,'MDA2'!L13,'MDA5'!L13,MAX('MDA3'!J13,'MDA3'!M13),Z13)),AND(AU13>0,AV13>0,AW13>0,AX13>0),MIN(BB13,MAX('MDA1'!L13,'MDA2'!L13,'MDA5'!L13,MAX('MDA3'!J13,'MDA3'!M13),Z13,AO13))) -> 44828 | BL13: 77608 | BM13: 81.93931669
A14: =IF(COUNTRY_INFO!A14=0," ",COUNTRY_INFO!A14) -> Zanzibar | B14: =IF(COUNTRY_INFO!B14=0," ",COUNTRY_INFO!B14) -> Mjini Magharibi | C14: =IF(COUNTRY_INFO!C14=0," ",COUNTRY_INFO!C14) -> Mjini | D14: =COUNTRY_INFO!L14 -> 294906 | G14: =MAX('MDA1'!M14,'MDA2'!M14,'MDA5'!M14) -> 169472 | H14: =IF(AND(COUNTRY_INFO!H14>0,COUNTRY_INFO!H14<4),IF(D14>G14,G14,D14),0) -> 169472 | I14: =IF(AND(COUNTRY_INFO!H14>0,COUNTRY_INFO!H14<4),IF(G14/D14*100<>0,IF(G14/D14*100>100,100,G14/D14*100),"-"),0) -> 57.46644694 | J14: =COUNTRY_INFO!M14 -> Not required | M14: =MAX('MDA1'!M14,MAX('MDA3'!I14,'MDA3'!L14)+MAX('MDA3'!J14,'MDA3'!M14)) -> 169472 | N14: =IF(AND(COUNTRY_INFO!I14>0,COUNTRY_INFO!I14<4),IF(J14>M14,M14,J14),0) -> 0 | O14: =IF(AND(COUNTRY_INFO!I14>0,COUNTRY_INFO!I14<4),IF(M14/J14*100<>0,IF(M14/J14*100>100,100,M14/J14*100),"-"),0) -> 0 | P14: =COUNTRY_INFO!Q14 -> 189359 | S14: =MAX('MDA2'!J14,'MDA5'!J14,'T1'!K14,MAX(T3_R1!J14,T3_R2!J14,T3_R3!J14)) -> 11150 | T14: =IF(AND(COUNTRY_INFO!J14>1,COUNTRY_INFO!J14<99,COUNTRY_INFO!J14<>4,COUNTRY_INFO!J14<>5),IF(COUNTRY_INFO!N14>S14,S14,COUNTRY_INFO!N14),0) -> 11150 | U14: =IF(AND(COUNTRY_INFO!J14>1,COUNTRY_INFO!J14<99,COUNTRY_INFO!J14<>4,COUNTRY_INFO!J14<>5),IF(T14/COUNTRY_INFO!N14*100<>0,IF(T14/COUNTRY_INFO!N14*100>100,100,T14/COUNTRY_INFO!N14*100),"-"),0) -> 28.88376551 | V14: =MAX('MDA1'!K14,'MDA2'!K14,'MDA5'!K14,'T1'!L14,MAX(T3_R1!K14,T3_R2!K14,T3_R3!K14)) -> 48753 | W14: =IF(AND(COUNTRY_INFO!J14>1,COUNTRY_INFO!J14<99,COUNTRY_INFO!J14<>4,COUNTRY_INFO!J14<>5),IF(COUNTRY_INFO!O14>V14,V14,COUNTRY_INFO!O14),0) -> 48753 | X14: =IF(AND(COUNTRY_INFO!J14>1,COUNTRY_INFO!J14<99,COUNTRY_INFO!J14<>4,COUNTRY_INFO!J14<>5),IF(W14/COUNTRY_INFO!O14*100<>0,IF(W14/COUNTRY_INFO!O14*100>100,100,W14/COUNTRY_INFO!O14*100),"-"),0) -> 61.13765472 | Y14: =MAX('MDA1'!L14,'MDA2'!L14,'MDA5'!L14,'T1'!M14,MAX(T3_R1!L14,T3_R2!L14,T3_R3!L14)) -> 120719 | Z14: =IF(AND(COUNTRY_INFO!J14>1,COUNTRY_INFO!J14<99,COUNTRY_INFO!J14<>4,COUNTRY_INFO!J14<>5),IF(COUNTRY_INFO!P14>Y14,Y14,COUNTRY_INFO!P14),0) -> 71013 | AA14: =IF(AND(COUNTRY_INFO!J14>1,COUNTRY_INFO!J14<99,COUNTRY_INFO!J14<>4,COUNTRY_INFO!J14<>5),IF(Z14/COUNTRY_INFO!P14*100<>0,IF(Z14/COUNTRY_INFO!P14*100>100,100,Z14/COUNTRY_INFO!P14*100),"-"),0) -> 100 | AB14: 180622 | AC14: 130916 | AD14: =IF(AND(COUNTRY_INFO!J14>1,COUNTRY_INFO!J14<99,COUNTRY_INFO!J14<>4,COUNTRY_INFO!J14<>5),IF(AC14/P14*100<>0,IF(AC14/P14*100>100,100,AC14/P14*100),"-"),0) -> 69.13640228 | AE14: =COUNTRY_INFO!U14 -> 0 | AH14: =MAX('T1'!K14,'T2'!R14) -> 8179 | AI14: =IF(AND(COUNTRY_INFO!K14>1,COUNTRY_INFO!K14<99,COUNTRY_INFO!K14<>4,COUNTRY_INFO!K14<>5),IF(COUNTRY_INFO!R14>AH14,AH14,COUNTRY_INFO!R14),0) -> 0 | AJ14: =IF(AND(COUNTRY_INFO!K14>1,COUNTRY_INFO!K14<99,COUNTRY_INFO!K14<>4,COUNTRY_INFO!K14<>5),IF(AI14/COUNTRY_INFO!R14*100<>0,IF(AI14/COUNTRY_INFO!R14*100>100,100,AI14/COUNTRY_INFO!R14*100),"-"),0) -> 0 | AK14: =MAX('T1'!L14,'T2'!S14) -> 35263 | AL14: =IF(AND(COUNTRY_INFO!K14>1,COUNTRY_INFO!K14<99,COUNTRY_INFO!K14<>4,COUNTRY_INFO!K14<>5),IF(COUNTRY_INFO!S14>AK14,AK14,COUNTRY_INFO!S14),0) -> 0 | AM14: =IF(AND(COUNTRY_INFO!K14>1,COUNTRY_INFO!K14<99,COUNTRY_INFO!K14<>4,COUNTRY_INFO!K14<>5),IF(AL14/COUNTRY_INFO!S14*100<>0,IF(AL14/COUNTRY_INFO!S14*100>100,100,AL14/COUNTRY_INFO!S14*100),"-"),0) -> 0 | AN14: =MAX('T1'!M14,'T2'!T14) -> 97367 | AO14: =IF(AND(COUNTRY_INFO!K14>1,COUNTRY_INFO!K14<99,COUNTRY_INFO!K14<>4,COUNTRY_INFO!K14<>5),IF(COUNTRY_INFO!T14>AN14,AN14,COUNTRY_INFO!T14),0) -> 0 | AP14: =IF(AND(COUNTRY_INFO!K14>1,COUNTRY_INFO!K14<99,COUNTRY_INFO!K14<>4,COUNTRY_INFO!K14<>5),IF(AO14/COUNTRY_INFO!T14*100<>0,IF(AO14/COUNTRY_INFO!T14*100>100,100,AO14/COUNTRY_INFO!T14*100),"-"),0) -> 0 | AQ14: 140809 | AR14: 0 | AS14: =IF(AND(COUNTRY_INFO!K14>1,COUNTRY_INFO!K14<99,COUNTRY_INFO!K14<>4,COUNTRY_INFO!K14<>5),IF(AH14/AE14*100<>0,IF(AR14/AE14*100>100,100,AR14/AE14*100),"-"),0) -> 0 | AU14: =IF(AND(D14<>0,D14<>"Unknown",D14<>"Stopped",D14<>"Not required"),D14/COUNTRY_INFO!D14,0) -> 1 | AV14: =IF(AND(J14<>0,J14<>"Unknown",J14<>"Stopped",J14<>"Not required"),J14/COUNTRY_INFO!D14,0) -> 0 | AW14: =IF(AND(P14<>0,P14<>"Unknown",P14<>"Surveillance",P14<>"Not required"),P14/COUNTRY_INFO!Q14,0) -> 1 | AX14: =IF(AND(AE14<>0,AE14<>"Unknown",AE14<>"Surveillance",AE14<>"Not required"),AE14/COUNTRY_INFO!U14,0) -> 0 | AY14: =IF(AU14>0,D14*PROFILE!$G$7,IF(AV14>0,J14*PROFILE!$G$7,0)) -> 10262.56509 | AZ14: =_xlfn.IFS(OR(AU14>0,AW14>0),COUNTRY_INFO!E14,AV14>0,J14*PROFILE!$G$8,AX14>0,COUNTRY_INFO!R14,COUNTIFS(AU14:AX14,">0")=0,0) -> 38603 | BA14: =_xlfn.IFS(OR(AU14>0,AW14>0),COUNTRY_INFO!F14,AV14>0,J14*PROFILE!$G$9,AX14>0,COUNTRY_INFO!S14,COUNTIFS(AU14:AX14,">0")=0,0) -> 79743 | BB14: =_xlfn.IFS(AU14>0,COUNTRY_INFO!G14,AND(AV14>0,AW14=0,AX14=0),J14*PROFILE!$G$10,AND(AV14>0,AW14>0,AX14=0),MAX(J14*PROFILE!$G$10,COUNTRY_INFO!P14),AND(AV14>0,AW14=0,AX14>0),MAX(J14*PROFILE!$G$10,COUNTRY_INFO!T14),AND(AV14=0,AW14>0,AX14>0),MAX(COUNTRY_INFO!P14,COUNTRY_INFO!T14),AND(AV14=0,AW14>0,AX14=0),COUNTRY_INFO!P14,AND(AV14=0,AW14=0,AX14>0),COUNTRY_INFO!T14,AND(AV14>0,AW14>0,AX14>0),MAX(J14*PROFILE!$G$10,COUNTRY_INFO!P14,COUNTRY_INFO!T14),COUNTIFS(AU14:AX14,">0")=0,0) -> 166297 | BC14: 294905.5651 | BD14: Y | BE14: =MAX('MDA2'!J14,'MDA5'!J14,S14,AH14) -> 11150 | BF14: =MAX('MDA1'!K14,'MDA2'!K14,'MDA3'!I14,'MDA3'!L14,'MDA5'!K14,V14,AK14) -> 48753 | BG14: =MAX('MDA1'!L14,'MDA2'!L14,'MDA3'!J14,'MDA3'!M14,'MDA5'!L14,Y14,AN14) -> 120719 | BH14: 180622 | BI14: =_xlfn.IFS(AND(AU14=0,AW14=0,AX14=0),0,AND(AU14=0,AW14=0,AX14>0),AI14,AND(AU14=0,AW14>0,AX14=0),T14,AND(AU14=0,AW14>0,AX14>0),MAX(T14,AI14),AND(AU14>0,AW14=0,AX14=0),MIN(MAX('MDA2'!J14,'MDA5'!J14),AZ14),AND(AU14>0,AW14=0,AX14>0),MIN(MAX('MDA2'!J14,'MDA5'!J14,AI14),AZ14),AND(AU14>0,AW14>0,AX14=0),MIN(MAX('MDA2'!J14,'MDA5'!J14,T14),AZ14),AND(AU14>0,AW14>0,AX14>0),MIN(MAX('MDA2'!J14,'MDA5'!J14,AI14,T14),AZ14)) -> 11150 | BJ14: =_xlfn.IFS(AND(AU14=0,AV14=0,AW14=0,AX14=0),0,AND(AU14=0,AV14=0,AW14=0,AX14>0),AL14,AND(AU14=0,AV14=0,AW14>0,AX14=0),W14,AND(AU14=0,AV14=0,AW14>0,AX14>0),MAX(W14,AL14),AND(AU14=0,AV14>0,AW14=0,AX14=0),MIN(J14*PROFILE!$G$9,MAX('MDA3'!I14,'MDA3'!L14)),AND(AU14=0,AV14>0,AW14=0,AX14>0),MIN(J14*PROFILE!$G$9,MAX('MDA3'!I14,'MDA3'!L14,AL14)),AND(AU14=0,AV14>0,AW14>0,AX14=0),MIN(J14*PROFILE!$G$9,MAX('MDA3'!I14,'MDA3'!L14,W14)),AND(AU14=0,AV14>0,AW14>0,AX14>0),MIN(J14*PROFILE!$G$9,MAX('MDA3'!I14,'MDA3'!L14,W14,AL14)),AND(AU14>0,AV14=0,AW14=0,AX14=0),MIN(BA14,MAX('MDA1'!K14,'MDA2'!K14,'MDA5'!K14)),AND(AU14>0,AV14=0,AW14=0,AX14>0),MIN(BA14,MAX('MDA1'!K14,'MDA2'!K14,'MDA5'!K14,AL14)),AND(AU14>0,AV14=0,AW14>0,AX14=0),MIN(BA14,MAX('MDA1'!K14,'MDA2'!KL14,'MDA5'!K14,W14)),AND(AU14>0,AV14=0,AW14>0,AX14>0),MIN(BA14,MAX('MDA1'!K14,'MDA2'!K14,'MDA5'!K14,W14,AL14)),AND(AU14>0,AV14>0,AW14=0,AX14=0),MIN(BA14,MAX('MDA1'!K14,'MDA2'!K14,'MDA5'!K14,MAX('MDA3'!I14,'MDA3'!L14))),AND(AU14>0,AV14>0,AW14=0,AX14>0),MIN(BA14,MAX('MDA1'!K14,'MDA2'!K14,'MDA5'!K14,MAX('MDA3'!I14,'MDA3'!L14),AL14)),AND(AU14>0,AV14>0,AW14>0,AX14=0),MIN(BA14,MAX('MDA1'!K14,'MDA2'!K14,'MDA5'!K14,MAX('MDA3'!I14,'MDA3'!L14),W14)),AND(AU14>0,AV14>0,AW14>0,AX14>0),MIN(BA14,MAX('MDA1'!K14,'MDA2'!K14,'MDA5'!K14,MAX('MDA3'!I14,'MDA3'!L14),W14,AL14))) -> 48753 | BK14: =_xlfn.IFS(AND(AU14=0,AV14=0,AW14=0,AX14=0),0,AND(AU14=0,AV14=0,AW14=0,AX14>0),AO14,AND(AU14=0,AV14=0,AW14>0,AX14=0),Z14,AND(AU14=0,AV14=0,AW14>0,AX14>0),MAX(Z14,AO14),AND(AU14=0,AV14>0,AW14=0,AX14=0),MIN(J14*PROFILE!$G$10,MAX('MDA3'!J14,'MDA3'!J14)),AND(AU14=0,AV14>0,AW14=0,AX14>0),MIN(J14*PROFILE!$G$10,MAX('MDA3'!J14,'MDA3'!M14,AO14)),AND(AU14=0,AV14>0,AW14>0,AX14=0),MIN(J14*PROFILE!$G$10,MAX('MDA3'!J14,'MDA3'!M14,Z14)),AND(AU14=0,AV14>0,AW14>0,AX14>0),MIN(J14*PROFILE!$G$10,MAX('MDA3'!J14,'MDA3'!M14,Z14,AO14)),AND(AU14>0,AV14=0,AW14=0,AX14=0),MIN(BB14,MAX('MDA1'!L14,'MDA2'!L14,'MDA5'!L14)),AND(AU14>0,AV14=0,AW14=0,AX14>0),MIN(BB14,MAX('MDA1'!L14,'MDA2'!L14,'MDA5'!L14,AO14)),AND(AU14>0,AV14=0,AW14>0,AX14=0),MIN(BB14,MAX('MDA1'!L14,'MDA2'!L14,'MDA5'!L14,Z14)),AND(AU14>0,AV14=0,AW14>0,AX14>0),MIN(BB14,MAX('MDA1'!L14,'MDA2'!L14,'MDA5'!L14,Z14,AO14)),AND(AU14>0,AV14>0,AW14=0,AX14=0),MIN(BB14,MAX('MDA1'!L14,'MDA2'!L14,'MDA5'!L14,MAX('MDA3'!J14,'MDA3'!M14))),AND(AU14>0,AV14>0,AW14=0,AX14>0),MIN(BB14,MAX('MDA1'!L14,'MDA2'!L14,'MDA5'!L14,MAX('MDA3'!J14,'MDA3'!M14),AO14)),AND(AU14>0,AV14>0,AW14>0,AX14=0),MIN(BB14,MAX('MDA1'!L14,'MDA2'!L14,'MDA5'!L14,MAX('MDA3'!J14,'MDA3'!M14),Z14)),AND(AU14>0,AV14>0,AW14>0,AX14>0),MIN(BB14,MAX('MDA1'!L14,'MDA2'!L14,'MDA5'!L14,MAX('MDA3'!J14,'MDA3'!M14),Z14,AO14))) -> 120719 | BL14: 180622 | BM14: 61.24740303
A15: =IF(COUNTRY_INFO!A15=0," ",COUNTRY_INFO!A15) -> Zanzibar | B15: =IF(COUNTRY_INFO!B15=0," ",COUNTRY_INFO!B15) -> Mjini Magharibi | C15: =IF(COUNTRY_INFO!C15=0," ",COUNTRY_INFO!C15) -> Magharibi A | D15: =COUNTRY_INFO!L15 -> 208144 | G15: =MAX('MDA1'!M15,'MDA2'!M15,'MDA5'!M15) -> 227707 | H15: =IF(AND(COUNTRY_INFO!H15>0,COUNTRY_INFO!H15<4),IF(D15>G15,G15,D15),0) -> 208144 | I15: =IF(AND(COUNTRY_INFO!H15>0,COUNTRY_INFO!H15<4),IF(G15/D15*100<>0,IF(G15/D15*100>100,100,G15/D15*100),"-"),0) -> 100 | J15: =COUNTRY_INFO!M15 -> Not required | M15: =MAX('MDA1'!M15,MAX('MDA3'!I15,'MDA3'!L15)+MAX('MDA3'!J15,'MDA3'!M15)) -> 227707 | N15: =IF(AND(COUNTRY_INFO!I15>0,COUNTRY_INFO!I15<4),IF(J15>M15,M15,J15),0) -> 0 | O15: =IF(AND(COUNTRY_INFO!I15>0,COUNTRY_INFO!I15<4),IF(M15/J15*100<>0,IF(M15/J15*100>100,100,M15/J15*100),"-"),0) -> 0 | P15: =COUNTRY_INFO!Q15 -> 133649 | S15: =MAX('MDA2'!J15,'MDA5'!J15,'T1'!K15,MAX(T3_R1!J15,T3_R2!J15,T3_R3!J15)) -> 7847 | T15: =IF(AND(COUNTRY_INFO!J15>1,COUNTRY_INFO!J15<99,COUNTRY_INFO!J15<>4,COUNTRY_INFO!J15<>5),IF(COUNTRY_INFO!N15>S15,S15,COUNTRY_INFO!N15),0) -> 7847 | U15: =IF(AND(COUNTRY_INFO!J15>1,COUNTRY_INFO!J15<99,COUNTRY_INFO!J15<>4,COUNTRY_INFO!J15<>5),IF(T15/COUNTRY_INFO!N15*100<>0,IF(T15/COUNTRY_INFO!N15*100>100,100,T15/COUNTRY_INFO!N15*100),"-"),0) -> 28.80055788 | V15: =MAX('MDA1'!K15,'MDA2'!K15,'MDA5'!K15,'T1'!L15,MAX(T3_R1!K15,T3_R2!K15,T3_R3!K15)) -> 95355 | W15: =IF(AND(COUNTRY_INFO!J15>1,COUNTRY_INFO!J15<99,COUNTRY_INFO!J15<>4,COUNTRY_INFO!J15<>5),IF(COUNTRY_INFO!O15>V15,V15,COUNTRY_INFO!O15),0) -> 56282 | X15: =IF(AND(COUNTRY_INFO!J15>1,COUNTRY_INFO!J15<99,COUNTRY_INFO!J15<>4,COUNTRY_INFO!J15<>5),IF(W15/COUNTRY_INFO!O15*100<>0,IF(W15/COUNTRY_INFO!O15*100>100,100,W15/COUNTRY_INFO!O15*100),"-"),0) -> 100 | Y15: =MAX('MDA1'!L15,'MDA2'!L15,'MDA5'!L15,'T1'!M15,MAX(T3_R1!L15,T3_R2!L15,T3_R3!L15)) -> 132352 | Z15: =IF(AND(COUNTRY_INFO!J15>1,COUNTRY_INFO!J15<99,COUNTRY_INFO!J15<>4,COUNTRY_INFO!J15<>5),IF(COUNTRY_INFO!P15>Y15,Y15,COUNTRY_INFO!P15),0) -> 50121 | AA15: =IF(AND(COUNTRY_INFO!J15>1,COUNTRY_INFO!J15<99,COUNTRY_INFO!J15<>4,COUNTRY_INFO!J15<>5),IF(Z15/COUNTRY_INFO!P15*100<>0,IF(Z15/COUNTRY_INFO!P15*100>100,100,Z15/COUNTRY_INFO!P15*100),"-"),0) -> 100 | AB15: 235554 | AC15: 114250 | AD15: =IF(AND(COUNTRY_INFO!J15>1,COUNTRY_INFO!J15<99,COUNTRY_INFO!J15<>4,COUNTRY_INFO!J15<>5),IF(AC15/P15*100<>0,IF(AC15/P15*100>100,100,AC15/P15*100),"-"),0) -> 85.48511399 | AE15: =COUNTRY_INFO!U15 -> 194089 | AH15: =MAX('T1'!K15,'T2'!R15) -> 10960 | AI15: =IF(AND(COUNTRY_INFO!K15>1,COUNTRY_INFO!K15<99,COUNTRY_INFO!K15<>4,COUNTRY_INFO!K15<>5),IF(COUNTRY_INFO!R15>AH15,AH15,COUNTRY_INFO!R15),0) -> 10960 | AJ15: =IF(AND(COUNTRY_INFO!K15>1,COUNTRY_INFO!K15<99,COUNTRY_INFO!K15<>4,COUNTRY_INFO!K15<>5),IF(AI15/COUNTRY_INFO!R15*100<>0,IF(AI15/COUNTRY_INFO!R15*100>100,100,AI15/COUNTRY_INFO!R15*100),"-"),0) -> 53.63347198 | AK15: =MAX('T1'!L15,'T2'!S15) -> 66495 | AL15: =IF(AND(COUNTRY_INFO!K15>1,COUNTRY_INFO!K15<99,COUNTRY_INFO!K15<>4,COUNTRY_INFO!K15<>5),IF(COUNTRY_INFO!S15>AK15,AK15,COUNTRY_INFO!S15),0) -> 56282 | AM15: =IF(AND(COUNTRY_INFO!K15>1,COUNTRY_INFO!K15<99,COUNTRY_INFO!K15<>4,COUNTRY_INFO!K15<>5),IF(AL15/COUNTRY_INFO!S15*100<>0,IF(AL15/COUNTRY_INFO!S15*100>100,100,AL15/COUNTRY_INFO!S15*100),"-"),0) -> 100 | AN15: =MAX('T1'!M15,'T2'!T15) -> 65145 | AO15: =IF(AND(COUNTRY_INFO!K15>1,COUNTRY_INFO!K15<99,COUNTRY_INFO!K15<>4,COUNTRY_INFO!K15<>5),IF(COUNTRY_INFO!T15>AN15,AN15,COUNTRY_INFO!T15),0) -> 65145 | AP15: =IF(AND(COUNTRY_INFO!K15>1,COUNTRY_INFO!K15<99,COUNTRY_INFO!K15<>4,COUNTRY_INFO!K15<>5),IF(AO15/COUNTRY_INFO!T15*100<>0,IF(AO15/COUNTRY_INFO!T15*100>100,100,AO15/COUNTRY_INFO!T15*100),"-"),0) -> 55.50301605 | AQ15: 142600 | AR15: 132387 | AS15: =IF(AND(COUNTRY_INFO!K15>1,COUNTRY_INFO!K15<99,COUNTRY_INFO!K15<>4,COUNTRY_INFO!K15<>5),IF(AH15/AE15*100<>0,IF(AR15/AE15*100>100,100,AR15/AE15*100),"-"),0) -> 68.20942969 | AU15: =IF(AND(D15<>0,D15<>"Unknown",D15<>"Stopped",D15<>"Not required"),D15/COUNTRY_INFO!D15,0) -> 1 | AV15: =IF(AND(J15<>0,J15<>"Unknown",J15<>"Stopped",J15<>"Not required"),J15/COUNTRY_INFO!D15,0) -> 0 | AW15: =IF(AND(P15<>0,P15<>"Unknown",P15<>"Surveillance",P15<>"Not required"),P15/COUNTRY_INFO!Q15,0) -> 1 | AX15: =IF(AND(AE15<>0,AE15<>"Unknown",AE15<>"Surveillance",AE15<>"Not required"),AE15/COUNTRY_INFO!U15,0) -> 1 | AY15: =IF(AU15>0,D15*PROFILE!$G$7,IF(AV15>0,J15*PROFILE!$G$7,0)) -> 7243.295654 | AZ15: =_xlfn.IFS(OR(AU15>0,AW15>0),COUNTRY_INFO!E15,AV15>0,J15*PROFILE!$G$8,AX15>0,COUNTRY_INFO!R15,COUNTIFS(AU15:AX15,">0")=0,0) -> 27246 | BA15: =_xlfn.IFS(OR(AU15>0,AW15>0),COUNTRY_INFO!F15,AV15>0,J15*PROFILE!$G$9,AX15>0,COUNTRY_INFO!S15,COUNTIFS(AU15:AX15,">0")=0,0) -> 56282 | BB15: =_xlfn.IFS(AU15>0,COUNTRY_INFO!G15,AND(AV15>0,AW15=0,AX15=0),J15*PROFILE!$G$10,AND(AV15>0,AW15>0,AX15=0),MAX(J15*PROFILE!$G$10,COUNTRY_INFO!P15),AND(AV15>0,AW15=0,AX15>0),MAX(J15*PROFILE!$G$10,COUNTRY_INFO!T15),AND(AV15=0,AW15>0,AX15>0),MAX(COUNTRY_INFO!P15,COUNTRY_INFO!T15),AND(AV15=0,AW15>0,AX15=0),COUNTRY_INFO!P15,AND(AV15=0,AW15=0,AX15>0),COUNTRY_INFO!T15,AND(AV15>0,AW15>0,AX15>0),MAX(J15*PROFILE!$G$10,COUNTRY_INFO!P15,COUNTRY_INFO!T15),COUNTIFS(AU15:AX15,">0")=0,0) -> 117372 | BC15: 208143.2957 | BD15: Y | BE15: =MAX('MDA2'!J15,'MDA5'!J15,S15,AH15) -> 10960 | BF15: =MAX('MDA1'!K15,'MDA2'!K15,'MDA3'!I15,'MDA3'!L15,'MDA5'!K15,V15,AK15) -> 95355 | BG15: =MAX('MDA1'!L15,'MDA2'!L15,'MDA3'!J15,'MDA3'!M15,'MDA5'!L15,Y15,AN15) -> 132352 | BH15: 238667 | BI15: =_xlfn.IFS(AND(AU15=0,AW15=0,AX15=0),0,AND(AU15=0,AW15=0,AX15>0),AI15,AND(AU15=0,AW15>0,AX15=0),T15,AND(AU15=0,AW15>0,AX15>0),MAX(T15,AI15),AND(AU15>0,AW15=0,AX15=0),MIN(MAX('MDA2'!J15,'MDA5'!J15),AZ15),AND(AU15>0,AW15=0,AX15>0),MIN(MAX('MDA2'!J15,'MDA5'!J15,AI15),AZ15),AND(AU15>0,AW15>0,AX15=0),MIN(MAX('MDA2'!J15,'MDA5'!J15,T15),AZ15),AND(AU15>0,AW15>0,AX15>0),MIN(MAX('MDA2'!J15,'MDA5'!J15,AI15,T15),AZ15)) -> 10960 | BJ15: =_xlfn.IFS(AND(AU15=0,AV15=0,AW15=0,AX15=0),0,AND(AU15=0,AV15=0,AW15=0,AX15>0),AL15,AND(AU15=0,AV15=0,AW15>0,AX15=0),W15,AND(AU15=0,AV15=0,AW15>0,AX15>0),MAX(W15,AL15),AND(AU15=0,AV15>0,AW15=0,AX15=0),MIN(J15*PROFILE!$G$9,MAX('MDA3'!I15,'MDA3'!L15)),AND(AU15=0,AV15>0,AW15=0,AX15>0),MIN(J15*PROFILE!$G$9,MAX('MDA3'!I15,'MDA3'!L15,AL15)),AND(AU15=0,AV15>0,AW15>0,AX15=0),MIN(J15*PROFILE!$G$9,MAX('MDA3'!I15,'MDA3'!L15,W15)),AND(AU15=0,AV15>0,AW15>0,AX15>0),MIN(J15*PROFILE!$G$9,MAX('MDA3'!I15,'MDA3'!L15,W15,AL15)),AND(AU15>0,AV15=0,AW15=0,AX15=0),MIN(BA15,MAX('MDA1'!K15,'MDA2'!K15,'MDA5'!K15)),AND(AU15>0,AV15=0,AW15=0,AX15>0),MIN(BA15,MAX('MDA1'!K15,'MDA2'!K15,'MDA5'!K15,AL15)),AND(AU15>0,AV15=0,AW15>0,AX15=0),MIN(BA15,MAX('MDA1'!K15,'MDA2'!KL15,'MDA5'!K15,W15)),AND(AU15>0,AV15=0,AW15>0,AX15>0),MIN(BA15,MAX('MDA1'!K15,'MDA2'!K15,'MDA5'!K15,W15,AL15)),AND(AU15>0,AV15>0,AW15=0,AX15=0),MIN(BA15,MAX('MDA1'!K15,'MDA2'!K15,'MDA5'!K15,MAX('MDA3'!I15,'MDA3'!L15))),AND(AU15>0,AV15>0,AW15=0,AX15>0),MIN(BA15,MAX('MDA1'!K15,'MDA2'!K15,'MDA5'!K15,MAX('MDA3'!I15,'MDA3'!L15),AL15)),AND(AU15>0,AV15>0,AW15>0,AX15=0),MIN(BA15,MAX('MDA1'!K15,'MDA2'!K15,'MDA5'!K15,MAX('MDA3'!I15,'MDA3'!L15),W15)),AND(AU15>0,AV15>0,AW15>0,AX15>0),MIN(BA15,MAX('MDA1'!K15,'MDA2'!K15,'MDA5'!K15,MAX('MDA3'!I15,'MDA3'!L15),W15,AL15))) -> 56282 | BK15: =_xlfn.IFS(AND(AU15=0,AV15=0,AW15=0,AX15=0),0,AND(AU15=0,AV15=0,AW15=0,AX15>0),AO15,AND(AU15=0,AV15=0,AW15>0,AX15=0),Z15,AND(AU15=0,AV15=0,AW15>0,AX15>0),MAX(Z15,AO15),AND(AU15=0,AV15>0,AW15=0,AX15=0),MIN(J15*PROFILE!$G$10,MAX('MDA3'!J15,'MDA3'!J15)),AND(AU15=0,AV15>0,AW15=0,AX15>0),MIN(J15*PROFILE!$G$10,MAX('MDA3'!J15,'MDA3'!M15,AO15)),AND(AU15=0,AV15>0,AW15>0,AX15=0),MIN(J15*PROFILE!$G$10,MAX('MDA3'!J15,'MDA3'!M15,Z15)),AND(AU15=0,AV15>0,AW15>0,AX15>0),MIN(J15*PROFILE!$G$10,MAX('MDA3'!J15,'MDA3'!M15,Z15,AO15)),AND(AU15>0,AV15=0,AW15=0,AX15=0),MIN(BB15,MAX('MDA1'!L15,'MDA2'!L15,'MDA5'!L15)),AND(AU15>0,AV15=0,AW15=0,AX15>0),MIN(BB15,MAX('MDA1'!L15,'MDA2'!L15,'MDA5'!L15,AO15)),AND(AU15>0,AV15=0,AW15>0,AX15=0),MIN(BB15,MAX('MDA1'!L15,'MDA2'!L15,'MDA5'!L15,Z15)),AND(AU15>0,AV15=0,AW15>0,AX15>0),MIN(BB15,MAX('MDA1'!L15,'MDA2'!L15,'MDA5'!L15,Z15,AO15)),AND(AU15>0,AV15>0,AW15=0,AX15=0),MIN(BB15,MAX('MDA1'!L15,'MDA2'!L15,'MDA5'!L15,MAX('MDA3'!J15,'MDA3'!M15))),AND(AU15>0,AV15>0,AW15=0,AX15>0),MIN(BB15,MAX('MDA1'!L15,'MDA2'!L15,'MDA5'!L15,MAX('MDA3'!J15,'MDA3'!M15),AO15)),AND(AU15>0,AV15>0,AW15>0,AX15=0),MIN(BB15,MAX('MDA1'!L15,'MDA2'!L15,'MDA5'!L15,MAX('MDA3'!J15,'MDA3'!M15),Z15)),AND(AU15>0,AV15>0,AW15>0,AX15>0),MIN(BB15,MAX('MDA1'!L15,'MDA2'!L15,'MDA5'!L15,MAX('MDA3'!J15,'MDA3'!M15),Z15,AO15))) -> 117372 | BL15: 184614 | BM15: 88.69562645
A16: =IF(COUNTRY_INFO!A16=0," ",COUNTRY_INFO!A16) -> Zanzibar | B16: =IF(COUNTRY_INFO!B16=0," ",COUNTRY_INFO!B16) -> Mjini Magharibi | C16: =IF(COUNTRY_INFO!C16=0," ",COUNTRY_INFO!C16) -> Magharibi B | D16: =COUNTRY_INFO!L16 -> 269409 | G16: =MAX('MDA1'!M16,'MDA2'!M16,'MDA5'!M16) -> 215768 | H16: =IF(AND(COUNTRY_INFO!H16>0,COUNTRY_INFO!H16<4),IF(D16>G16,G16,D16),0) -> 215768 | I16: =IF(AND(COUNTRY_INFO!H16>0,COUNTRY_INFO!H16<4),IF(G16/D16*100<>0,IF(G16/D16*100>100,100,G16/D16*100),"-"),0) -> 80.08938083 | J16: =COUNTRY_INFO!M16 -> Not required | M16: =MAX('MDA1'!M16,MAX('MDA3'!I16,'MDA3'!L16)+MAX('MDA3'!J16,'MDA3'!M16)) -> 215768 | N16: =IF(AND(COUNTRY_INFO!I16>0,COUNTRY_INFO!I16<4),IF(J16>M16,M16,J16),0) -> 0 | O16: =IF(AND(COUNTRY_INFO!I16>0,COUNTRY_INFO!I16<4),IF(M16/J16*100<>0,IF(M16/J16*100>100,100,M16/J16*100),"-"),0) -> 0 | P16: =COUNTRY_INFO!Q16 -> 172988 | S16: =MAX('MDA2'!J16,'MDA5'!J16,'T1'!K16,MAX(T3_R1!J16,T3_R2!J16,T3_R3!J16)) -> 17186 | T16: =IF(AND(COUNTRY_INFO!J16>1,COUNTRY_INFO!J16<99,COUNTRY_INFO!J16<>4,COUNTRY_INFO!J16<>5),IF(COUNTRY_INFO!N16>S16,S16,COUNTRY_INFO!N16),0) -> 17186 | U16: =IF(AND(COUNTRY_INFO!J16>1,COUNTRY_INFO!J16<99,COUNTRY_INFO!J16<>4,COUNTRY_INFO!J16<>5),IF(T16/COUNTRY_INFO!N16*100<>0,IF(T16/COUNTRY_INFO!N16*100>100,100,T16/COUNTRY_INFO!N16*100),"-"),0) -> 48.73249022 | V16: =MAX('MDA1'!K16,'MDA2'!K16,'MDA5'!K16,'T1'!L16,MAX(T3_R1!K16,T3_R2!K16,T3_R3!K16)) -> 82499 | W16: =IF(AND(COUNTRY_INFO!J16>1,COUNTRY_INFO!J16<99,COUNTRY_INFO!J16<>4,COUNTRY_INFO!J16<>5),IF(COUNTRY_INFO!O16>V16,V16,COUNTRY_INFO!O16),0) -> 72848 | X16: =IF(AND(COUNTRY_INFO!J16>1,COUNTRY_INFO!J16<99,COUNTRY_INFO!J16<>4,COUNTRY_INFO!J16<>5),IF(W16/COUNTRY_INFO!O16*100<>0,IF(W16/COUNTRY_INFO!O16*100>100,100,W16/COUNTRY_INFO!O16*100),"-"),0) -> 100 | Y16: =MAX('MDA1'!L16,'MDA2'!L16,'MDA5'!L16,'T1'!M16,MAX(T3_R1!L16,T3_R2!L16,T3_R3!L16)) -> 133269 | Z16: =IF(AND(COUNTRY_INFO!J16>1,COUNTRY_INFO!J16<99,COUNTRY_INFO!J16<>4,COUNTRY_INFO!J16<>5),IF(COUNTRY_INFO!P16>Y16,Y16,COUNTRY_INFO!P16),0) -> 64874 | AA16: =IF(AND(COUNTRY_INFO!J16>1,COUNTRY_INFO!J16<99,COUNTRY_INFO!J16<>4,COUNTRY_INFO!J16<>5),IF(Z16/COUNTRY_INFO!P16*100<>0,IF(Z16/COUNTRY_INFO!P16*100>100,100,Z16/COUNTRY_INFO!P16*100),"-"),0) -> 100 | AB16: 232954 | AC16: 154908 | AD16: =IF(AND(COUNTRY_INFO!J16>1,COUNTRY_INFO!J16<99,COUNTRY_INFO!J16<>4,COUNTRY_INFO!J16<>5),IF(AC16/P16*100<>0,IF(AC16/P16*100>100,100,AC16/P16*100),"-"),0) -> 89.54840798 | AE16: =COUNTRY_INFO!U16 -> 251218 | AH16: =MAX('T1'!K16,'T2'!R16) -> 17186 | AI16: =IF(AND(COUNTRY_INFO!K16>1,COUNTRY_INFO!K16<99,COUNTRY_INFO!K16<>4,COUNTRY_INFO!K16<>5),IF(COUNTRY_INFO!R16>AH16,AH16,COUNTRY_INFO!R16),0) -> 17186 | AJ16: =IF(AND(COUNTRY_INFO!K16>1,COUNTRY_INFO!K16<99,COUNTRY_INFO!K16<>4,COUNTRY_INFO!K16<>5),IF(AI16/COUNTRY_INFO!R16*100<>0,IF(AI16/COUNTRY_INFO!R16*100>100,100,AI16/COUNTRY_INFO!R16*100),"-"),0) -> 64.97542533 | AK16: =MAX('T1'!L16,'T2'!S16) -> 82499 | AL16: =IF(AND(COUNTRY_INFO!K16>1,COUNTRY_INFO!K16<99,COUNTRY_INFO!K16<>4,COUNTRY_INFO!K16<>5),IF(COUNTRY_INFO!S16>AK16,AK16,COUNTRY_INFO!S16),0) -> 72848 | AM16: =IF(AND(COUNTRY_INFO!K16>1,COUNTRY_INFO!K16<99,COUNTRY_INFO!K16<>4,COUNTRY_INFO!K16<>5),IF(AL16/COUNTRY_INFO!S16*100<>0,IF(AL16/COUNTRY_INFO!S16*100>100,100,AL16/COUNTRY_INFO!S16*100),"-"),0) -> 100 | AN16: =MAX('T1'!M16,'T2'!T16) -> 133269 | AO16: =IF(AND(COUNTRY_INFO!K16>1,COUNTRY_INFO!K16<99,COUNTRY_INFO!K16<>4,COUNTRY_INFO!K16<>5),IF(COUNTRY_INFO!T16>AN16,AN16,COUNTRY_INFO!T16),0) -> 133269 | AP16: =IF(AND(COUNTRY_INFO!K16>1,COUNTRY_INFO!K16<99,COUNTRY_INFO!K16<>4,COUNTRY_INFO!K16<>5),IF(AO16/COUNTRY_INFO!T16*100<>0,IF(AO16/COUNTRY_INFO!T16*100>100,100,AO16/COUNTRY_INFO!T16*100),"-"),0) -> 87.72314376 | AQ16: 232954 | AR16: 223303 | AS16: =IF(AND(COUNTRY_INFO!K16>1,COUNTRY_INFO!K16<99,COUNTRY_INFO!K16<>4,COUNTRY_INFO!K16<>5),IF(AH16/AE16*100<>0,IF(AR16/AE16*100>100,100,AR16/AE16*100),"-"),0) -> 88.888137 | AU16: =IF(AND(D16<>0,D16<>"Unknown",D16<>"Stopped",D16<>"Not required"),D16/COUNTRY_INFO!D16,0) -> 1 | AV16: =IF(AND(J16<>0,J16<>"Unknown",J16<>"Stopped",J16<>"Not required"),J16/COUNTRY_INFO!D16,0) -> 0 | AW16: =IF(AND(P16<>0,P16<>"Unknown",P16<>"Surveillance",P16<>"Not required"),P16/COUNTRY_INFO!Q16,0) -> 1 | AX16: =IF(AND(AE16<>0,AE16<>"Unknown",AE16<>"Surveillance",AE16<>"Not required"),AE16/COUNTRY_INFO!U16,0) -> 1 | AY16: =IF(AU16>0,D16*PROFILE!$G$7,IF(AV16>0,J16*PROFILE!$G$7,0)) -> 9375.283644 | AZ16: =_xlfn.IFS(OR(AU16>0,AW16>0),COUNTRY_INFO!E16,AV16>0,J16*PROFILE!$G$8,AX16>0,COUNTRY_INFO!R16,COUNTIFS(AU16:AX16,">0")=0,0) -> 35266 | BA16: =_xlfn.IFS(OR(AU16>0,AW16>0),COUNTRY_INFO!F16,AV16>0,J16*PROFILE!$G$9,AX16>0,COUNTRY_INFO!S16,COUNTIFS(AU16:AX16,">0")=0,0) -> 72848 | BB16: =_xlfn.IFS(AU16>0,COUNTRY_INFO!G16,AND(AV16>0,AW16=0,AX16=0),J16*PROFILE!$G$10,AND(AV16>0,AW16>0,AX16=0),MAX(J16*PROFILE!$G$10,COUNTRY_INFO!P16),AND(AV16>0,AW16=0,AX16>0),MAX(J16*PROFILE!$G$10,COUNTRY_INFO!T16),AND(AV16=0,AW16>0,AX16>0),MAX(COUNTRY_INFO!P16,COUNTRY_INFO!T16),AND(AV16=0,AW16>0,AX16=0),COUNTRY_INFO!P16,AND(AV16=0,AW16=0,AX16>0),COUNTRY_INFO!T16,AND(AV16>0,AW16>0,AX16>0),MAX(J16*PROFILE!$G$10,COUNTRY_INFO!P16,COUNTRY_INFO!T16),COUNTIFS(AU16:AX16,">0")=0,0) -> 151920 | BC16: 269409.2836 | BD16: Y | BE16: =MAX('MDA2'!J16,'MDA5'!J16,S16,AH16) -> 17186 | BF16: =MAX('MDA1'!K16,'MDA2'!K16,'MDA3'!I16,'MDA3'!L16,'MDA5'!K16,V16,AK16) -> 82499 | BG16: =MAX('MDA1'!L16,'MDA2'!L16,'MDA3'!J16,'MDA3'!M16,'MDA5'!L16,Y16,AN16) -> 133269 | BH16: 232954 | BI16: =_xlfn.IFS(AND(AU16=0,AW16=0,AX16=0),0,AND(AU16=0,AW16=0,AX16>0),AI16,AND(AU16=0,AW16>0,AX16=0),T16,AND(AU16=0,AW16>0,AX16>0),MAX(T16,AI16),AND(AU16>0,AW16=0,AX16=0),MIN(MAX('MDA2'!J16,'MDA5'!J16),AZ16),AND(AU16>0,AW16=0,AX16>0),MIN(MAX('MDA2'!J16,'MDA5'!J16,AI16),AZ16),AND(AU16>0,AW16>0,AX16=0),MIN(MAX('MDA2'!J16,'MDA5'!J16,T16),AZ16),AND(AU16>0,AW16>0,AX16>0),MIN(MAX('MDA2'!J16,'MDA5'!J16,AI16,T16),AZ16)) -> 17186 | BJ16: =_xlfn.IFS(AND(AU16=0,AV16=0,AW16=0,AX16=0),0,AND(AU16=0,AV16=0,AW16=0,AX16>0),AL16,AND(AU16=0,AV16=0,AW16>0,AX16=0),W16,AND(AU16=0,AV16=0,AW16>0,AX16>0),MAX(W16,AL16),AND(AU16=0,AV16>0,AW16=0,AX16=0),MIN(J16*PROFILE!$G$9,MAX('MDA3'!I16,'MDA3'!L16)),AND(AU16=0,AV16>0,AW16=0,AX16>0),MIN(J16*PROFILE!$G$9,MAX('MDA3'!I16,'MDA3'!L16,AL16)),AND(AU16=0,AV16>0,AW16>0,AX16=0),MIN(J16*PROFILE!$G$9,MAX('MDA3'!I16,'MDA3'!L16,W16)),AND(AU16=0,AV16>0,AW16>0,AX16>0),MIN(J16*PROFILE!$G$9,MAX('MDA3'!I16,'MDA3'!L16,W16,AL16)),AND(AU16>0,AV16=0,AW16=0,AX16=0),MIN(BA16,MAX('MDA1'!K16,'MDA2'!K16,'MDA5'!K16)),AND(AU16>0,AV16=0,AW16=0,AX16>0),MIN(BA16,MAX('MDA1'!K16,'MDA2'!K16,'MDA5'!K16,AL16)),AND(AU16>0,AV16=0,AW16>0,AX16=0),MIN(BA16,MAX('MDA1'!K16,'MDA2'!KL16,'MDA5'!K16,W16)),AND(AU16>0,AV16=0,AW16>0,AX16>0),MIN(BA16,MAX('MDA1'!K16,'MDA2'!K16,'MDA5'!K16,W16,AL16)),AND(AU16>0,AV16>0,AW16=0,AX16=0),MIN(BA16,MAX('MDA1'!K16,'MDA2'!K16,'MDA5'!K16,MAX('MDA3'!I16,'MDA3'!L16))),AND(AU16>0,AV16>0,AW16=0,AX16>0),MIN(BA16,MAX('MDA1'!K16,'MDA2'!K16,'MDA5'!K16,MAX('MDA3'!I16,'MDA3'!L16),AL16)),AND(AU16>0,AV16>0,AW16>0,AX16=0),MIN(BA16,MAX('MDA1'!K16,'MDA2'!K16,'MDA5'!K16,MAX('MDA3'!I16,'MDA3'!L16),W16)),AND(AU16>0,AV16>0,AW16>0,AX16>0),MIN(BA16,MAX('MDA1'!K16,'MDA2'!K16,'MDA5'!K16,MAX('MDA3'!I16,'MDA3'!L16),W16,AL16))) -> 72848 | BK16: =_xlfn.IFS(AND(AU16=0,AV16=0,AW16=0,AX16=0),0,AND(AU16=0,AV16=0,AW16=0,AX16>0),AO16,AND(AU16=0,AV16=0,AW16>0,AX16=0),Z16,AND(AU16=0,AV16=0,AW16>0,AX16>0),MAX(Z16,AO16),AND(AU16=0,AV16>0,AW16=0,AX16=0),MIN(J16*PROFILE!$G$10,MAX('MDA3'!J16,'MDA3'!J16)),AND(AU16=0,AV16>0,AW16=0,AX16>0),MIN(J16*PROFILE!$G$10,MAX('MDA3'!J16,'MDA3'!M16,AO16)),AND(AU16=0,AV16>0,AW16>0,AX16=0),MIN(J16*PROFILE!$G$10,MAX('MDA3'!J16,'MDA3'!M16,Z16)),AND(AU16=0,AV16>0,AW16>0,AX16>0),MIN(J16*PROFILE!$G$10,MAX('MDA3'!J16,'MDA3'!M16,Z16,AO16)),AND(AU16>0,AV16=0,AW16=0,AX16=0),MIN(BB16,MAX('MDA1'!L16,'MDA2'!L16,'MDA5'!L16)),AND(AU16>0,AV16=0,AW16=0,AX16>0),MIN(BB16,MAX('MDA1'!L16,'MDA2'!L16,'MDA5'!L16,AO16)),AND(AU16>0,AV16=0,AW16>0,AX16=0),MIN(BB16,MAX('MDA1'!L16,'MDA2'!L16,'MDA5'!L16,Z16)),AND(AU16>0,AV16=0,AW16>0,AX16>0),MIN(BB16,MAX('MDA1'!L16,'MDA2'!L16,'MDA5'!L16,Z16,AO16)),AND(AU16>0,AV16>0,AW16=0,AX16=0),MIN(BB16,MAX('MDA1'!L16,'MDA2'!L16,'MDA5'!L16,MAX('MDA3'!J16,'MDA3'!M16))),AND(AU16>0,AV16>0,AW16=0,AX16>0),MIN(BB16,MAX('MDA1'!L16,'MDA2'!L16,'MDA5'!L16,MAX('MDA3'!J16,'MDA3'!M16),AO16)),AND(AU16>0,AV16>0,AW16>0,AX16=0),MIN(BB16,MAX('MDA1'!L16,'MDA2'!L16,'MDA5'!L16,MAX('MDA3'!J16,'MDA3'!M16),Z16)),AND(AU16>0,AV16>0,AW16>0,AX16>0),MIN(BB16,MAX('MDA1'!L16,'MDA2'!L16,'MDA5'!L16,MAX('MDA3'!J16,'MDA3'!M16),Z16,AO16))) -> 133269 | BL16: 223303 | BM16: 82.88615633
A17: =IF(COUNTRY_INFO!A17=0," ",COUNTRY_INFO!A17) -> Zanzibar | B17: =IF(COUNTRY_INFO!B17=0," ",COUNTRY_INFO!B17) -> Kusini Pemba | C17: =IF(COUNTRY_INFO!C17=0," ",COUNTRY_INFO!C17) -> Chake chake | D17: =COUNTRY_INFO!L17 -> 145946 | G17: =MAX('MDA1'!M17,'MDA2'!M17,'MDA5'!M17) -> 88503 | H17: =IF(AND(COUNTRY_INFO!H17>0,COUNTRY_INFO!H17<4),IF(D17>G17,G17,D17),0) -> 88503 | I17: =IF(AND(COUNTRY_INFO!H17>0,COUNTRY_INFO!H17<4),IF(G17/D17*100<>0,IF(G17/D17*100>100,100,G17/D17*100),"-"),0) -> 60.64092198 | J17: =COUNTRY_INFO!M17 -> Not required | M17: =MAX('MDA1'!M17,MAX('MDA3'!I17,'MDA3'!L17)+MAX('MDA3'!J17,'MDA3'!M17)) -> 88503 | N17: =IF(AND(COUNTRY_INFO!I17>0,COUNTRY_INFO!I17<4),IF(J17>M17,M17,J17),0) -> 0 | O17: =IF(AND(COUNTRY_INFO!I17>0,COUNTRY_INFO!I17<4),IF(M17/J17*100<>0,IF(M17/J17*100>100,100,M17/J17*100),"-"),0) -> 0 | P17: =COUNTRY_INFO!Q17 -> 93712 | S17: =MAX('MDA2'!J17,'MDA5'!J17,'T1'!K17,MAX(T3_R1!J17,T3_R2!J17,T3_R3!J17)) -> 8948 | T17: =IF(AND(COUNTRY_INFO!J17>1,COUNTRY_INFO!J17<99,COUNTRY_INFO!J17<>4,COUNTRY_INFO!J17<>5),IF(COUNTRY_INFO!N17>S17,S17,COUNTRY_INFO!N17),0) -> 8948 | U17: =IF(AND(COUNTRY_INFO!J17>1,COUNTRY_INFO!J17<99,COUNTRY_INFO!J17<>4,COUNTRY_INFO!J17<>5),IF(T17/COUNTRY_INFO!N17*100<>0,IF(T17/COUNTRY_INFO!N17*100>100,100,T17/COUNTRY_INFO!N17*100),"-"),0) -> 46.83835846 | V17: =MAX('MDA1'!K17,'MDA2'!K17,'MDA5'!K17,'T1'!L17,MAX(T3_R1!K17,T3_R2!K17,T3_R3!K17)) -> 28996 | W17: =IF(AND(COUNTRY_INFO!J17>1,COUNTRY_INFO!J17<99,COUNTRY_INFO!J17<>4,COUNTRY_INFO!J17<>5),IF(COUNTRY_INFO!O17>V17,V17,COUNTRY_INFO!O17),0) -> 28996 | X17: =IF(AND(COUNTRY_INFO!J17>1,COUNTRY_INFO!J17<99,COUNTRY_INFO!J17<>4,COUNTRY_INFO!J17<>5),IF(W17/COUNTRY_INFO!O17*100<>0,IF(W17/COUNTRY_INFO!O17*100>100,100,W17/COUNTRY_INFO!O17*100),"-"),0) -> 73.47455909 | Y17: =MAX('MDA1'!L17,'MDA2'!L17,'MDA5'!L17,'T1'!M17,MAX(T3_R1!L17,T3_R2!L17,T3_R3!L17)) -> 59507 | Z17: =IF(AND(COUNTRY_INFO!J17>1,COUNTRY_INFO!J17<99,COUNTRY_INFO!J17<>4,COUNTRY_INFO!J17<>5),IF(COUNTRY_INFO!P17>Y17,Y17,COUNTRY_INFO!P17),0) -> 35144 | AA17: =IF(AND(COUNTRY_INFO!J17>1,COUNTRY_INFO!J17<99,COUNTRY_INFO!J17<>4,COUNTRY_INFO!J17<>5),IF(Z17/COUNTRY_INFO!P17*100<>0,IF(Z17/COUNTRY_INFO!P17*100>100,100,Z17/COUNTRY_INFO!P17*100),"-"),0) -> 100 | AB17: 97451 | AC17: 73088 | AD17: =IF(AND(COUNTRY_INFO!J17>1,COUNTRY_INFO!J17<99,COUNTRY_INFO!J17<>4,COUNTRY_INFO!J17<>5),IF(AC17/P17*100<>0,IF(AC17/P17*100>100,100,AC17/P17*100),"-"),0) -> 77.99214615 | AE17: =COUNTRY_INFO!U17 -> 136091 | AH17: =MAX('T1'!K17,'T2'!R17) -> 8948 | AI17: =IF(AND(COUNTRY_INFO!K17>1,COUNTRY_INFO!K17<99,COUNTRY_INFO!K17<>4,COUNTRY_INFO!K17<>5),IF(COUNTRY_INFO!R17>AH17,AH17,COUNTRY_INFO!R17),0) -> 8948 | AJ17: =IF(AND(COUNTRY_INFO!K17>1,COUNTRY_INFO!K17<99,COUNTRY_INFO!K17<>4,COUNTRY_INFO!K17<>5),IF(AI17/COUNTRY_INFO!R17*100<>0,IF(AI17/COUNTRY_INFO!R17*100>100,100,AI17/COUNTRY_INFO!R17*100),"-"),0) -> 62.45114461 | AK17: =MAX('T1'!L17,'T2'!S17) -> 28996 | AL17: =IF(AND(COUNTRY_INFO!K17>1,COUNTRY_INFO!K17<99,COUNTRY_INFO!K17<>4,COUNTRY_INFO!K17<>5),IF(COUNTRY_INFO!S17>AK17,AK17,COUNTRY_INFO!S17),0) -> 28996 | AM17: =IF(AND(COUNTRY_INFO!K17>1,COUNTRY_INFO!K17<99,COUNTRY_INFO!K17<>4,COUNTRY_INFO!K17<>5),IF(AL17/COUNTRY_INFO!S17*100<>0,IF(AL17/COUNTRY_INFO!S17*100>100,100,AL17/COUNTRY_INFO!S17*100),"-"),0) -> 73.47455909 | AN17: =MAX('T1'!M17,'T2'!T17) -> 59507 | AO17: =IF(AND(COUNTRY_INFO!K17>1,COUNTRY_INFO!K17<99,COUNTRY_INFO!K17<>4,COUNTRY_INFO!K17<>5),IF(COUNTRY_INFO!T17>AN17,AN17,COUNTRY_INFO!T17),0) -> 59507 | AP17: =IF(AND(COUNTRY_INFO!K17>1,COUNTRY_INFO!K17<99,COUNTRY_INFO!K17<>4,COUNTRY_INFO!K17<>5),IF(AO17/COUNTRY_INFO!T17*100<>0,IF(AO17/COUNTRY_INFO!T17*100>100,100,AO17/COUNTRY_INFO!T17*100),"-"),0) -> 72.30586034 | AQ17: 97451 | AR17: 97451 | AS17: =IF(AND(COUNTRY_INFO!K17>1,COUNTRY_INFO!K17<99,COUNTRY_INFO!K17<>4,COUNTRY_INFO!K17<>5),IF(AH17/AE17*100<>0,IF(AR17/AE17*100>100,100,AR17/AE17*100),"-"),0) -> 71.6072334 | AU17: =IF(AND(D17<>0,D17<>"Unknown",D17<>"Stopped",D17<>"Not required"),D17/COUNTRY_INFO!D17,0) -> 1 | AV17: =IF(AND(J17<>0,J17<>"Unknown",J17<>"Stopped",J17<>"Not required"),J17/COUNTRY_INFO!D17,0) -> 0 | AW17: =IF(AND(P17<>0,P17<>"Unknown",P17<>"Surveillance",P17<>"Not required"),P17/COUNTRY_INFO!Q17,0) -> 1 | AX17: =IF(AND(AE17<>0,AE17<>"Unknown",AE17<>"Surveillance",AE17<>"Not required"),AE17/COUNTRY_INFO!U17,0) -> 1 | AY17: =IF(AU17>0,D17*PROFILE!$G$7,IF(AV17>0,J17*PROFILE!$G$7,0)) -> 5078.839781 | AZ17: =_xlfn.IFS(OR(AU17>0,AW17>0),COUNTRY_INFO!E17,AV17>0,J17*PROFILE!$G$8,AX17>0,COUNTRY_INFO!R17,COUNTIFS(AU17:AX17,">0")=0,0) -> 19104 | BA17: =_xlfn.IFS(OR(AU17>0,AW17>0),COUNTRY_INFO!F17,AV17>0,J17*PROFILE!$G$9,AX17>0,COUNTRY_INFO!S17,COUNTIFS(AU17:AX17,">0")=0,0) -> 39464 | BB17: =_xlfn.IFS(AU17>0,COUNTRY_INFO!G17,AND(AV17>0,AW17=0,AX17=0),J17*PROFILE!$G$10,AND(AV17>0,AW17>0,AX17=0),MAX(J17*PROFILE!$G$10,COUNTRY_INFO!P17),AND(AV17>0,AW17=0,AX17>0),MAX(J17*PROFILE!$G$10,COUNTRY_INFO!T17),AND(AV17=0,AW17>0,AX17>0),MAX(COUNTRY_INFO!P17,COUNTRY_INFO!T17),AND(AV17=0,AW17>0,AX17=0),COUNTRY_INFO!P17,AND(AV17=0,AW17=0,AX17>0),COUNTRY_INFO!T17,AND(AV17>0,AW17>0,AX17>0),MAX(J17*PROFILE!$G$10,COUNTRY_INFO!P17,COUNTRY_INFO!T17),COUNTIFS(AU17:AX17,">0")=0,0) -> 82299 | BC17: 145945.8398 | BD17: Y | BE17: =MAX('MDA2'!J17,'MDA5'!J17,S17,AH17) -> 8948 | BF17: =MAX('MDA1'!K17,'MDA2'!K17,'MDA3'!I17,'MDA3'!L17,'MDA5'!K17,V17,AK17) -> 28996 | BG17: =MAX('MDA1'!L17,'MDA2'!L17,'MDA3'!J17,'MDA3'!M17,'MDA5'!L17,Y17,AN17) -> 59507 | BH17: 97451 | BI17: =_xlfn.IFS(AND(AU17=0,AW17=0,AX17=0),0,AND(AU17=0,AW17=0,AX17>0),AI17,AND(AU17=0,AW17>0,AX17=0),T17,AND(AU17=0,AW17>0,AX17>0),MAX(T17,AI17),AND(AU17>0,AW17=0,AX17=0),MIN(MAX('MDA2'!J17,'MDA5'!J17),AZ17),AND(AU17>0,AW17=0,AX17>0),MIN(MAX('MDA2'!J17,'MDA5'!J17,AI17),AZ17),AND(AU17>0,AW17>0,AX17=0),MIN(MAX('MDA2'!J17,'MDA5'!J17,T17),AZ17),AND(AU17>0,AW17>0,AX17>0),MIN(MAX('MDA2'!J17,'MDA5'!J17,AI17,T17),AZ17)) -> 8948 | BJ17: =_xlfn.IFS(AND(AU17=0,AV17=0,AW17=0,AX17=0),0,AND(AU17=0,AV17=0,AW17=0,AX17>0),AL17,AND(AU17=0,AV17=0,AW17>0,AX17=0),W17,AND(AU17=0,AV17=0,AW17>0,AX17>0),MAX(W17,AL17),AND(AU17=0,AV17>0,AW17=0,AX17=0),MIN(J17*PROFILE!$G$9,MAX('MDA3'!I17,'MDA3'!L17)),AND(AU17=0,AV17>0,AW17=0,AX17>0),MIN(J17*PROFILE!$G$9,MAX('MDA3'!I17,'MDA3'!L17,AL17)),AND(AU17=0,AV17>0,AW17>0,AX17=0),MIN(J17*PROFILE!$G$9,MAX('MDA3'!I17,'MDA3'!L17,W17)),AND(AU17=0,AV17>0,AW17>0,AX17>0),MIN(J17*PROFILE!$G$9,MAX('MDA3'!I17,'MDA3'!L17,W17,AL17)),AND(AU17>0,AV17=0,AW17=0,AX17=0),MIN(BA17,MAX('MDA1'!K17,'MDA2'!K17,'MDA5'!K17)),AND(AU17>0,AV17=0,AW17=0,AX17>0),MIN(BA17,MAX('MDA1'!K17,'MDA2'!K17,'MDA5'!K17,AL17)),AND(AU17>0,AV17=0,AW17>0,AX17=0),MIN(BA17,MAX('MDA1'!K17,'MDA2'!KL17,'MDA5'!K17,W17)),AND(AU17>0,AV17=0,AW17>0,AX17>0),MIN(BA17,MAX('MDA1'!K17,'MDA2'!K17,'MDA5'!K17,W17,AL17)),AND(AU17>0,AV17>0,AW17=0,AX17=0),MIN(BA17,MAX('MDA1'!K17,'MDA2'!K17,'MDA5'!K17,MAX('MDA3'!I17,'MDA3'!L17))),AND(AU17>0,AV17>0,AW17=0,AX17>0),MIN(BA17,MAX('MDA1'!K17,'MDA2'!K17,'MDA5'!K17,MAX('MDA3'!I17,'MDA3'!L17),AL17)),AND(AU17>0,AV17>0,AW17>0,AX17=0),MIN(BA17,MAX('MDA1'!K17,'MDA2'!K17,'MDA5'!K17,MAX('MDA3'!I17,'MDA3'!L17),W17)),AND(AU17>0,AV17>0,AW17>0,AX17>0),MIN(BA17,MAX('MDA1'!K17,'MDA2'!K17,'MDA5'!K17,MAX('MDA3'!I17,'MDA3'!L17),W17,AL17))) -> 28996 | BK17: =_xlfn.IFS(AND(AU17=0,AV17=0,AW17=0,AX17=0),0,AND(AU17=0,AV17=0,AW17=0,AX17>0),AO17,AND(AU17=0,AV17=0,AW17>0,AX17=0),Z17,AND(AU17=0,AV17=0,AW17>0,AX17>0),MAX(Z17,AO17),AND(AU17=0,AV17>0,AW17=0,AX17=0),MIN(J17*PROFILE!$G$10,MAX('MDA3'!J17,'MDA3'!J17)),AND(AU17=0,AV17>0,AW17=0,AX17>0),MIN(J17*PROFILE!$G$10,MAX('MDA3'!J17,'MDA3'!M17,AO17)),AND(AU17=0,AV17>0,AW17>0,AX17=0),MIN(J17*PROFILE!$G$10,MAX('MDA3'!J17,'MDA3'!M17,Z17)),AND(AU17=0,AV17>0,AW17>0,AX17>0),MIN(J17*PROFILE!$G$10,MAX('MDA3'!J17,'MDA3'!M17,Z17,AO17)),AND(AU17>0,AV17=0,AW17=0,AX17=0),MIN(BB17,MAX('MDA1'!L17,'MDA2'!L17,'MDA5'!L17)),AND(AU17>0,AV17=0,AW17=0,AX17>0),MIN(BB17,MAX('MDA1'!L17,'MDA2'!L17,'MDA5'!L17,AO17)),AND(AU17>0,AV17=0,AW17>0,AX17=0),MIN(BB17,MAX('MDA1'!L17,'MDA2'!L17,'MDA5'!L17,Z17)),AND(AU17>0,AV17=0,AW17>0,AX17>0),MIN(BB17,MAX('MDA1'!L17,'MDA2'!L17,'MDA5'!L17,Z17,AO17)),AND(AU17>0,AV17>0,AW17=0,AX17=0),MIN(BB17,MAX('MDA1'!L17,'MDA2'!L17,'MDA5'!L17,MAX('MDA3'!J17,'MDA3'!M17))),AND(AU17>0,AV17>0,AW17=0,AX17>0),MIN(BB17,MAX('MDA1'!L17,'MDA2'!L17,'MDA5'!L17,MAX('MDA3'!J17,'MDA3'!M17),AO17)),AND(AU17>0,AV17>0,AW17>0,AX17=0),MIN(BB17,MAX('MDA1'!L17,'MDA2'!L17,'MDA5'!L17,MAX('MDA3'!J17,'MDA3'!M17),Z17)),AND(AU17>0,AV17>0,AW17>0,AX17>0),MIN(BB17,MAX('MDA1'!L17,'MDA2'!L17,'MDA5'!L17,MAX('MDA3'!J17,'MDA3'!M17),Z17,AO17))) -> 59507 | BL17: 97451 | BM17: 66.77203005
A18: =IF(COUNTRY_INFO!A18=0," ",COUNTRY_INFO!A18) -> Zanzibar | B18: =IF(COUNTRY_INFO!B18=0," ",COUNTRY_INFO!B18) -> Kusini Pemba | C18: =IF(COUNTRY_INFO!C18=0," ",COUNTRY_INFO!C18) -> Mkoani | D18: =COUNTRY_INFO!L18 -> 145594 | G18: =MAX('MDA1'!M18,'MDA2'!M18,'MDA5'!M18) -> 91715 | H18: =IF(AND(COUNTRY_INFO!H18>0,COUNTRY_INFO!H18<4),IF(D18>G18,G18,D18),0) -> 91715 | I18: =IF(AND(COUNTRY_INFO!H18>0,COUNTRY_INFO!H18<4),IF(G18/D18*100<>0,IF(G18/D18*100>100,100,G18/D18*100),"-"),0) -> 62.99366732 | J18: =COUNTRY_INFO!M18 -> Not required | M18: =MAX('MDA1'!M18,MAX('MDA3'!I18,'MDA3'!L18)+MAX('MDA3'!J18,'MDA3'!M18)) -> 91715 | N18: =IF(AND(COUNTRY_INFO!I18>0,COUNTRY_INFO!I18<4),IF(J18>M18,M18,J18),0) -> 0 | O18: =IF(AND(COUNTRY_INFO!I18>0,COUNTRY_INFO!I18<4),IF(M18/J18*100<>0,IF(M18/J18*100>100,100,M18/J18*100),"-"),0) -> 0 | P18: =COUNTRY_INFO!Q18 -> 93486 | S18: =MAX('MDA2'!J18,'MDA5'!J18,'T1'!K18,MAX(T3_R1!J18,T3_R2!J18,T3_R3!J18)) -> 8558 | T18: =IF(AND(COUNTRY_INFO!J18>1,COUNTRY_INFO!J18<99,COUNTRY_INFO!J18<>4,COUNTRY_INFO!J18<>5),IF(COUNTRY_INFO!N18>S18,S18,COUNTRY_INFO!N18),0) -> 8558 | U18: =IF(AND(COUNTRY_INFO!J18>1,COUNTRY_INFO!J18<99,COUNTRY_INFO!J18<>4,COUNTRY_INFO!J18<>5),IF(T18/COUNTRY_INFO!N18*100<>0,IF(T18/COUNTRY_INFO!N18*100>100,100,T18/COUNTRY_INFO!N18*100),"-"),0) -> 44.90502676 | V18: =MAX('MDA1'!K18,'MDA2'!K18,'MDA5'!K18,'T1'!L18,MAX(T3_R1!K18,T3_R2!K18,T3_R3!K18)) -> 35547 | W18: =IF(AND(COUNTRY_INFO!J18>1,COUNTRY_INFO!J18<99,COUNTRY_INFO!J18<>4,COUNTRY_INFO!J18<>5),IF(COUNTRY_INFO!O18>V18,V18,COUNTRY_INFO!O18),0) -> 35547 | X18: =IF(AND(COUNTRY_INFO!J18>1,COUNTRY_INFO!J18<99,COUNTRY_INFO!J18<>4,COUNTRY_INFO!J18<>5),IF(W18/COUNTRY_INFO!O18*100<>0,IF(W18/COUNTRY_INFO!O18*100>100,100,W18/COUNTRY_INFO!O18*100),"-"),0) -> 90.291854 | Y18: =MAX('MDA1'!L18,'MDA2'!L18,'MDA5'!L18,'T1'!M18,MAX(T3_R1!L18,T3_R2!L18,T3_R3!L18)) -> 56168 | Z18: =IF(AND(COUNTRY_INFO!J18>1,COUNTRY_INFO!J18<99,COUNTRY_INFO!J18<>4,COUNTRY_INFO!J18<>5),IF(COUNTRY_INFO!P18>Y18,Y18,COUNTRY_INFO!P18),0) -> 35059 | AA18: =IF(AND(COUNTRY_INFO!J18>1,COUNTRY_INFO!J18<99,COUNTRY_INFO!J18<>4,COUNTRY_INFO!J18<>5),IF(Z18/COUNTRY_INFO!P18*100<>0,IF(Z18/COUNTRY_INFO!P18*100>100,100,Z18/COUNTRY_INFO!P18*100),"-"),0) -> 100 | AB18: 100273 | AC18: 79164 | AD18: =IF(AND(COUNTRY_INFO!J18>1,COUNTRY_INFO!J18<99,COUNTRY_INFO!J18<>4,COUNTRY_INFO!J18<>5),IF(AC18/P18*100<>0,IF(AC18/P18*100>100,100,AC18/P18*100),"-"),0) -> 84.68005905 | AE18: =COUNTRY_INFO!U18 -> 135763 | AH18: =MAX('T1'!K18,'T2'!R18) -> 8843 | AI18: =IF(AND(COUNTRY_INFO!K18>1,COUNTRY_INFO!K18<99,COUNTRY_INFO!K18<>4,COUNTRY_INFO!K18<>5),IF(COUNTRY_INFO!R18>AH18,AH18,COUNTRY_INFO!R18),0) -> 8843 | AJ18: =IF(AND(COUNTRY_INFO!K18>1,COUNTRY_INFO!K18<99,COUNTRY_INFO!K18<>4,COUNTRY_INFO!K18<>5),IF(AI18/COUNTRY_INFO!R18*100<>0,IF(AI18/COUNTRY_INFO!R18*100>100,100,AI18/COUNTRY_INFO!R18*100),"-"),0) -> 61.86511823 | AK18: =MAX('T1'!L18,'T2'!S18) -> 35547 | AL18: =IF(AND(COUNTRY_INFO!K18>1,COUNTRY_INFO!K18<99,COUNTRY_INFO!K18<>4,COUNTRY_INFO!K18<>5),IF(COUNTRY_INFO!S18>AK18,AK18,COUNTRY_INFO!S18),0) -> 35547 | AM18: =IF(AND(COUNTRY_INFO!K18>1,COUNTRY_INFO!K18<99,COUNTRY_INFO!K18<>4,COUNTRY_INFO!K18<>5),IF(AL18/COUNTRY_INFO!S18*100<>0,IF(AL18/COUNTRY_INFO!S18*100>100,100,AL18/COUNTRY_INFO!S18*100),"-"),0) -> 90.291854 | AN18: =MAX('T1'!M18,'T2'!T18) -> 56168 | AO18: =IF(AND(COUNTRY_INFO!K18>1,COUNTRY_INFO!K18<99,COUNTRY_INFO!K18<>4,COUNTRY_INFO!K18<>5),IF(COUNTRY_INFO!T18>AN18,AN18,COUNTRY_INFO!T18),0) -> 56168 | AP18: =IF(AND(COUNTRY_INFO!K18>1,COUNTRY_INFO!K18<99,COUNTRY_INFO!K18<>4,COUNTRY_INFO!K18<>5),IF(AO18/COUNTRY_INFO!T18*100<>0,IF(AO18/COUNTRY_INFO!T18*100>100,100,AO18/COUNTRY_INFO!T18*100),"-"),0) -> 68.41412911 | AQ18: 100558 | AR18: 100558 | AS18: =IF(AND(COUNTRY_INFO!K18>1,COUNTRY_INFO!K18<99,COUNTRY_INFO!K18<>4,COUNTRY_INFO!K18<>5),IF(AH18/AE18*100<>0,IF(AR18/AE18*100>100,100,AR18/AE18*100),"-"),0) -> 74.06878163 | AU18: =IF(AND(D18<>0,D18<>"Unknown",D18<>"Stopped",D18<>"Not required"),D18/COUNTRY_INFO!D18,0) -> 1 | AV18: =IF(AND(J18<>0,J18<>"Unknown",J18<>"Stopped",J18<>"Not required"),J18/COUNTRY_INFO!D18,0) -> 0 | AW18: =IF(AND(P18<>0,P18<>"Unknown",P18<>"Surveillance",P18<>"Not required"),P18/COUNTRY_INFO!Q18,0) -> 1 | AX18: =IF(AND(AE18<>0,AE18<>"Unknown",AE18<>"Surveillance",AE18<>"Not required"),AE18/COUNTRY_INFO!U18,0) -> 1 | AY18: =IF(AU18>0,D18*PROFILE!$G$7,IF(AV18>0,J18*PROFILE!$G$7,0)) -> 5066.590377 | AZ18: =_xlfn.IFS(OR(AU18>0,AW18>0),COUNTRY_INFO!E18,AV18>0,J18*PROFILE!$G$8,AX18>0,COUNTRY_INFO!R18,COUNTIFS(AU18:AX18,">0")=0,0) -> 19058 | BA18: =_xlfn.IFS(OR(AU18>0,AW18>0),COUNTRY_INFO!F18,AV18>0,J18*PROFILE!$G$9,AX18>0,COUNTRY_INFO!S18,COUNTIFS(AU18:AX18,">0")=0,0) -> 39369 | BB18: =_xlfn.IFS(AU18>0,COUNTRY_INFO!G18,AND(AV18>0,AW18=0,AX18=0),J18*PROFILE!$G$10,AND(AV18>0,AW18>0,AX18=0),MAX(J18*PROFILE!$G$10,COUNTRY_INFO!P18),AND(AV18>0,AW18=0,AX18>0),MAX(J18*PROFILE!$G$10,COUNTRY_INFO!T18),AND(AV18=0,AW18>0,AX18>0),MAX(COUNTRY_INFO!P18,COUNTRY_INFO!T18),AND(AV18=0,AW18>0,AX18=0),COUNTRY_INFO!P18,AND(AV18=0,AW18=0,AX18>0),COUNTRY_INFO!T18,AND(AV18>0,AW18>0,AX18>0),MAX(J18*PROFILE!$G$10,COUNTRY_INFO!P18,COUNTRY_INFO!T18),COUNTIFS(AU18:AX18,">0")=0,0) -> 82100 | BC18: 145593.5904 | BD18: Y | BE18: =MAX('MDA2'!J18,'MDA5'!J18,S18,AH18) -> 8843 | BF18: =MAX('MDA1'!K18,'MDA2'!K18,'MDA3'!I18,'MDA3'!L18,'MDA5'!K18,V18,AK18) -> 35547 | BG18: =MAX('MDA1'!L18,'MDA2'!L18,'MDA3'!J18,'MDA3'!M18,'MDA5'!L18,Y18,AN18) -> 56168 | BH18: 100558 | BI18: =_xlfn.IFS(AND(AU18=0,AW18=0,AX18=0),0,AND(AU18=0,AW18=0,AX18>0),AI18,AND(AU18=0,AW18>0,AX18=0),T18,AND(AU18=0,AW18>0,AX18>0),MAX(T18,AI18),AND(AU18>0,AW18=0,AX18=0),MIN(MAX('MDA2'!J18,'MDA5'!J18),AZ18),AND(AU18>0,AW18=0,AX18>0),MIN(MAX('MDA2'!J18,'MDA5'!J18,AI18),AZ18),AND(AU18>0,AW18>0,AX18=0),MIN(MAX('MDA2'!J18,'MDA5'!J18,T18),AZ18),AND(AU18>0,AW18>0,AX18>0),MIN(MAX('MDA2'!J18,'MDA5'!J18,AI18,T18),AZ18)) -> 8843 | BJ18: =_xlfn.IFS(AND(AU18=0,AV18=0,AW18=0,AX18=0),0,AND(AU18=0,AV18=0,AW18=0,AX18>0),AL18,AND(AU18=0,AV18=0,AW18>0,AX18=0),W18,AND(AU18=0,AV18=0,AW18>0,AX18>0),MAX(W18,AL18),AND(AU18=0,AV18>0,AW18=0,AX18=0),MIN(J18*PROFILE!$G$9,MAX('MDA3'!I18,'MDA3'!L18)),AND(AU18=0,AV18>0,AW18=0,AX18>0),MIN(J18*PROFILE!$G$9,MAX('MDA3'!I18,'MDA3'!L18,AL18)),AND(AU18=0,AV18>0,AW18>0,AX18=0),MIN(J18*PROFILE!$G$9,MAX('MDA3'!I18,'MDA3'!L18,W18)),AND(AU18=0,AV18>0,AW18>0,AX18>0),MIN(J18*PROFILE!$G$9,MAX('MDA3'!I18,'MDA3'!L18,W18,AL18)),AND(AU18>0,AV18=0,AW18=0,AX18=0),MIN(BA18,MAX('MDA1'!K18,'MDA2'!K18,'MDA5'!K18)),AND(AU18>0,AV18=0,AW18=0,AX18>0),MIN(BA18,MAX('MDA1'!K18,'MDA2'!K18,'MDA5'!K18,AL18)),AND(AU18>0,AV18=0,AW18>0,AX18=0),MIN(BA18,MAX('MDA1'!K18,'MDA2'!KL18,'MDA5'!K18,W18)),AND(AU18>0,AV18=0,AW18>0,AX18>0),MIN(BA18,MAX('MDA1'!K18,'MDA2'!K18,'MDA5'!K18,W18,AL18)),AND(AU18>0,AV18>0,AW18=0,AX18=0),MIN(BA18,MAX('MDA1'!K18,'MDA2'!K18,'MDA5'!K18,MAX('MDA3'!I18,'MDA3'!L18))),AND(AU18>0,AV18>0,AW18=0,AX18>0),MIN(BA18,MAX('MDA1'!K18,'MDA2'!K18,'MDA5'!K18,MAX('MDA3'!I18,'MDA3'!L18),AL18)),AND(AU18>0,AV18>0,AW18>0,AX18=0),MIN(BA18,MAX('MDA1'!K18,'MDA2'!K18,'MDA5'!K18,MAX('MDA3'!I18,'MDA3'!L18),W18)),AND(AU18>0,AV18>0,AW18>0,AX18>0),MIN(BA18,MAX('MDA1'!K18,'MDA2'!K18,'MDA5'!K18,MAX('MDA3'!I18,'MDA3'!L18),W18,AL18))) -> 35547 | BK18: =_xlfn.IFS(AND(AU18=0,AV18=0,AW18=0,AX18=0),0,AND(AU18=0,AV18=0,AW18=0,AX18>0),AO18,AND(AU18=0,AV18=0,AW18>0,AX18=0),Z18,AND(AU18=0,AV18=0,AW18>0,AX18>0),MAX(Z18,AO18),AND(AU18=0,AV18>0,AW18=0,AX18=0),MIN(J18*PROFILE!$G$10,MAX('MDA3'!J18,'MDA3'!J18)),AND(AU18=0,AV18>0,AW18=0,AX18>0),MIN(J18*PROFILE!$G$10,MAX('MDA3'!J18,'MDA3'!M18,AO18)),AND(AU18=0,AV18>0,AW18>0,AX18=0),MIN(J18*PROFILE!$G$10,MAX('MDA3'!J18,'MDA3'!M18,Z18)),AND(AU18=0,AV18>0,AW18>0,AX18>0),MIN(J18*PROFILE!$G$10,MAX('MDA3'!J18,'MDA3'!M18,Z18,AO18)),AND(AU18>0,AV18=0,AW18=0,AX18=0),MIN(BB18,MAX('MDA1'!L18,'MDA2'!L18,'MDA5'!L18)),AND(AU18>0,AV18=0,AW18=0,AX18>0),MIN(BB18,MAX('MDA1'!L18,'MDA2'!L18,'MDA5'!L18,AO18)),AND(AU18>0,AV18=0,AW18>0,AX18=0),MIN(BB18,MAX('MDA1'!L18,'MDA2'!L18,'MDA5'!L18,Z18)),AND(AU18>0,AV18=0,AW18>0,AX18>0),MIN(BB18,MAX('MDA1'!L18,'MDA2'!L18,'MDA5'!L18,Z18,AO18)),AND(AU18>0,AV18>0,AW18=0,AX18=0),MIN(BB18,MAX('MDA1'!L18,'MDA2'!L18,'MDA5'!L18,MAX('MDA3'!J18,'MDA3'!M18))),AND(AU18>0,AV18>0,AW18=0,AX18>0),MIN(BB18,MAX('MDA1'!L18,'MDA2'!L18,'MDA5'!L18,MAX('MDA3'!J18,'MDA3'!M18),AO18)),AND(AU18>0,AV18>0,AW18>0,AX18=0),MIN(BB18,MAX('MDA1'!L18,'MDA2'!L18,'MDA5'!L18,MAX('MDA3'!J18,'MDA3'!M18),Z18)),AND(AU18>0,AV18>0,AW18>0,AX18>0),MIN(BB18,MAX('MDA1'!L18,'MDA2'!L18,'MDA5'!L18,MAX('MDA3'!J18,'MDA3'!M18),Z18,AO18))) -> 56168 | BL18: 100558 | BM18: 69.06760094
A19: =IF(COUNTRY_INFO!A19=0," ",COUNTRY_INFO!A19) -> Zanzibar | B19: =IF(COUNTRY_INFO!B19=0," ",COUNTRY_INFO!B19) -> Kaskazini Pemba | C19: =IF(COUNTRY_INFO!C19=0," ",COUNTRY_INFO!C19) -> Wete | D19: =COUNTRY_INFO!L19 -> 159785 | G19: =MAX('MDA1'!M19,'MDA2'!M19,'MDA5'!M19) -> 98591 | H19: =IF(AND(COUNTRY_INFO!H19>0,COUNTRY_INFO!H19<4),IF(D19>G19,G19,D19),0) -> 98591 | I19: =IF(AND(COUNTRY_INFO!H19>0,COUNTRY_INFO!H19<4),IF(G19/D19*100<>0,IF(G19/D19*100>100,100,G19/D19*100),"-"),0) -> 61.70228745 | J19: =COUNTRY_INFO!M19 -> Not required | M19: =MAX('MDA1'!M19,MAX('MDA3'!I19,'MDA3'!L19)+MAX('MDA3'!J19,'MDA3'!M19)) -> 98591 | N19: =IF(AND(COUNTRY_INFO!I19>0,COUNTRY_INFO!I19<4),IF(J19>M19,M19,J19),0) -> 0 | O19: =IF(AND(COUNTRY_INFO!I19>0,COUNTRY_INFO!I19<4),IF(M19/J19*100<>0,IF(M19/J19*100>100,100,M19/J19*100),"-"),0) -> 0 | P19: =COUNTRY_INFO!Q19 -> 102598 | S19: =MAX('MDA2'!J19,'MDA5'!J19,'T1'!K19,MAX(T3_R1!J19,T3_R2!J19,T3_R3!J19)) -> 8552 | T19: =IF(AND(COUNTRY_INFO!J19>1,COUNTRY_INFO!J19<99,COUNTRY_INFO!J19<>4,COUNTRY_INFO!J19<>5),IF(COUNTRY_INFO!N19>S19,S19,COUNTRY_INFO!N19),0) -> 8552 | U19: =IF(AND(COUNTRY_INFO!J19>1,COUNTRY_INFO!J19<99,COUNTRY_INFO!J19<>4,COUNTRY_INFO!J19<>5),IF(T19/COUNTRY_INFO!N19*100<>0,IF(T19/COUNTRY_INFO!N19*100>100,100,T19/COUNTRY_INFO!N19*100),"-"),0) -> 40.88735896 | V19: =MAX('MDA1'!K19,'MDA2'!K19,'MDA5'!K19,'T1'!L19,MAX(T3_R1!K19,T3_R2!K19,T3_R3!K19)) -> 36500 | W19: =IF(AND(COUNTRY_INFO!J19>1,COUNTRY_INFO!J19<99,COUNTRY_INFO!J19<>4,COUNTRY_INFO!J19<>5),IF(COUNTRY_INFO!O19>V19,V19,COUNTRY_INFO!O19),0) -> 36500 | X19: =IF(AND(COUNTRY_INFO!J19>1,COUNTRY_INFO!J19<99,COUNTRY_INFO!J19<>4,COUNTRY_INFO!J19<>5),IF(W19/COUNTRY_INFO!O19*100<>0,IF(W19/COUNTRY_INFO!O19*100>100,100,W19/COUNTRY_INFO!O19*100),"-"),0) -> 84.47900755 | Y19: =MAX('MDA1'!L19,'MDA2'!L19,'MDA5'!L19,'T1'!M19,MAX(T3_R1!L19,T3_R2!L19,T3_R3!L19)) -> 62091 | Z19: =IF(AND(COUNTRY_INFO!J19>1,COUNTRY_INFO!J19<99,COUNTRY_INFO!J19<>4,COUNTRY_INFO!J19<>5),IF(COUNTRY_INFO!P19>Y19,Y19,COUNTRY_INFO!P19),0) -> 38476 | AA19: =IF(AND(COUNTRY_INFO!J19>1,COUNTRY_INFO!J19<99,COUNTRY_INFO!J19<>4,COUNTRY_INFO!J19<>5),IF(Z19/COUNTRY_INFO!P19*100<>0,IF(Z19/COUNTRY_INFO!P19*100>100,100,Z19/COUNTRY_INFO!P19*100),"-"),0) -> 100 | AB19: 107143 | AC19: 83528 | AD19: =IF(AND(COUNTRY_INFO!J19>1,COUNTRY_INFO!J19<99,COUNTRY_INFO!J19<>4,COUNTRY_INFO!J19<>5),IF(AC19/P19*100<>0,IF(AC19/P19*100>100,100,AC19/P19*100),"-"),0) -> 81.41289304 | AE19: =COUNTRY_INFO!U19 -> 148996 | AH19: =MAX('T1'!K19,'T2'!R19) -> 8552 | AI19: =IF(AND(COUNTRY_INFO!K19>1,COUNTRY_INFO!K19<99,COUNTRY_INFO!K19<>4,COUNTRY_INFO!K19<>5),IF(COUNTRY_INFO!R19>AH19,AH19,COUNTRY_INFO!R19),0) -> 8552 | AJ19: =IF(AND(COUNTRY_INFO!K19>1,COUNTRY_INFO!K19<99,COUNTRY_INFO!K19<>4,COUNTRY_INFO!K19<>5),IF(AI19/COUNTRY_INFO!R19*100<>0,IF(AI19/COUNTRY_INFO!R19*100>100,100,AI19/COUNTRY_INFO!R19*100),"-"),0) -> 54.51647861 | AK19: =MAX('T1'!L19,'T2'!S19) -> 36500 | AL19: =IF(AND(COUNTRY_INFO!K19>1,COUNTRY_INFO!K19<99,COUNTRY_INFO!K19<>4,COUNTRY_INFO!K19<>5),IF(COUNTRY_INFO!S19>AK19,AK19,COUNTRY_INFO!S19),0) -> 36500 | AM19: =IF(AND(COUNTRY_INFO!K19>1,COUNTRY_INFO!K19<99,COUNTRY_INFO!K19<>4,COUNTRY_INFO!K19<>5),IF(AL19/COUNTRY_INFO!S19*100<>0,IF(AL19/COUNTRY_INFO!S19*100>100,100,AL19/COUNTRY_INFO!S19*100),"-"),0) -> 84.47900755 | AN19: =MAX('T1'!M19,'T2'!T19) -> 62091 | AO19: =IF(AND(COUNTRY_INFO!K19>1,COUNTRY_INFO!K19<99,COUNTRY_INFO!K19<>4,COUNTRY_INFO!K19<>5),IF(COUNTRY_INFO!T19>AN19,AN19,COUNTRY_INFO!T19),0) -> 62091 | AP19: =IF(AND(COUNTRY_INFO!K19>1,COUNTRY_INFO!K19<99,COUNTRY_INFO!K19<>4,COUNTRY_INFO!K19<>5),IF(AO19/COUNTRY_INFO!T19*100<>0,IF(AO19/COUNTRY_INFO!T19*100>100,100,AO19/COUNTRY_INFO!T19*100),"-"),0) -> 68.91113503 | AQ19: 107143 | AR19: 107143 | AS19: =IF(AND(COUNTRY_INFO!K19>1,COUNTRY_INFO!K19<99,COUNTRY_INFO!K19<>4,COUNTRY_INFO!K19<>5),IF(AH19/AE19*100<>0,IF(AR19/AE19*100>100,100,AR19/AE19*100),"-"),0) -> 71.90998416 | AU19: =IF(AND(D19<>0,D19<>"Unknown",D19<>"Stopped",D19<>"Not required"),D19/COUNTRY_INFO!D19,0) -> 1 | AV19: =IF(AND(J19<>0,J19<>"Unknown",J19<>"Stopped",J19<>"Not required"),J19/COUNTRY_INFO!D19,0) -> 0 | AW19: =IF(AND(P19<>0,P19<>"Unknown",P19<>"Surveillance",P19<>"Not required"),P19/COUNTRY_INFO!Q19,0) -> 1 | AX19: =IF(AND(AE19<>0,AE19<>"Unknown",AE19<>"Surveillance",AE19<>"Not required"),AE19/COUNTRY_INFO!U19,0) -> 1 | AY19: =IF(AU19>0,D19*PROFILE!$G$7,IF(AV19>0,J19*PROFILE!$G$7,0)) -> 5560.429299 | AZ19: =_xlfn.IFS(OR(AU19>0,AW19>0),COUNTRY_INFO!E19,AV19>0,J19*PROFILE!$G$8,AX19>0,COUNTRY_INFO!R19,COUNTIFS(AU19:AX19,">0")=0,0) -> 20916 | BA19: =_xlfn.IFS(OR(AU19>0,AW19>0),COUNTRY_INFO!F19,AV19>0,J19*PROFILE!$G$9,AX19>0,COUNTRY_INFO!S19,COUNTIFS(AU19:AX19,">0")=0,0) -> 43206 | BB19: =_xlfn.IFS(AU19>0,COUNTRY_INFO!G19,AND(AV19>0,AW19=0,AX19=0),J19*PROFILE!$G$10,AND(AV19>0,AW19>0,AX19=0),MAX(J19*PROFILE!$G$10,COUNTRY_INFO!P19),AND(AV19>0,AW19=0,AX19>0),MAX(J19*PROFILE!$G$10,COUNTRY_INFO!T19),AND(AV19=0,AW19>0,AX19>0),MAX(COUNTRY_INFO!P19,COUNTRY_INFO!T19),AND(AV19=0,AW19>0,AX19=0),COUNTRY_INFO!P19,AND(AV19=0,AW19=0,AX19>0),COUNTRY_INFO!T19,AND(AV19>0,AW19>0,AX19>0),MAX(J19*PROFILE!$G$10,COUNTRY_INFO!P19,COUNTRY_INFO!T19),COUNTIFS(AU19:AX19,">0")=0,0) -> 90103 | BC19: 159785.4293 | BD19: Y | BE19: =MAX('MDA2'!J19,'MDA5'!J19,S19,AH19) -> 8552 | BF19: =MAX('MDA1'!K19,'MDA2'!K19,'MDA3'!I19,'MDA3'!L19,'MDA5'!K19,V19,AK19) -> 36500 | BG19: =MAX('MDA1'!L19,'MDA2'!L19,'MDA3'!J19,'MDA3'!M19,'MDA5'!L19,Y19,AN19) -> 62091 | BH19: 107143 | BI19: =_xlfn.IFS(AND(AU19=0,AW19=0,AX19=0),0,AND(AU19=0,AW19=0,AX19>0),AI19,AND(AU19=0,AW19>0,AX19=0),T19,AND(AU19=0,AW19>0,AX19>0),MAX(T19,AI19),AND(AU19>0,AW19=0,AX19=0),MIN(MAX('MDA2'!J19,'MDA5'!J19),AZ19),AND(AU19>0,AW19=0,AX19>0),MIN(MAX('MDA2'!J19,'MDA5'!J19,AI19),AZ19),AND(AU19>0,AW19>0,AX19=0),MIN(MAX('MDA2'!J19,'MDA5'!J19,T19),AZ19),AND(AU19>0,AW19>0,AX19>0),MIN(MAX('MDA2'!J19,'MDA5'!J19,AI19,T19),AZ19)) -> 8552 | BJ19: =_xlfn.IFS(AND(AU19=0,AV19=0,AW19=0,AX19=0),0,AND(AU19=0,AV19=0,AW19=0,AX19>0),AL19,AND(AU19=0,AV19=0,AW19>0,AX19=0),W19,AND(AU19=0,AV19=0,AW19>0,AX19>0),MAX(W19,AL19),AND(AU19=0,AV19>0,AW19=0,AX19=0),MIN(J19*PROFILE!$G$9,MAX('MDA3'!I19,'MDA3'!L19)),AND(AU19=0,AV19>0,AW19=0,AX19>0),MIN(J19*PROFILE!$G$9,MAX('MDA3'!I19,'MDA3'!L19,AL19)),AND(AU19=0,AV19>0,AW19>0,AX19=0),MIN(J19*PROFILE!$G$9,MAX('MDA3'!I19,'MDA3'!L19,W19)),AND(AU19=0,AV19>0,AW19>0,AX19>0),MIN(J19*PROFILE!$G$9,MAX('MDA3'!I19,'MDA3'!L19,W19,AL19)),AND(AU19>0,AV19=0,AW19=0,AX19=0),MIN(BA19,MAX('MDA1'!K19,'MDA2'!K19,'MDA5'!K19)),AND(AU19>0,AV19=0,AW19=0,AX19>0),MIN(BA19,MAX('MDA1'!K19,'MDA2'!K19,'MDA5'!K19,AL19)),AND(AU19>0,AV19=0,AW19>0,AX19=0),MIN(BA19,MAX('MDA1'!K19,'MDA2'!KL19,'MDA5'!K19,W19)),AND(AU19>0,AV19=0,AW19>0,AX19>0),MIN(BA19,MAX('MDA1'!K19,'MDA2'!K19,'MDA5'!K19,W19,AL19)),AND(AU19>0,AV19>0,AW19=0,AX19=0),MIN(BA19,MAX('MDA1'!K19,'MDA2'!K19,'MDA5'!K19,MAX('MDA3'!I19,'MDA3'!L19))),AND(AU19>0,AV19>0,AW19=0,AX19>0),MIN(BA19,MAX('MDA1'!K19,'MDA2'!K19,'MDA5'!K19,MAX('MDA3'!I19,'MDA3'!L19),AL19)),AND(AU19>0,AV19>0,AW19>0,AX19=0),MIN(BA19,MAX('MDA1'!K19,'MDA2'!K19,'MDA5'!K19,MAX('MDA3'!I19,'MDA3'!L19),W19)),AND(AU19>0,AV19>0,AW19>0,AX19>0),MIN(BA19,MAX('MDA1'!K19,'MDA2'!K19,'MDA5'!K19,MAX('MDA3'!I19,'MDA3'!L19),W19,AL19))) -> 36500 | BK19: =_xlfn.IFS(AND(AU19=0,AV19=0,AW19=0,AX19=0),0,AND(AU19=0,AV19=0,AW19=0,AX19>0),AO19,AND(AU19=0,AV19=0,AW19>0,AX19=0),Z19,AND(AU19=0,AV19=0,AW19>0,AX19>0),MAX(Z19,AO19),AND(AU19=0,AV19>0,AW19=0,AX19=0),MIN(J19*PROFILE!$G$10,MAX('MDA3'!J19,'MDA3'!J19)),AND(AU19=0,AV19>0,AW19=0,AX19>0),MIN(J19*PROFILE!$G$10,MAX('MDA3'!J19,'MDA3'!M19,AO19)),AND(AU19=0,AV19>0,AW19>0,AX19=0),MIN(J19*PROFILE!$G$10,MAX('MDA3'!J19,'MDA3'!M19,Z19)),AND(AU19=0,AV19>0,AW19>0,AX19>0),MIN(J19*PROFILE!$G$10,MAX('MDA3'!J19,'MDA3'!M19,Z19,AO19)),AND(AU19>0,AV19=0,AW19=0,AX19=0),MIN(BB19,MAX('MDA1'!L19,'MDA2'!L19,'MDA5'!L19)),AND(AU19>0,AV19=0,AW19=0,AX19>0),MIN(BB19,MAX('MDA1'!L19,'MDA2'!L19,'MDA5'!L19,AO19)),AND(AU19>0,AV19=0,AW19>0,AX19=0),MIN(BB19,MAX('MDA1'!L19,'MDA2'!L19,'MDA5'!L19,Z19)),AND(AU19>0,AV19=0,AW19>0,AX19>0),MIN(BB19,MAX('MDA1'!L19,'MDA2'!L19,'MDA5'!L19,Z19,AO19)),AND(AU19>0,AV19>0,AW19=0,AX19=0),MIN(BB19,MAX('MDA1'!L19,'MDA2'!L19,'MDA5'!L19,MAX('MDA3'!J19,'MDA3'!M19))),AND(AU19>0,AV19>0,AW19=0,AX19>0),MIN(BB19,MAX('MDA1'!L19,'MDA2'!L19,'MDA5'!L19,MAX('MDA3'!J19,'MDA3'!M19),AO19)),AND(AU19>0,AV19>0,AW19>0,AX19=0),MIN(BB19,MAX('MDA1'!L19,'MDA2'!L19,'MDA5'!L19,MAX('MDA3'!J19,'MDA3'!M19),Z19)),AND(AU19>0,AV19>0,AW19>0,AX19>0),MIN(BB19,MAX('MDA1'!L19,'MDA2'!L19,'MDA5'!L19,MAX('MDA3'!J19,'MDA3'!M19),Z19,AO19))) -> 62091 | BL19: 107143 | BM19: 67.0542993
A20: =IF(COUNTRY_INFO!A20=0," ",COUNTRY_INFO!A20) -> Zanzibar | B20: =IF(COUNTRY_INFO!B20=0," ",COUNTRY_INFO!B20) -> Kaskazini Pemba | C20: =IF(COUNTRY_INFO!C20=0," ",COUNTRY_INFO!C20) -> Micheweni | D20: =COUNTRY_INFO!L20 -> 155543 | G20: =MAX('MDA1'!M20,'MDA2'!M20,'MDA5'!M20) -> 89380 | H20: =IF(AND(COUNTRY_INFO!H20>0,COUNTRY_INFO!H20<4),IF(D20>G20,G20,D20),0) -> 89380 | I20: =IF(AND(COUNTRY_INFO!H20>0,COUNTRY_INFO!H20<4),IF(G20/D20*100<>0,IF(G20/D20*100>100,100,G20/D20*100),"-"),0) -> 57.46320953 | J20: =COUNTRY_INFO!M20 -> Not required | M20: =MAX('MDA1'!M20,MAX('MDA3'!I20,'MDA3'!L20)+MAX('MDA3'!J20,'MDA3'!M20)) -> 89380 | N20: =IF(AND(COUNTRY_INFO!I20>0,COUNTRY_INFO!I20<4),IF(J20>M20,M20,J20),0) -> 0 | O20: =IF(AND(COUNTRY_INFO!I20>0,COUNTRY_INFO!I20<4),IF(M20/J20*100<>0,IF(M20/J20*100>100,100,M20/J20*100),"-"),0) -> 0 | P20: =COUNTRY_INFO!Q20 -> 99875 | S20: =MAX('MDA2'!J20,'MDA5'!J20,'T1'!K20,MAX(T3_R1!J20,T3_R2!J20,T3_R3!J20)) -> 10086 | T20: =IF(AND(COUNTRY_INFO!J20>1,COUNTRY_INFO!J20<99,COUNTRY_INFO!J20<>4,COUNTRY_INFO!J20<>5),IF(COUNTRY_INFO!N20>S20,S20,COUNTRY_INFO!N20),0) -> 10086 | U20: =IF(AND(COUNTRY_INFO!J20>1,COUNTRY_INFO!J20<99,COUNTRY_INFO!J20<>4,COUNTRY_INFO!J20<>5),IF(T20/COUNTRY_INFO!N20*100<>0,IF(T20/COUNTRY_INFO!N20*100>100,100,T20/COUNTRY_INFO!N20*100),"-"),0) -> 49.53587741 | V20: =MAX('MDA1'!K20,'MDA2'!K20,'MDA5'!K20,'T1'!L20,MAX(T3_R1!K20,T3_R2!K20,T3_R3!K20)) -> 32737 | W20: =IF(AND(COUNTRY_INFO!J20>1,COUNTRY_INFO!J20<99,COUNTRY_INFO!J20<>4,COUNTRY_INFO!J20<>5),IF(COUNTRY_INFO!O20>V20,V20,COUNTRY_INFO!O20),0) -> 32737 | X20: =IF(AND(COUNTRY_INFO!J20>1,COUNTRY_INFO!J20<99,COUNTRY_INFO!J20<>4,COUNTRY_INFO!J20<>5),IF(W20/COUNTRY_INFO!O20*100<>0,IF(W20/COUNTRY_INFO!O20*100>100,100,W20/COUNTRY_INFO!O20*100),"-"),0) -> 77.83589719 | Y20: =MAX('MDA1'!L20,'MDA2'!L20,'MDA5'!L20,'T1'!M20,MAX(T3_R1!L20,T3_R2!L20,T3_R3!L20)) -> 56643 | Z20: =IF(AND(COUNTRY_INFO!J20>1,COUNTRY_INFO!J20<99,COUNTRY_INFO!J20<>4,COUNTRY_INFO!J20<>5),IF(COUNTRY_INFO!P20>Y20,Y20,COUNTRY_INFO!P20),0) -> 37455 | AA20: =IF(AND(COUNTRY_INFO!J20>1,COUNTRY_INFO!J20<99,COUNTRY_INFO!J20<>4,COUNTRY_INFO!J20<>5),IF(Z20/COUNTRY_INFO!P20*100<>0,IF(Z20/COUNTRY_INFO!P20*100>100,100,Z20/COUNTRY_INFO!P20*100),"-"),0) -> 100 | AB20: 99466 | AC20: 80278 | AD20: =IF(AND(COUNTRY_INFO!J20>1,COUNTRY_INFO!J20<99,COUNTRY_INFO!J20<>4,COUNTRY_INFO!J20<>5),IF(AC20/P20*100<>0,IF(AC20/P20*100>100,100,AC20/P20*100),"-"),0) -> 80.37847309 | AE20: =COUNTRY_INFO!U20 -> 145041 | AH20: =MAX('T1'!K20,'T2'!R20) -> 5063 | AI20: =IF(AND(COUNTRY_INFO!K20>1,COUNTRY_INFO!K20<99,COUNTRY_INFO!K20<>4,COUNTRY_INFO!K20<>5),IF(COUNTRY_INFO!R20>AH20,AH20,COUNTRY_INFO!R20),0) -> 5063 | AJ20: =IF(AND(COUNTRY_INFO!K20>1,COUNTRY_INFO!K20<99,COUNTRY_INFO!K20<>4,COUNTRY_INFO!K20<>5),IF(AI20/COUNTRY_INFO!R20*100<>0,IF(AI20/COUNTRY_INFO!R20*100>100,100,AI20/COUNTRY_INFO!R20*100),"-"),0) -> 33.15434484 | AK20: =MAX('T1'!L20,'T2'!S20) -> 16960 | AL20: =IF(AND(COUNTRY_INFO!K20>1,COUNTRY_INFO!K20<99,COUNTRY_INFO!K20<>4,COUNTRY_INFO!K20<>5),IF(COUNTRY_INFO!S20>AK20,AK20,COUNTRY_INFO!S20),0) -> 16960 | AM20: =IF(AND(COUNTRY_INFO!K20>1,COUNTRY_INFO!K20<99,COUNTRY_INFO!K20<>4,COUNTRY_INFO!K20<>5),IF(AL20/COUNTRY_INFO!S20*100<>0,IF(AL20/COUNTRY_INFO!S20*100>100,100,AL20/COUNTRY_INFO!S20*100),"-"),0) -> 40.32430633 | AN20: =MAX('T1'!M20,'T2'!T20) -> 45350 | AO20: =IF(AND(COUNTRY_INFO!K20>1,COUNTRY_INFO!K20<99,COUNTRY_INFO!K20<>4,COUNTRY_INFO!K20<>5),IF(COUNTRY_INFO!T20>AN20,AN20,COUNTRY_INFO!T20),0) -> 45350 | AP20: =IF(AND(COUNTRY_INFO!K20>1,COUNTRY_INFO!K20<99,COUNTRY_INFO!K20<>4,COUNTRY_INFO!K20<>5),IF(AO20/COUNTRY_INFO!T20*100<>0,IF(AO20/COUNTRY_INFO!T20*100>100,100,AO20/COUNTRY_INFO!T20*100),"-"),0) -> 51.70389119 | AQ20: 67373 | AR20: 67373 | AS20: =IF(AND(COUNTRY_INFO!K20>1,COUNTRY_INFO!K20<99,COUNTRY_INFO!K20<>4,COUNTRY_INFO!K20<>5),IF(AH20/AE20*100<>0,IF(AR20/AE20*100>100,100,AR20/AE20*100),"-"),0) -> 46.45100351 | AU20: =IF(AND(D20<>0,D20<>"Unknown",D20<>"Stopped",D20<>"Not required"),D20/COUNTRY_INFO!D20,0) -> 1 | AV20: =IF(AND(J20<>0,J20<>"Unknown",J20<>"Stopped",J20<>"Not required"),J20/COUNTRY_INFO!D20,0) -> 0 | AW20: =IF(AND(P20<>0,P20<>"Unknown",P20<>"Surveillance",P20<>"Not required"),P20/COUNTRY_INFO!Q20,0) -> 1 | AX20: =IF(AND(AE20<>0,AE20<>"Unknown",AE20<>"Surveillance",AE20<>"Not required"),AE20/COUNTRY_INFO!U20,0) -> 1 | AY20: =IF(AU20>0,D20*PROFILE!$G$7,IF(AV20>0,J20*PROFILE!$G$7,0)) -> 5412.810054 | AZ20: =_xlfn.IFS(OR(AU20>0,AW20>0),COUNTRY_INFO!E20,AV20>0,J20*PROFILE!$G$8,AX20>0,COUNTRY_INFO!R20,COUNTIFS(AU20:AX20,">0")=0,0) -> 20361 | BA20: =_xlfn.IFS(OR(AU20>0,AW20>0),COUNTRY_INFO!F20,AV20>0,J20*PROFILE!$G$9,AX20>0,COUNTRY_INFO!S20,COUNTIFS(AU20:AX20,">0")=0,0) -> 42059 | BB20: =_xlfn.IFS(AU20>0,COUNTRY_INFO!G20,AND(AV20>0,AW20=0,AX20=0),J20*PROFILE!$G$10,AND(AV20>0,AW20>0,AX20=0),MAX(J20*PROFILE!$G$10,COUNTRY_INFO!P20),AND(AV20>0,AW20=0,AX20>0),MAX(J20*PROFILE!$G$10,COUNTRY_INFO!T20),AND(AV20=0,AW20>0,AX20>0),MAX(COUNTRY_INFO!P20,COUNTRY_INFO!T20),AND(AV20=0,AW20>0,AX20=0),COUNTRY_INFO!P20,AND(AV20=0,AW20=0,AX20>0),COUNTRY_INFO!T20,AND(AV20>0,AW20>0,AX20>0),MAX(J20*PROFILE!$G$10,COUNTRY_INFO!P20,COUNTRY_INFO!T20),COUNTIFS(AU20:AX20,">0")=0,0) -> 87711 | BC20: 155543.8101 | BD20: Y | BE20: =MAX('MDA2'!J20,'MDA5'!J20,S20,AH20) -> 10086 | BF20: =MAX('MDA1'!K20,'MDA2'!K20,'MDA3'!I20,'MDA3'!L20,'MDA5'!K20,V20,AK20) -> 32737 | BG20: =MAX('MDA1'!L20,'MDA2'!L20,'MDA3'!J20,'MDA3'!M20,'MDA5'!L20,Y20,AN20) -> 56643 | BH20: 99466 | BI20: =_xlfn.IFS(AND(AU20=0,AW20=0,AX20=0),0,AND(AU20=0,AW20=0,AX20>0),AI20,AND(AU20=0,AW20>0,AX20=0),T20,AND(AU20=0,AW20>0,AX20>0),MAX(T20,AI20),AND(AU20>0,AW20=0,AX20=0),MIN(MAX('MDA2'!J20,'MDA5'!J20),AZ20),AND(AU20>0,AW20=0,AX20>0),MIN(MAX('MDA2'!J20,'MDA5'!J20,AI20),AZ20),AND(AU20>0,AW20>0,AX20=0),MIN(MAX('MDA2'!J20,'MDA5'!J20,T20),AZ20),AND(AU20>0,AW20>0,AX20>0),MIN(MAX('MDA2'!J20,'MDA5'!J20,AI20,T20),AZ20)) -> 10086 | BJ20: =_xlfn.IFS(AND(AU20=0,AV20=0,AW20=0,AX20=0),0,AND(AU20=0,AV20=0,AW20=0,AX20>0),AL20,AND(AU20=0,AV20=0,AW20>0,AX20=0),W20,AND(AU20=0,AV20=0,AW20>0,AX20>0),MAX(W20,AL20),AND(AU20=0,AV20>0,AW20=0,AX20=0),MIN(J20*PROFILE!$G$9,MAX('MDA3'!I20,'MDA3'!L20)),AND(AU20=0,AV20>0,AW20=0,AX20>0),MIN(J20*PROFILE!$G$9,MAX('MDA3'!I20,'MDA3'!L20,AL20)),AND(AU20=0,AV20>0,AW20>0,AX20=0),MIN(J20*PROFILE!$G$9,MAX('MDA3'!I20,'MDA3'!L20,W20)),AND(AU20=0,AV20>0,AW20>0,AX20>0),MIN(J20*PROFILE!$G$9,MAX('MDA3'!I20,'MDA3'!L20,W20,AL20)),AND(AU20>0,AV20=0,AW20=0,AX20=0),MIN(BA20,MAX('MDA1'!K20,'MDA2'!K20,'MDA5'!K20)),AND(AU20>0,AV20=0,AW20=0,AX20>0),MIN(BA20,MAX('MDA1'!K20,'MDA2'!K20,'MDA5'!K20,AL20)),AND(AU20>0,AV20=0,AW20>0,AX20=0),MIN(BA20,MAX('MDA1'!K20,'MDA2'!KL20,'MDA5'!K20,W20)),AND(AU20>0,AV20=0,AW20>0,AX20>0),MIN(BA20,MAX('MDA1'!K20,'MDA2'!K20,'MDA5'!K20,W20,AL20)),AND(AU20>0,AV20>0,AW20=0,AX20=0),MIN(BA20,MAX('MDA1'!K20,'MDA2'!K20,'MDA5'!K20,MAX('MDA3'!I20,'MDA3'!L20))),AND(AU20>0,AV20>0,AW20=0,AX20>0),MIN(BA20,MAX('MDA1'!K20,'MDA2'!K20,'MDA5'!K20,MAX('MDA3'!I20,'MDA3'!L20),AL20)),AND(AU20>0,AV20>0,AW20>0,AX20=0),MIN(BA20,MAX('MDA1'!K20,'MDA2'!K20,'MDA5'!K20,MAX('MDA3'!I20,'MDA3'!L20),W20)),AND(AU20>0,AV20>0,AW20>0,AX20>0),MIN(BA20,MAX('MDA1'!K20,'MDA2'!K20,'MDA5'!K20,MAX('MDA3'!I20,'MDA3'!L20),W20,AL20))) -> 32737 | BK20: =_xlfn.IFS(AND(AU20=0,AV20=0,AW20=0,AX20=0),0,AND(AU20=0,AV20=0,AW20=0,AX20>0),AO20,AND(AU20=0,AV20=0,AW20>0,AX20=0),Z20,AND(AU20=0,AV20=0,AW20>0,AX20>0),MAX(Z20,AO20),AND(AU20=0,AV20>0,AW20=0,AX20=0),MIN(J20*PROFILE!$G$10,MAX('MDA3'!J20,'MDA3'!J20)),AND(AU20=0,AV20>0,AW20=0,AX20>0),MIN(J20*PROFILE!$G$10,MAX('MDA3'!J20,'MDA3'!M20,AO20)),AND(AU20=0,AV20>0,AW20>0,AX20=0),MIN(J20*PROFILE!$G$10,MAX('MDA3'!J20,'MDA3'!M20,Z20)),AND(AU20=0,AV20>0,AW20>0,AX20>0),MIN(J20*PROFILE!$G$10,MAX('MDA3'!J20,'MDA3'!M20,Z20,AO20)),AND(AU20>0,AV20=0,AW20=0,AX20=0),MIN(BB20,MAX('MDA1'!L20,'MDA2'!L20,'MDA5'!L20)),AND(AU20>0,AV20=0,AW20=0,AX20>0),MIN(BB20,MAX('MDA1'!L20,'MDA2'!L20,'MDA5'!L20,AO20)),AND(AU20>0,AV20=0,AW20>0,AX20=0),MIN(BB20,MAX('MDA1'!L20,'MDA2'!L20,'MDA5'!L20,Z20)),AND(AU20>0,AV20=0,AW20>0,AX20>0),MIN(BB20,MAX('MDA1'!L20,'MDA2'!L20,'MDA5'!L20,Z20,AO20)),AND(AU20>0,AV20>0,AW20=0,AX20=0),MIN(BB20,MAX('MDA1'!L20,'MDA2'!L20,'MDA5'!L20,MAX('MDA3'!J20,'MDA3'!M20))),AND(AU20>0,AV20>0,AW20=0,AX20>0),MIN(BB20,MAX('MDA1'!L20,'MDA2'!L20,'MDA5'!L20,MAX('MDA3'!J20,'MDA3'!M20),AO20)),AND(AU20>0,AV20>0,AW20>0,AX20=0),MIN(BB20,MAX('MDA1'!L20,'MDA2'!L20,'MDA5'!L20,MAX('MDA3'!J20,'MDA3'!M20),Z20)),AND(AU20>0,AV20>0,AW20>0,AX20>0),MIN(BB20,MAX('MDA1'!L20,'MDA2'!L20,'MDA5'!L20,MAX('MDA3'!J20,'MDA3'!M20),Z20,AO20))) -> 56643 | BL20: 99466 | BM20: 63.94725702

Sheet SUMMARY
B2: PC Joint Reporting Form v.4.2
B4: Country | D4: =IF(INTRO!$E$34<>0,INTRO!$E$34," ") -> Zanzibar | G4: Year | H4: =IF(INTRO!$E$36<>0,INTRO!$E$36," ") -> 2022
B6: National authorities are requested to complete the Joint Reporting Form (JRF) for submission to the World Health Organization within 3 months after the last round was implemented and no later than 31 March of the next implementation year.
B10: Number of people received treatment (at least once) for the diseases (all areas) and geographical coverage (%)
D12: PreSAC | E12: SAC | F12: Adults | G12: Total | H12: Geographical
B13: Lymphatic filariasis | D13: Not eligible | E13: 476239 | F13: 807977 | G13: =SUM(D13:F13) -> 1284216 | H13: 100
B14: Onchocerciasis | D14: Not eligible | E14: 476239 | F14: 807977 | G14: =SUM(D14:F14) -> 1284216 | H14: 0
B15: Soil-transmitted helminthiases | D15: 98988 | E15: 476239 | F15: 807977 | G15: =SUM(D15:F15) -> 1383204 | H15: 100
B16: Schistosomiasis | D16: 92354 | E16: 408263 | F16: 684472 | G16: =SUM(D16:F16) -> 1185089 | H16: 100
B18: Number of people in need (in areas requiring PC) received treatment for the diseases and national coverage (%)
D20: PreSAC | E20: SAC | F20: Adults | G20: Total | H20: National
B21: Lymphatic filariasis | G21: 1264653 | H21: 71.49112617
B22: Onchocerciasis | G22: 0 | H22: 0
B23: Soil-transmitted helminthiases | D23: 98988 | E23: 409803 | F23: 425967 | G23: =SUM(D23:F23) -> 934758 | H23: 82.29553948
B24: Schistosomiasis | D24: 84175 | E24: 335508 | F24: 587105 | G24: =SUM(D24:F24) -> 1006788 | H24: 75.83484859
B26: Number of people treated by PC intervention and programme coverage (%)
D28: PreSAC | E28: SAC | F28: Adults | G28: Total | H28: Programme
B29: MDA 1 (IVM+ALB) | D29: Not eligible | E29: ='MDA1'!$K$4 -> 476239 | F29: ='MDA1'!$L$4 -> 807977 | G29: ='MDA1'!$M$4 -> 1284216 | H29: ='MDA1'!$Q$4 -> 89.61736889
B30: MDA 2 (DEC+ALB) | D30: ='MDA2'!$J$4 -> 0 | E30: ='MDA2'!$K$4 -> 0 | F30: ='MDA2'!$L$4 -> 0 | G30: ='MDA2'!$M$4 -> 0 | H30: ='MDA2'!$Q$4 -> 
B31: MDA 3 (IVM) | D31: =IF($B$31="MDA 3 (IVM)","Not eligible",'MDA5'!$J$4) -> Not eligible | E31: =IF($B$31="MDA 3 (IVM)",'MDA3'!$O$4,'MDA5'!$K$4) -> 0 | F31: =IF($B$31="MDA 3 (IVM)",'MDA3'!$P$4,'MDA5'!$L$4) -> 0 | G31: =IF($B$31="MDA 3 (IVM)",'MDA3'!$Q$4,'MDA5'!$M$4) -> 0 | H31: =IF($B$31="MDA 3 (IVM)",'MDA3'!$T$4,'MDA5'!$Q$4) -> 
B32: T 1 (PZQ+ALB/MBD) | D32: =IF('T1'!$K$4<>0,'T1'!$K$4,"Not targeted") -> Not targeted | E32: ='T1'!$L$4 -> 0 | F32: =IF('T1'!$M$4<>0,'T1'!$M$4,"Not targeted") -> Not targeted | G32: ='T1'!$N$4 -> 0 | H32: ='T1'!$R$4 -> 
B33: T 2 (PZQ) | D33: ='T2'!$R$4 -> 92354 | E33: ='T2'!$S$4 -> 408263 | F33: ='T2'!T$4 -> 684472 | G33: ='T2'!$U$4 -> 1185089 | H33: ='T2'!$Y$4 -> 73.17604649
B34: T 3 (ALB/MBD) - round 1 | D34: =T3_R1!$J$4 -> 98988 | E34: =T3_R1!$K$4 -> 0 | F34: =T3_R1!$L$4 -> 0 | G34: =T3_R1!$M$4 -> 98988 | H34: =T3_R1!$Q$4 -> 42.74868499
B35: T 3 (ALB/MBD) - round 2 | D35: =T3_R2!$J$4 -> 0 | E35: =T3_R2!$K$4 -> 0 | F35: =T3_R2!$L$4 -> 0 | G35: =T3_R2!$M$4 -> 0 | H35: =T3_R2!$Q$4 -> 
B36: T 3 (ALB/MBD) - round 3 | D36: =T3_R3!$J$4 -> 0 | E36: =T3_R3!$K$4 -> 0 | F36: =T3_R3!$L$4 -> 0 | G36: =T3_R3!$M$4 -> 0 | H36: =T3_R3!$Q$4 -> 
B38: Inventory of PC medicines in the country
C40: IVM | D40: DEC | E40: ALB (LF) | F40: ALB (STH) | G40: MBD | H40: PZQ
B41: Available
B42: Distributed
B43: Wasted
B44: Received
B45: Remaining | C45: =C41-C42-C43+C44 -> 0 | D45: 0 | E45: 0 | F45: 0 | G45: 0 | H45: 0
B47: Please indicate the medicine has been used to treat PreSAC for STH and delivery channels
B48: PC medicine | D48: Delivery channels | G48: Source
B50: Additional information
B52: Normally in Zanzibar Albendazole tablets for STH and LF are co-implemented, hence at the end of MDA becomes difficult to account for which tablets are for STH and which ones are for LF. Therefore amount of Albendazole account for both for STH and Albendazole for LF.
D59: I have read and accept WHO Data Sharing Policy
D60: I confirm that all information provided in this form is complete and correct
B61: Name and signature of NTD coordinator or Ministry of Health representative: | E61: Shaali Ame
B63: Date: | E63: 25.05.2023
B65: Please send the national report (signed and in electronic format) to the concerned WR with copy to:
B67: WHO headquarters | D67: PC_JointForms@who.int
B68: WHO Regional Office | D68: Regional Advisor for NTD

Sheet PROFILE (hidden)
B2: PC Joint Reporting Form v.4.2 - Country Profile
B4: Country | D4: =IF(INTRO!$E$34<>0,INTRO!$E$34," ") -> Zanzibar | G4: Year | H4: =IF(INTRO!$E$36<>0,INTRO!$E$36," ") -> 2022
B5: !!! WARNING !!! Before analysing data in the country profile please be ensure that your report in the SUMMARY tab is updated
B6: Total population | G6: 1 | H6: =COUNTRY_INFO!D4 -> 1768965
B7: Population — other age groups | G7: =IF($H$6<>0,H7/$H$6,0) -> 0.03479944487 | H7: =H6-SUM(H8:H10) -> 61559
B8: Population — Pre-SAC | D8: =INTRO!B48 -> 1-4 years age | G8: =IF($H$6<>0,H8/$H$6,0) -> 0.1309002722 | H8: =COUNTRY_INFO!E4 -> 231558
B9: Population — SAC | D9: =INTRO!B49 -> 5-14 years age | G9: =IF($H$6<>0,H9/$H$6,0) -> 0.2704010537 | H9: =COUNTRY_INFO!F4 -> 478330
B10: Population — Adults | D10: =INTRO!B50 -> 15 years + | G10: 0.5638992292 | H10: =COUNTRY_INFO!G4 -> 997518
B12: Total number of people requiring PC for at least one disease (LF, ONCHO, STH, SCH) | H12: =DISTRICT!BC6 -> 1768965
B13: Proportion of number of people requiring PC for at least one disease out of total population | H13: =IF(H6<>0,H12/H6,0) -> 1
B14: Number of IUs requiring PC for at least one disease (LF, ONCHO, STH, SCH) | H14: =COUNTIF(DISTRICT!BC10:BC1010,">0") -> 11
B15: Number of IUs received PC for at least one disease (LF, ONCHO, STH, SCH) | H15: =COUNTIF(DISTRICT!BL10:BL1010,">0") -> 11
B16: Proportion of IUs requiring PC for at least one disease and received it | H16: =IF(H14<>0,H15/H14,0) -> 1
B17: Total number of people received PC for at least one disease (LF, ONCHO, STH, SCH) | H17: =DISTRICT!BH6 -> 1394551
B18: Total number of people in need who received PC for at least one disease (LF, ONCHO, STH, SCH) | H18: =DISTRICT!BL6 -> 1312949
B19: Coverage of PC for at least one disease (LF, ONCHO, STH, SCH) | H19: =DISTRICT!BM6 -> 0.742213102
B20: Number of IUs received treatment for all diseases requiring PC in those IUs | H20: =DISTRICT!BD6 -> 11
B21: Population requiring PC in IUs which received treatment for all diseases in need of PC | H21: =SUMIF(DISTRICT!BD10:BD1010,"Y",DISTRICT!BC10:BC1010) -> 1768965
B22: Population in need received PC in IUs which were treated for all diseases in need of PC | H22: =SUMIF(DISTRICT!BD10:BD1010,"Y",DISTRICT!BL10:BL1010) -> 1312949
E24: LF | F24: ONCHO | G24: STH | H24: SCH
B26: Diseases requiring PC in the country | E26: =IF(INTRO!E38="Endemic","Yes","No") -> Yes | F26: =IF(INTRO!E40="Endemic","Yes","No") -> No | G26: =IF(INTRO!E42="Endemic","Yes","No") -> Yes | H26: =IF(INTRO!E44="Endemic","Yes","No") -> Yes
B27: Number of implementation units (IUs) in the country | E27: =IF(E26="Yes",INTRO!$E$46,"-") -> 11 | F27: =IF(F26="Yes",INTRO!$E$46,"-") -> - | G27: =IF(G26="Yes",INTRO!$E$46,"-") -> 11 | H27: =IF(H26="Yes",INTRO!$E$46,"-") -> 11
B28: Number of IUs with endemicity status known | E28: =IF(E26="Yes",E27-E29,"-") -> 11 | F28: =IF(F26="Yes",F27-F29,"-") -> - | G28: =IF(G26="Yes",G27-G29,"-") -> 11 | H28: =IF(H26="Yes",H27-H29,"-") -> 11
B29: Number of IUs with endemicity status unknown | E29: =IF(E26="Yes",E27-(1001-COUNTIF(COUNTRY_INFO!H$10:H$1010,""))+COUNTIF(COUNTRY_INFO!H$10:H$1010,"=4"),"-") -> 0 | F29: =IF(F26="Yes",F27-(1001-COUNTIF(COUNTRY_INFO!I$10:I$1010,""))+COUNTIF(COUNTRY_INFO!I$10:I$1010,"=4"),"-") -> - | G29: =IF(G26="Yes",G27-(1001-COUNTIF(COUNTRY_INFO!J$10:J$1010,""))+COUNTIF(COUNTRY_INFO!J$10:J$1010,"=4")+COUNTIF(COUNTRY_INFO!J$10:J$1010,"=5"),"-") -> 0 | H29: =IF(H26="Yes",H27-(1001-COUNTIF(COUNTRY_INFO!K$10:K$1010,""))+COUNTIF(COUNTRY_INFO!K$10:K$1010,"=4")+COUNTIF(COUNTRY_INFO!K$10:K$1010,"=5"),"-") -> 0
B30: Number of non-endemic IUs | E30: =IF(E26="Yes",COUNTIF(COUNTRY_INFO!H$10:H$1010,"=0"),"-") -> 0 | F30: =IF(F26="Yes",COUNTIF(COUNTRY_INFO!I$10:I$1010,"=0"),"-") -> - | G30: =IF(G26="Yes",COUNTIF(COUNTRY_INFO!J$10:J$1010,"=0"),"-") -> 0 | H30: =IF(H26="Yes",COUNTIF(COUNTRY_INFO!K$10:K$1010,"=0"),"-") -> 1
B31: Number of IUs requiring PC (total) | E31: =COUNTIF(COUNTRY_INFO!H$10:H$1010,"=1") -> 11 | F31: =COUNTIF(COUNTRY_INFO!I$10:I$1010,"=1") -> 0 | G31: =SUM(G32:G33) -> 11 | H31: =SUM(H32:H33) -> 9
D32: baseline prevalence | G32: =COUNTIF(COUNTRY_INFO!J$10:J$1010,"=2")+COUNTIF(COUNTRY_INFO!J$10:J$1010,"=3") -> 11 | H32: =COUNTIF(COUNTRY_INFO!K$10:K$1001,"=2")+COUNTIF(COUNTRY_INFO!K$10:K$1001,"=3") -> 9
D33: impact prevalence | G33: =COUNTIF(COUNTRY_INFO!J$10:J$1010,"=11")+COUNTIF(COUNTRY_INFO!J$10:J$1010,"=21")+COUNTIF(COUNTRY_INFO!J$10:J$1010,"=22")+COUNTIF(COUNTRY_INFO!J$10:J$1010,"=31") -> 0 | H33: =COUNTIF(COUNTRY_INFO!K$10:K$1001,"=11")+COUNTIF(COUNTRY_INFO!K$10:K$1001,"=21")+COUNTIF(COUNTRY_INFO!K$10:K$1001,"=31") -> 0
D34: - low | G34: =COUNTIF(COUNTRY_INFO!J$10:J$1010,"=11") -> 0 | H34: =COUNTIF(COUNTRY_INFO!K$10:K$1001,"=11") -> 0
B35: Population requiring PC in the country (total) | E35: =COUNTRY_INFO!L4 -> 1768965 | F35: =COUNTRY_INFO!M4 -> 0 | G35: =COUNTRY_INFO!Q4 -> 1135855 | H35: =COUNTRY_INFO!U4 -> 1327606
C36: <1 year old | E36: =E35-SUM(E37:E39) -> 61559 | F36: =F35-SUM(F37:F39) -> 0
C37: Pre-SAC | E37: =SUMIF(COUNTRY_INFO!L$10:L$1010,">0",COUNTRY_INFO!E$10:E$1010) -> 231558 | F37: =COUNTRY_INFO!$M$4*$G8 -> 0 | G37: =COUNTRY_INFO!N$4 -> 231558 | H37: =COUNTRY_INFO!R$4 -> 139778
C38: SAC | E38: =SUMIF(COUNTRY_INFO!L$10:L$1010,">0",COUNTRY_INFO!F$10:F$1010) -> 478330 | F38: =COUNTRY_INFO!$M$4*$G9 -> 0 | G38: =COUNTRY_INFO!O$4 -> 478330 | H38: =COUNTRY_INFO!S$4 -> 384981
C39: Adults | E39: =SUMIF(COUNTRY_INFO!L$10:L$1010,">0",COUNTRY_INFO!G$10:G$1010) -> 997518 | F39: =COUNTRY_INFO!$M$4*$G10 -> 0 | G39: =COUNTRY_INFO!P$4 -> 425967 | H39: =COUNTRY_INFO!T$4 -> 802847
B40: Population requiring PC in low impact prevalence areas | G40: =SUMIF(COUNTRY_INFO!J$10:J$1010,"=11",COUNTRY_INFO!Q$10:Q$1010) -> 0 | H40: =SUMIF(COUNTRY_INFO!K$10:K$1010,"=11",COUNTRY_INFO!U$10:U$1010) -> 0
B41: Number of IUs where PC was implemented (total) | E41: =COUNTIF(DISTRICT!G$10:G$1010,">0") -> 11 | F41: =COUNTIF(DISTRICT!M$10:M$1010,">0") -> 11 | G41: =COUNTIF(DISTRICT!AB$10:AB$1010,">0") -> 11 | H41: =COUNTIF(DISTRICT!AQ$10:AQ$1010,">0") -> 10
B42: Number of IUs in need where PC was implemented (total) | E42: =COUNTIF(DISTRICT!H$10:H$1010,">0") -> 11 | F42: =COUNTIF(DISTRICT!N$10:N$1010,">0") -> 0 | G42: =COUNTIF(DISTRICT!AC$10:AC$1010,">0") -> 11 | H42: =COUNTIF(DISTRICT!AR$10:AR$1010,">0") -> 9
C43: Pre-SAC | G43: =COUNTIF(DISTRICT!T$10:T$1010,">0") -> 11 | H43: =COUNTIF(DISTRICT!AI$10:AI$1010,">0") -> 9
C44: SAC | G44: =COUNTIF(DISTRICT!W$10:W$1010,">0") -> 11 | H44: =COUNTIF(DISTRICT!AL$10:AL$1010,">0") -> 9
C45: Adults | G45: =COUNTIF(DISTRICT!Z$10:Z$1010,">0") -> 11 | H45: =COUNTIF(DISTRICT!AO$10:AO$1010,">0") -> 9
B46: Number of individuals treated (total) | E46: =DISTRICT!G4 -> 1284216 | F46: =DISTRICT!M4 -> 1284216 | G46: =DISTRICT!AB4 -> 1383204 | H46: =DISTRICT!AQ4 -> 1185089
C47: Pre-SAC | E47: =SUMMARY!$D13 -> Not eligible | F47: =SUMMARY!$D14 -> Not eligible | G47: =SUMMARY!$D15 -> 98988 | H47: =SUMMARY!$D16 -> 92354
C48: SAC | E48: =SUMMARY!$E13 -> 476239 | F48: =SUMMARY!$E14 -> 476239 | G48: =SUMMARY!$E15 -> 476239 | H48: =SUMMARY!$E16 -> 408263
C49: Adults | E49: =SUMMARY!$F13 -> 807977 | F49: =SUMMARY!$F14 -> 807977 | G49: =SUMMARY!$F15 -> 807977 | H49: =SUMMARY!$F16 -> 684472
B50: Number of individuals in need treated (total) | E50: =DISTRICT!H4 -> 1264653 | F50: =DISTRICT!N4 -> 0 | G50: =DISTRICT!AC4 -> 934758 | H50: =DISTRICT!AR4 -> 1006788
C51: Pre-SAC | E51: =SUMMARY!$D21 -> 0 | F51: =SUMMARY!$D22 -> 0 | G51: =SUMMARY!$D23 -> 98988 | H51: =SUMMARY!$D24 -> 84175
C52: SAC | E52: =SUMMARY!$E21 -> 0 | F52: =SUMMARY!$E22 -> 0 | G52: =SUMMARY!$E23 -> 409803 | H52: =SUMMARY!$E24 -> 335508
C53: Adults | E53: =SUMMARY!$F21 -> 0 | F53: =SUMMARY!$F22 -> 0 | G53: =SUMMARY!$F23 -> 425967 | H53: =SUMMARY!$F24 -> 587105
B54: Geographical coverage (all ages) | E54: =IF(E31<>0,E42/E31,0) -> 1 | F54: =IF(F31<>0,F42/F31,0) -> 0 | G54: =IF(G31<>0,G42/G31,0) -> 1 | H54: =IF(H31<>0,H42/H31,0) -> 1
C55: Pre-SAC | G55: =IF($G$31<>0,G43/$G$31,0) -> 1 | H55: =IF($H$31<>0,H43/$H$31,0) -> 1
C56: SAC | G56: =IF($G$31<>0,G44/$G$31,0) -> 1 | H56: =IF($H$31<>0,H44/$H$31,0) -> 1
C57: Adults | G57: =IF($G$31<>0,G45/$G$31,0) -> 1 | H57: =IF($H$31<>0,H45/$H$31,0) -> 1
B58: National coverage (total) | E58: =IF(E35<>0,E50/E35,0) -> 0.7149112617 | F58: =IF(F35<>0,F50/F35,0) -> 0 | G58: =IF(G35<>0,G50/G35,0) -> 0.8229553948 | H58: =IF(H35<>0,H50/H35,0) -> 0.7583484859
C59: Pre-SAC | G59: =IF($G37<>0,$G51/$G37,0) -> 0.4274868499 | H59: =IF($H37<>0,$H51/$H37,0) -> 0.602204925
C60: SAC | G60: =IF($G38<>0,$G52/$G38,0) -> 0.8567369807 | H60: =IF($H38<>0,$H52/$H38,0) -> 0.8714923594
C61: Adults | G61: 1 | H61: =IF($H39<>0,$H53/$H39,0) -> 0.7312788115
E62: LF | F62: ONCHO | G62: STH | H62: SCH
B64: Number of IUs achieved effective coverage (all ages) | E64: =COUNTIF(DISTRICT!I$10:I$1010,">=65") -> 5 | F64: =COUNTIF(DISTRICT!O$10:O$1010,">=65") -> 0 | G64: =COUNTIF(DISTRICT!AD$10:AD$1010,">=75") -> 10 | H64: =COUNTIF(DISTRICT!AS$10:AS$1010,">=75") -> 4
C65: Pre-SAC | G65: =COUNTIF(DISTRICT!U$10:U$1010,">=75") -> 0 | H65: =COUNTIF(DISTRICT!AJ$10:AJ$1010,">=75") -> 2
C66: SAC | G66: =COUNTIF(DISTRICT!X$10:X$1010,">=75") -> 9 | H66: =COUNTIF(DISTRICT!AM$10:AM$1010,">=75") -> 7
C67: Adults | G67: =COUNTIF(DISTRICT!AA$10:AA$1010,">=75") -> 11 | H67: =COUNTIF(DISTRICT!AP$10:AP$1010,">=75") -> 4
B68: Number of individuals in need treated in IUs achieved effective coverage (total) | E68: =SUMIF(DISTRICT!I10:I1010,">=65",DISTRICT!H10:H1010) -> 660267 | F68: =SUMIF(DISTRICT!O10:O1010,">=65",DISTRICT!N10:N1010) -> 0 | G68: =SUMIF(DISTRICT!AD10:AD1010,">=75",DISTRICT!AC10:AC1010) -> 803842 | H68: =SUMIF(DISTRICT!AS10:AS1010,">=75",DISTRICT!AR10:AR1010) -> 501876
C69: Pre-SAC | G69: =SUMIF(DISTRICT!U10:U1010,">=75",DISTRICT!T10:T1010) -> 0 | H69: =SUMIF(DISTRICT!AJ10:AJ1010,">=75",DISTRICT!AI10:AI1010) -> 17887
C70: SAC | G70: =SUMIF(DISTRICT!X10:X1010,">=75",DISTRICT!W10:W1010) -> 332054 | H70: =SUMIF(DISTRICT!AM10:AM1010,">=75",DISTRICT!AL10:AL1010) -> 289552
C71: Adults | G71: =SUMIF(DISTRICT!AA10:AA1010,">=75",DISTRICT!Z10:Z1010) -> 425967 | H71: =SUMIF(DISTRICT!AP10:AP1010,">=75",DISTRICT!AO10:AO1010) -> 298844
B72: Proportion of IUs requiring PC and achieved effective coverage (total) | E72: =IF(E42<>0,E64/E42,0) -> 0.4545454545 | F72: =IF(F42<>0,F64/F42,0) -> 0 | G72: =IF(G42<>0,G64/G42,0) -> 0.9090909091 | H72: =IF(H42<>0,H64/H42,0) -> 0.4444444444
C73: Pre-SAC | G73: =IF(G43<>0,G65/G43,0) -> 0 | H73: 0.2222222222
C74: SAC | G74: 0.8181818182 | H74: 0.7777777778
C75: Adults | G75: 1 | H75: 0.4444444444
B76: Number of implementation units where PC was stopped (i.e. under surveillance) | E76: =COUNTIF(COUNTRY_INFO!H$10:H$1010,"=99") -> 0 | F76: =COUNTIF(COUNTRY_INFO!I$10:I$1010,"=99") -> 0 | G76: =COUNTIF(COUNTRY_INFO!J$10:J$1010,"=99") -> 0 | H76: =COUNTIF(COUNTRY_INFO!K$10:K$1010,"=99") -> 0
B77: Number of individuals living in IUs no longer requiring PC (stopped, surveillance) | E77: =SUMIF(COUNTRY_INFO!H$10:H$1010,"=99",COUNTRY_INFO!D$10:D$1010) -> 0 | F77: =SUMIF(COUNTRY_INFO!I$10:I$1010,"=99",COUNTRY_INFO!D$10:D$1010) -> 0 | G77: =SUMIF(COUNTRY_INFO!J$10:J$1010,"=99",COUNTRY_INFO!D$10:D$1010) -> 0 | H77: =SUMIF(COUNTRY_INFO!K$10:K$1010,"=99",COUNTRY_INFO!D$10:D$1010) -> 0
B78: Number of individuals requiring PC living in IUs targeted with PC | E78: =SUMIF(DISTRICT!H$10:H$1010,">0",DISTRICT!D$10:D$1010) -> 1768965 | F78: =SUMIF(DISTRICT!N$10:N$1010,">0",DISTRICT!J$10:J$1010) -> 0 | G78: =SUMIF(DISTRICT!AC$10:AC$1010,">0",DISTRICT!P$10:P$1010) -> 1135855 | H78: =SUMIF(DISTRICT!AR$10:AR$1010,">0",DISTRICT!AE$10:AE$1010) -> 1327606
B79: Number of individuals requiring PC living in IUs not targeted with PC | E79: =SUMIF(DISTRICT!H$10:H$1010,"=0",DISTRICT!D$10:D$1010) -> 0 | F79: =SUMIF(DISTRICT!N$10:N$1010,"=0",DISTRICT!J$10:J$1010) -> 0 | G79: =SUMIF(DISTRICT!AC$10:AC$1010,"=0",DISTRICT!P$10:P$1010) -> 0 | H79: =SUMIF(DISTRICT!AR$10:AR$1010,"=0",DISTRICT!AE$10:AE$1010) -> 0
E80: =E35-E50 -> 504312 | F80: =F35-F50 -> 0 | G80: =G35-G50 -> 201097 | H80: =H35-H50 -> 320818
B81: Number of IUs requiring and receiving PC | E81: =E31-E42 -> 0 | F81: =F31-F42 -> 0 | G81: =G31-G42 -> 0 | H81: =H31-H42 -> 0
E82: =E27-E31-E29 -> 0 | G82: 0 | H82: 2
G84: Requiring and receiving PC
G85: Requiring and not receiving PC
G86: Not requiring PC
G87: Status unknown
B122: Click here to access data Preventive Chemotherapy Data Portal

Sheet DATA_POLICY (hidden)
B2: PC Joint Reporting Form v.4.2
B4: Country | D4: =IF(INTRO!$E$34<>0,INTRO!$E$34," ") -> Zanzibar | G4: Year | H4: =IF(INTRO!$E$36<>0,INTRO!$E$36," ") -> 2022
B7: WHO Data Sharing Policy statement
B9: Data are the basis for all sound public health actions and the benefits of data sharing are widely recognized, including scientific and public health benefits. Whenever possible, WHO wishes to promote the sharing of health data, including but not restricted to surveillance and epidemiological data.
B14: ="In this connection, and without prejudice to information sharing and publication pursuant to legally binding instruments, by providing data to WHO, the Ministry of Health of "&D4&":" -> In this connection, and without prejudice to information sharing and publication pursuant to legally binding instruments, by providing data to WHO, the Ministry of Health of Zanzibar:
B18: Confirms that all data to be supplied to WHO hereunder have been collected in accordance with applicable national laws, including data protection laws aimed at protecting the confidentiality of identifiable persons;
B23: ="Agrees that WHO shall be entitled, subject always to measures to ensure the ethical and secure use of the data, and subject always to an appropriate acknowledgement of "&D4&":" -> Agrees that WHO shall be entitled, subject always to measures to ensure the ethical and secure use of the data, and subject always to an appropriate acknowledgement of Zanzibar:
C27: to publish the data, stripped of any personal identifiers and make the Data available to any interested party on request (to the extent they have not, or not yet, been published by WHO) on terms that allow non-commercial, not-for-profit use of the Data for public health purposes (provided always that publication of the Data shall remain under the control of WHO); to use, compile, aggregate, evaluate and analyse the Data and publish and disseminate the results thereof in conjunction with WHO’s work and in accordance with the Organization’s policies and practices.
B39: =CONCATENATE("Except where data sharing and publication is required under legally binding instruments (IHR, WHO Nomenclature Regulations 1967, etc.), the Ministry of Health of ",D4," may in respect of certain data opt out of (any part of) the above,"&" by notifying WHO thereof in writing at the following address, provided that any such notification shall clearly identify the data in question and clearly indicate the scope of the opt-out (in reference to the above), "&"and provided that specific reasons shall be given for the opt out.") -> Except where data sharing and publication is required under legally binding instruments (IHR, WHO Nomenclature Regulations 1967, etc.), the Ministry of Health of Zanzibar may in respect of certain data opt out of (any part of) the above, by notifying WHO thereof in writing at the following address, provided that any such notification shall clearly identify the data in question and clearly indicate the scope of the opt-out (in reference to the above), and provided that specific reasons shall be given for the opt out.
